Workbook

Sheet Producer Inputs
N1: Location Name: | O1: Lat. | P1: Long. | Q1: Location ID
N2: Columbia, MO | O2: 38⁰ 57' N | P2: 92⁰ 20' W | Q2: Loc13
B3: INPUT INFORMATION: Location, soil texture, planting date and maturity | N3: Carbondale, IL | O3: 37⁰ 44' N | P3: 89⁰ 13' W | Q3: Loc12
N4: Sikeston, MO | O4: 36⁰ 53' N | P4: 89⁰ 35' W | Q4: Loc11
B5: Location: | D5: Lat. | E5: Long. | N5: Milan, TN | O5: 35⁰ 55' N | P5: 88⁰ 46' W | Q5: Loc10
B6: Please select the closest town to your field location | C6: Marianna, AR | D6: =VLOOKUP($C$6,$N$2:$P$14,2,FALSE) -> 34⁰ 46' N | E6: =VLOOKUP($C$6,$N$2:$P$14,3,FALSE) -> 90⁰ 45' W | N6: Stoneville, MS | O6: 35⁰ 38' N | P6: 88⁰ 49' W | Q6: Loc09
N7: Marianna, AR | O7: 34⁰ 46' N | P7: 90⁰ 45' W | Q7: Loc08
B8: Soil water holding capacity: | N8: Tupelo, MS | O8: 34⁰ 15' N | P8: 88⁰ 42' W | Q8: Loc07
B9: Please select a soil texture and irrigation strategy | C9: Silt Loam -- allow 1.5 inch of water deficit | N9: Rohwer, AR | O9: 33⁰ 46' N | P9: 91⁰ 17' W | Q9: Loc06
N10: Yazoo City, MS | O10: 32⁰ 51' N | P10: 90⁰ 24' W | Q10: Loc05
B11: Planting date: | N11: Winnsboro, LA | O11: 32⁰ 10' N | P11: 91⁰ 43' W | Q11: Loc04
B12: Please select your week of planting | C12: May 23 - 31 | N12: Alexandria, LA | O12: 31⁰ 19' N | P12: 92⁰ 27' W | Q12: Loc03
N13: College Station, TX | O13: 30⁰ 38' N | P13: 96⁰ 20' W | Q13: Loc02
B14: Soybean Maturity Groups (MG): | N14: Baton Rouge, LA | O14: 30⁰ 27' N | P14: 91⁰ 8' W | Q14: Loc01
B15: Please select two soybean maturity groups to compare | C15: MG 3.0-3.4
C16: vs.
B17: =IF(AND(C17=C15,NOT(ISBLANK(C17))),"Please choose two different MG ", "") ->  | C17: MG 5.0-5.4
N18: Soils Choices: | O18: Soil ID
N19: Clay -- allow 2 inches of water deficit | O19: clay
N20: Silt Loam -- allow 1.5 inch of water deficit | O20: loam
N22: Planting Date Choices: | O22: Wk ID | P22: DOY | Q22: PD# | R22: Maturity Group Choices: | S22: MG ID
N23: March 15 - 22 | O23: wk1 | P23: 78 | Q23: 1 | R23: MG 3.0-3.4 | S23: rm3.0 | T23: MG 3.0-3.4
N24: March 23 - 31 | O24: wk2 | P24: 86 | Q24: 2 | R24: MG 3.5-3.9 | S24: rm3.5 | T24: MG 3.5-3.9
N25: April 1 - 7 | O25: wk3 | P25: 94 | Q25: 3 | R25: MG 4.0-4.4 | S25: rm4.0 | T25: MG 4.0-4.4
N26: April 8 - 14 | O26: wk4 | P26: 101 | Q26: 4 | R26: MG 4.5-4.9 | S26: rm4.5 | T26: MG 4.5-4.9
N27: April 15 - 22 | O27: wk5 | P27: 109 | Q27: 5 | R27: MG 5.0-5.4 | S27: rm5.0 | T27: MG 5.0-5.4
N28: April 23 - 30 | O28: wk6 | P28: 117 | Q28: 6 | R28: MG 5.5-5.9 | S28: rm5.5 | T28: MG 5.5-5.9
N29: May 1 - 7 | O29: wk7 | P29: 124 | Q29: 7 | R29: MG 6.0-6.4 | S29: rm6.0 | T29: MG 6.0-6.4
N30: May 8 - 14 | O30: wk8 | P30: 131 | Q30: 8 | R30: MG 6.5-6.9 | S30: rm6.5 | T30: MG 6.5-6.9
N31: May 15 - 22 | O31: wk9 | P31: 139 | Q31: 9
N32: May 23 - 31 | O32: wk10 | P32: 147 | Q32: 10
N33: June 1 - 7 | O33: wk11 | P33: 155 | Q33: 11
N34: June 8 - 14 | O34: wk12 | P34: 162 | Q34: 12
N35: June 15 - 22 | O35: wk13 | P35: 170 | Q35: 13
N36: June 23 - 30 | O36: wk14 | P36: 178 | Q36: 14
C39: For particular PD | D39: For all PD | F39: startrow
B41: User choice codes: | C41: =CONCATENATE(VLOOKUP(C6,$N$2:$Q$14,4,FALSE),VLOOKUP(C9,$N$19:$O$20,2,FALSE),VLOOKUP(C12,$N$23:$P$36,3,FALSE),VLOOKUP(C15,$R$23:$S$30,2,FALSE)) -> Loc08loam147rm3.0 | D41: =CONCATENATE(VLOOKUP(C6,$N$2:$Q$14,4,FALSE),VLOOKUP(C9,$N$19:$O$20,2,FALSE),VLOOKUP(C15,$R$23:$S$30,2,FALSE)) -> Loc08loamrm3.0
B42: Start row: | C42: =2+(VALUE(RIGHT(LEFT(C41,5),2))-1)*6720+IF(RIGHT(LEFT(C41,9),4)="loam",3360,0)+(VALUE(RIGHT(C41,3))/0.5-6)*420+(VLOOKUP($C$12,$N$23:$Q$36,4,FALSE)-1)*30 -> 50672 | D42: =2+(VALUE(RIGHT(LEFT(D41,5),2))-1)*6720+IF(RIGHT(LEFT(D41,9),4)="loam",3360,0)+(VALUE(RIGHT(D41,3))/0.5-6)*420 -> 50402
C43: =CONCATENATE(VLOOKUP(C6,$N$2:$Q$14,4,FALSE),VLOOKUP(C9,$N$19:$O$20,2,FALSE),VLOOKUP(C12,$N$23:$P$36,3,FALSE),VLOOKUP(C17,$R$23:$S$30,2,FALSE)) -> Loc08loam147rm5.0 | D43: =CONCATENATE(VLOOKUP(C6,$N$2:$Q$14,4,FALSE),VLOOKUP(C9,$N$19:$O$20,2,FALSE),VLOOKUP(C17,$R$23:$S$30,2,FALSE)) -> Loc08loamrm5.0
C44: =2+(VALUE(RIGHT(LEFT(C43,5),2))-1)*6720+IF(RIGHT(LEFT(C43,9),4)="loam",3360,0)+(VALUE(RIGHT(C43,3))/0.5-6)*420+(VLOOKUP($C$12,$N$23:$Q$36,4,FALSE)-1)*30 -> 52352 | D44: =2+(VALUE(RIGHT(LEFT(D43,5),2))-1)*6720+IF(RIGHT(LEFT(D43,9),4)="loam",3360,0)+(VALUE(RIGHT(D43,3))/0.5-6)*420 -> 52082

Sheet Output 1
B3: OUTPUT INFORMATION: Risk of spring frost and yield
B5: Risk of Freezing:
B7: Risk of early frost leading to crop failure for your selected location and week of planting. Data based on 30 year weather data.
N8: =VLOOKUP('Producer Inputs'!C41,'Summary Data'!A2:S4,6,FALSE) -> 0
B11: Yield Prediction:
B13: Predictions for your selected location, week of planting and MG choices based on calibrated crop simulations for 30 years.
E14: =CONCATENATE('Producer Inputs'!C6," planted ",'Producer Inputs'!C12," on ",VLOOKUP('Producer Inputs'!C9,'Producer Inputs'!N19:O20,2,FALSE)) -> Marianna, AR planted May 23 - 31 on loam
B15: Yield Prediction Analysis (incl. early frost years) | C15: =+'Producer Inputs'!C15 -> MG 3.0-3.4 | D15: =+'Producer Inputs'!C17 -> MG 5.0-5.4
B16: Risk of yields below 30 bu/acre | C16: =IF(VLOOKUP('Producer Inputs'!C41,'Summary Data'!$A$2:$S$4,9,FALSE)<0.01,"Min.",VLOOKUP('Producer Inputs'!C41,'Summary Data'!$A$2:$S$4,9,FALSE)) -> Min. | D16: =IF(VLOOKUP('Producer Inputs'!C43,'Summary Data'!$A$2:$S$4,9,FALSE)<0.01,"Min.",VLOOKUP('Producer Inputs'!C43,'Summary Data'!$A$2:$S$4,9,FALSE)) -> Min.
B17: Median Yield (observed at least 1/2 the time) | C17: =VLOOKUP('Producer Inputs'!C41,'Summary Data'!$A$2:$S$4,10,FALSE) -> 64.23762783 | D17: =VLOOKUP('Producer Inputs'!C43,'Summary Data'!$A$2:$S$4,10,FALSE) -> 69.66784864
B18: Probability of yield greater than 60 bu/acre | C18: =IF(VLOOKUP('Producer Inputs'!C41,'Summary Data'!$A$2:$S$4,11,FALSE)<0.995,VLOOKUP('Producer Inputs'!C41,'Summary Data'!$A$2:$S$4,11,FALSE),"Max.") -> 0.9333333333 | D18: =IF(VLOOKUP('Producer Inputs'!C43,'Summary Data'!$A$2:$S$4,11,FALSE)<0.995,VLOOKUP('Producer Inputs'!C43,'Summary Data'!$A$2:$S$4,11,FALSE),"Max.") -> Max.

Sheet Output 2
B1: MIDSOUTH SOYBEAN GENOTYPE SELECTION DECISION TOOL
B3: OUTPUT INFORMATION: Phenology (flowering, seed fill and harvest)
B5: Average expected dates with 95% confidence intevals (error bars) for flowering (R1), beginning of seedfill (R5) and harvest maturity (R8). Calculated for your selected location, week of planting and MG choices based on calibrated crop simulations for 30 years.
M7: Dates from Summary Data | O7: CI from Summary Data | Q7: Julian Harvest Week Range
M8: =+'Producer Inputs'!C15 -> MG 3.0-3.4 | N8: =+'Producer Inputs'!C17 -> MG 5.0-5.4 | O8: =+M8 -> MG 3.0-3.4 | P8: =+N8 -> MG 5.0-5.4 | Q8: =+O8 -> MG 3.0-3.4 | R8: =+P8 -> MG 5.0-5.4
L9: R1 | M9: =VLOOKUP('Producer Inputs'!$C$41,'Summary Data'!$A$2:$S$4,12,FALSE) -> 178.3666667 | N9: =VLOOKUP('Producer Inputs'!$C$43,'Summary Data'!$A$2:$S$4,12,FALSE) -> 196.2 | O9: =VLOOKUP('Producer Inputs'!$C$41,'Summary Data'!$A$2:$S$4,13,FALSE) -> 2.841864047 | P9: =VLOOKUP('Producer Inputs'!$C$43,'Summary Data'!$A$2:$S$4,13,FALSE) -> 3.429758612 | Q9: =CONCATENATE(TEXT(1+ROUNDDOWN((+M9-O9-1)/7,0),"0")," to ",TEXT(1+ROUNDDOWN((+M9+O9-1)/7,0),"0")) -> 25 to 26 | R9: 28 to 29
L10: R5 | M10: =VLOOKUP('Producer Inputs'!$C$41,'Summary Data'!$A$2:$S$4,14,FALSE) -> 208 | N10: =VLOOKUP('Producer Inputs'!$C$43,'Summary Data'!$A$2:$S$4,14,FALSE) -> 226.8 | O10: =VLOOKUP('Producer Inputs'!$C$41,'Summary Data'!$A$2:$S$4,15,FALSE) -> 2.674569898 | P10: =VLOOKUP('Producer Inputs'!$C$43,'Summary Data'!$A$2:$S$4,15,FALSE) -> 2.59411323 | Q10: 30 to 30 | R10: 32 to 33
L11: R8 | M11: =VLOOKUP('Producer Inputs'!$C$41,'Summary Data'!$A$2:$S$4,16,FALSE) -> 252.8333333 | N11: =VLOOKUP('Producer Inputs'!$C$43,'Summary Data'!$A$2:$S$4,16,FALSE) -> 273.0333333 | O11: =VLOOKUP('Producer Inputs'!$C$41,'Summary Data'!$A$2:$S$4,17,FALSE) -> 2.628776211 | P11: =VLOOKUP('Producer Inputs'!$C$43,'Summary Data'!$A$2:$S$4,17,FALSE) -> 2.385738855 | Q11: 36 to 37 | R11: 39 to 40
B13: =CONCATENATE("Phenology Prediction: ",'Producer Inputs'!C6," planted ",'Producer Inputs'!C12," on ",VLOOKUP('Producer Inputs'!C9,'Producer Inputs'!N19:O20,2,FALSE)) -> Phenology Prediction: Marianna, AR planted May 23 - 31 on loam
B15: Phenology Prediction Analysis | C15: =+'Producer Inputs'!C15 -> MG 3.0-3.4 | D15: =+'Producer Inputs'!C17 -> MG 5.0-5.4
B16: Day of flowering (R1) | C16: =CONCATENATE(TEXT(VLOOKUP('Producer Inputs'!$C$41,'Summary Data'!$A$2:$S$4,12,FALSE)-1,"mmm d")," (± ",TEXT(VLOOKUP('Producer Inputs'!$C$41,'Summary Data'!$A$2:$S$4,13,FALSE),"0.0")," d)") -> Jun 25 (± 2.8 d) | D16: =CONCATENATE(TEXT(VLOOKUP('Producer Inputs'!$C$43,'Summary Data'!$A$2:$S$4,12,FALSE)-1,"mmm d")," (± ",TEXT(VLOOKUP('Producer Inputs'!$C$43,'Summary Data'!$A$2:$S$4,13,FALSE),"0.0")," d)") -> Jul 13 (± 3.4 d)
B17: Date of beginning seed fill (R5) | C17: =CONCATENATE(TEXT(VLOOKUP('Producer Inputs'!$C$41,'Summary Data'!$A$2:$S$4,14,FALSE)-1,"mmm d")," (± ",TEXT(VLOOKUP('Producer Inputs'!$C$41,'Summary Data'!$A$2:$S$4,15,FALSE),"0.0")," d)") -> Jul 25 (± 2.7 d) | D17: =CONCATENATE(TEXT(VLOOKUP('Producer Inputs'!$C$43,'Summary Data'!$A$2:$S$4,14,FALSE)-1,"mmm d")," (± ",TEXT(VLOOKUP('Producer Inputs'!$C$43,'Summary Data'!$A$2:$S$4,15,FALSE),"0.0")," d)") -> Aug 12 (± 2.6 d)
B18: Earliest date of harvest (R8) | C18: =CONCATENATE(TEXT(VLOOKUP('Producer Inputs'!$C$41,'Summary Data'!$A$2:$S$4,16,FALSE)-1,"mmm d")," (± ",TEXT(VLOOKUP('Producer Inputs'!$C$41,'Summary Data'!$A$2:$S$4,17,FALSE),"0.0")," d)") -> Sep 7 (± 2.6 d) | D18: =CONCATENATE(TEXT(VLOOKUP('Producer Inputs'!$C$43,'Summary Data'!$A$2:$S$4,16,FALSE)-1,"mmm d")," (± ",TEXT(VLOOKUP('Producer Inputs'!$C$43,'Summary Data'!$A$2:$S$4,17,FALSE),"0.0")," d)") -> Sep 28 (± 2.4 d)

Sheet Output 3
B1: MIDSOUTH SOYBEAN GENOTYPE SELECTION DECISION TOOL
B3: OUTPUT INFORMATION: Irrigation requirements
M4: =CONCATENATE('Producer Inputs'!C6," planted ",'Producer Inputs'!C12," on ",VLOOKUP('Producer Inputs'!C9,'Producer Inputs'!N19:O20,2,FALSE)) -> Marianna, AR planted May 23 - 31 on loam
B5: Average expected irrigation needs with 95% confidence intervals (error bars). Early frost years are excluded. Calculated using calibrated crop simulations for 30 years.
L6: Excludes Frost Years
M8: =+'Producer Inputs'!C15 -> MG 3.0-3.4 | N8: =+'Producer Inputs'!C17 -> MG 5.0-5.4
L9: Avg. | M9: =VLOOKUP('Producer Inputs'!$C$41,'Summary Data'!$A$2:$S$4,18,FALSE) -> 7.207349081 | N9: =VLOOKUP('Producer Inputs'!$C$43,'Summary Data'!$A$2:$S$4,18,FALSE) -> 9.07480315
L10: Error | M10: =VLOOKUP('Producer Inputs'!$C$41,'Summary Data'!$A$2:$S$4,19,FALSE) -> 4.97338128 | N10: =VLOOKUP('Producer Inputs'!$C$43,'Summary Data'!$A$2:$S$4,19,FALSE) -> 5.641202534
B17: Irrigation Requirements | C17: =+'Producer Inputs'!C15 -> MG 3.0-3.4 | D17: =+'Producer Inputs'!C17 -> MG 5.0-5.4
B18: Average irrigation requirements and 95% confidence intervals (in inches) | C18: =CONCATENATE(TEXT(VLOOKUP('Producer Inputs'!$C$41,'Summary Data'!$A$2:$S$4,18,FALSE),"0.0")," (± ",TEXT(VLOOKUP('Producer Inputs'!$C$41,'Summary Data'!$A$2:$S$4,19,FALSE),"0.0"),")") -> 7.2 (± 5.0) | D18: =CONCATENATE(TEXT(VLOOKUP('Producer Inputs'!$C$43,'Summary Data'!$A$2:$S$4,18,FALSE),"0.0")," (± ",TEXT(VLOOKUP('Producer Inputs'!$C$43,'Summary Data'!$A$2:$S$4,19,FALSE),"0.0"),")") -> 9.1 (± 5.6)

Sheet Output 4
B1: MIDSOUTH SOYBEAN GENOTYPE SELECTION DECISION TOOL | L1: Depth Choice | M1: Power Choice | N1: Energy Cost Choice | O1: Irrigation Type | P1: 1.1 | Q1: Diesel needed to lift one acre-inch of water 100 ft.
L2: 1 | M2: 1 | N2: 2 | O2: 1 | P2: 17 | Q2: kWh needed to lift one acre-inch of water 100 ft.
B3: OUTPUT INFORMATION: Economic Analysis / Net Returns | L3: 50 ft well | M3: Diesel | N3: =IF($M$2=1,"$1.5/gal","5 ¢/kWh") -> $1.5/gal | O3: Furrow/Flood | P3: 1.5 | Q3: Center pivot addition to energy use
L4: 100 ft well | M4: Electric | N4: =IF($M$2=1,"$2/gal","7 ¢/kWh") -> $2/gal | O4: Center Pivot
B5: Producer Choices | C5: =+'Producer Inputs'!C15 -> MG 3.0-3.4 | D5: =+'Producer Inputs'!C17 -> MG 5.0-5.4 | L5: 150 ft well | N5: =IF($M$2=1,"$2.5/gal","10 ¢/kWh") -> $2.5/gal | P5: 0.5 | Q5: furrow/flood efficiency
B6: Please choose an irrigation cost that most closely represents your cash costs per acre-inch applied | D6: =(L2*50)/100*IF(M2=1,P1*IF(N2=1,1.5,IF(N2=2,2,IF(N2=3,2.5,IF(N2=4,3,IF(N2=5,3.5,4))))),P2*IF(N2 = 1,0.05,IF(N2 = 2,0.07,IF(N2=3,0.1,IF(N2=4,0.13,IF(N2=5,0.17,0.2))))))*IF(O2=2,P3,1) -> 1.1 | L6: 200 ft well | N6: =IF($M$2=1,"$3/gal","13 ¢/kWh") -> $3/gal | P6: 0.75 | Q6: center pivot efficiency
B7: (i.e. fuel/electric, depth to water, irrigation type and energy cost can be selected to see a suggested amount. Enter your own to reflect other charges/savings that apply to your farm) | D7: 0.75 | L7: 250 ft well | N7: =IF($M$2=1,"$3.5/gal","17 ¢/kWh") -> $3.5/gal
B8: Please choose from four different cash markets or Chicago nearby futures to reflect your seasonal market price risk shown below… | L8: 300 ft well | N8: =IF($M$2=1,"$4/gal","20 ¢/kWh") -> $4/gal
B9: Expected Soybean Price ($/bu) … please enter an annual average net of hauling and check off expenses you expect… | C9: 7
B10: =CONCATENATE("Based on the seasonal price pattern for your market as shown in the seasonal index chart, your average expected annual price, and the expected soybean harvest in weeks ",'Output 2'!Q11," (",'Output 2'!C18,") and ",'Output 2'!R11," (",'Output 2'!D18,") for ", 'Output 2'!C15," and ",'Output 2'!D15,", respectively, you can expect the following harvest week dependent prices...") -> Based on the seasonal price pattern for your market as shown in the seasonal index chart, your average expected annual price, and the expected soybean harvest in weeks 36 to 37 (Sep 7 (± 2.6 d)) and 39 to 40 (Sep 28 (± 2.4 d)) for MG 3.0-3.4 and MG 5.0-5.4, respectively, you can expect the following harvest week dependent prices... | C10: =+C9*(VLOOKUP(1+ROUNDDOWN('Output 2'!M11/7,0),'Seasonal Index'!$T$4:$U$55,2,FALSE)) -> 6.777362154 | D10: =+C9*(VLOOKUP(1+ROUNDDOWN('Output 2'!N11/7,0),'Seasonal Index'!$T$4:$U$55,2,FALSE)) -> 6.399863332 | E10: =+D10 -> 6.399863332
B11: Expected Price Range ($/bu) (given your chosen market region and expected harvest date, the MG choice with lesser soybean price risk is highlighted and indicates a range typical in 2 of 3 years). | C11: =CONCATENATE("+/- $",TEXT(+C9*(VLOOKUP(1+ROUNDDOWN('Output 2'!M11/7,0),'Seasonal Index'!$T$4:$V$55,3,FALSE)),"0.00")) -> +/- $0.56 | D11: =CONCATENATE("+/- $",TEXT(+C9*(VLOOKUP(1+ROUNDDOWN('Output 2'!N11/7,0),'Seasonal Index'!$T$4:$V$55,3,FALSE)),"0.00")) -> +/- $0.34 | L11: Market Choice
B12: Expected Partial Returns ($/acre) (this is the expected yield times the expected price less cash irrigation costs adjusted for irrigation efficiency (see comment boxes above). With these returns you still need to cover harvest cost, chemicals, seed, cash rent, labor and equipment costs to earn a profit. The MG choice with the higher number is highlighted as the more profitable choice.) | C12: =VLOOKUP('Producer Inputs'!C41,'Summary Data'!$A$2:$S$4,8,FALSE)*C10-'Output 3'!M9*D7/IF(O2=1,P5,P6) -> 426.7990453 | D12: =VLOOKUP('Producer Inputs'!C43,'Summary Data'!$A$2:$S$4,8,FALSE)*D10-'Output 3'!N9*D7/IF(O2=1,P5,P6) -> 433.0454947 | E12: =+D12 -> 433.0454947 | L12: 3
L13: New Orleans, LA
E14: 0 | L14: Memphis, TN
L15: Old Town, AR
L16: Kansas City, MO
L17: Joplin, MO
L18: Chicago, Futures

Sheet Output 5
B1: MIDSOUTH SOYBEAN GENOTYPE SELECTION DECISION TOOL | K1: Cost Choice
K2: 6 | L2: =VLOOKUP(K2,J3:L11,3,FALSE) -> 425
B3: OUTPUT INFORMATION: Sensitivity and Risk | J3: 1 | K3: $ 300/acre | L3: 300
J4: 2 | K4: $ 325/acre | L4: 325
B5: Sensitivity Analysis | C5: =+'Producer Inputs'!C15 -> MG 3.0-3.4 | D5: =+'Producer Inputs'!C17 -> MG 5.0-5.4 | J5: 3 | K5: $ 350/acre | L5: 350
B6: How much can soybean prices change without affecting the optimal choice? (Holding yield and irrigation variables constant) | C6: =IF('Output 4'!$C$12<'Output 4'!$D$12,CONCATENATE(C5," is less profitable at current $",ROUND('Output 4'!$C$10,2)," per bushel. Price needs to rise to $",ROUND('Output 4'!$C$10+('Output 4'!$D$12-'Output 4'!$C$12)/VLOOKUP('Producer Inputs'!C41,'Summary Data'!$A$2:$X$5,24,FALSE),2)," per bushel to be as profitable as ",D5, " at $",ROUND('Output 4'!D10,2)," per bushel."),CONCATENATE(C5," is more profitable at current $",ROUND('Output 4'!C10,2)," per bushel. Price can drop to $",ROUND('Output 4'!$C$10-('Output 4'!$C$12-'Output 4'!$D$12)/VLOOKUP('Producer Inputs'!C41,'Summary Data'!$A$2:$X$5,24,FALSE),2)," per bushel to be as profitable as ",D5," at $",ROUND('Output 4'!D10,2)," per bushel.")) -> MG 3.0-3.4 is less profitable at current $6.78 per bushel. Price needs to rise to $6.87 per bushel to be as profitable as MG 5.0-5.4 at $6.4 per bushel. | D6: =IF('Output 4'!$D$12<'Output 4'!$C$12,CONCATENATE(D5," would need to rise to $",ROUND('Output 4'!$D$10+('Output 4'!$C$12-'Output 4'!$D$12)/VLOOKUP('Producer Inputs'!C43,'Summary Data'!$A$2:$X$5,24,FALSE),2)," per bushel to be as profitable as ",C5,"."),CONCATENATE(D5," could drop to $",ROUND('Output 4'!$D$10-('Output 4'!$D$12-'Output 4'!$C$12)/VLOOKUP('Producer Inputs'!C43,'Summary Data'!$A$2:$X$5,24,FALSE),2)," per bushel to be as profitable as ",C5,".")) -> MG 5.0-5.4 could drop to $6.31 per bushel to be as profitable as MG 3.0-3.4. | J6: 4 | K6: $ 375/acre | L6: 375 | M6: =IF('Output 3'!M9<'Output 3'!N9,CONCATENATE("less irrigation. Cash irrigation cost would need to rise to $",ROUND('Output 4'!D7+('Output 4'!D12-'Output 4'!C12)/(('Output 3'!N9-'Output 3'!M9)/IF('Output 4'!O2=1,'Output 4'!P5,'Output 4'!P6)),2)," per acre-inch for ",C5," to be as profitable as ",D5,"."),IF(('Output 4'!D12-'Output 4'!C12)/(('Output 3'!M9-'Output 3'!N9)/IF('Output 4'!O2=1,'Output 4'!P5,'Output 4'!P6))>'Output 4'!D7,CONCATENATE("more irrigation. ",D5," is most profitable regardless of cash irrigation cost."),CONCATENATE("more irrigation. Cash irrigation cost would need to drop to $",ROUND('Output 4'!D7-('Output 4'!D12-'Output 4'!C12)/(('Output 3'!M9-'Output 3'!N9)/IF('Output 4'!O2=1,'Output 4'!P5,'Output 4'!P6)),2)," per acre-inch for ",C5," to be as profitable as ",D5,"."))) -> less irrigation. Cash irrigation cost would need to rise to $2.42 per acre-inch for MG 3.0-3.4 to be as profitable as MG 5.0-5.4.
B7: How much can irrigation costs change without modifying the most profitable MG choice? (Holding yields and soybean prices constant) | C7: =IF('Output 4'!C12<'Output 4'!D12,CONCATENATE(C5," is less profitable and uses ",M6),CONCATENATE(C5," is more profitable and uses ",M7)) -> MG 3.0-3.4 is less profitable and uses less irrigation. Cash irrigation cost would need to rise to $2.42 per acre-inch for MG 3.0-3.4 to be as profitable as MG 5.0-5.4. | J7: 5 | K7: $ 400/acre | L7: 400 | M7: =IF('Output 3'!M9>'Output 3'!N9,CONCATENATE("more irrigation. Cash irrigation cost would need to rise to $",ROUND('Output 4'!D7+('Output 4'!C12-'Output 4'!D12)/(('Output 3'!M9-'Output 3'!N9)/IF('Output 4'!O2=1,'Output 4'!P5,'Output 4'!P6)),2)," per acre-inch for ",D5," to be as profitable as ",C5,"."),IF(('Output 4'!C12-'Output 4'!D12)/(('Output 3'!N9-'Output 3'!M9)/IF('Output 4'!O2=1,'Output 4'!P5,'Output 4'!P6))>'Output 4'!D7,CONCATENATE("less irrigation. ",C5," is most profitable regardless of cash irrigation cost."),CONCATENATE("less irrigation. Cash irrigation cost would need to drop to $",ROUND('Output 4'!D7-('Output 4'!C12-'Output 4'!D12)/(('Output 3'!N9-'Output 3'!M9)/IF('Output 4'!O2=1,'Output 4'!P5,'Output 4'!P6)),2)," per acre-inch for ",D5," to be as profitable as ",C5,"."))) -> less irrigation. Cash irrigation cost would need to drop to $2.42 per acre-inch for MG 5.0-5.4 to be as profitable as MG 3.0-3.4.
B8: Risk Analysis | J8: 6 | K8: $ 425/acre | L8: 425
B9: Please choose an amount that most closely reflects per acre costs other than irrigation costs already included previously ... | C9: (e.g. seed, fertilizer, chemicals, fuel, labor, equipment, and rent or land charges) | J9: 7 | K9: $ 450/acre | L9: 450
B10: Likelihood that cash irrigation and other costs can be met or that a profit is earned using all simulated weather years … | C10: =IF(VLOOKUP('Producer Inputs'!C41,'Summary Data'!$A$2:$U$4,21,FALSE)>0.995,"Max.",VLOOKUP('Producer Inputs'!C41,'Summary Data'!$A$2:$U$4,21,FALSE)) -> 0.5333333333 | D10: =IF(VLOOKUP('Producer Inputs'!C43,'Summary Data'!$A$2:$U$4,21,FALSE)>0.995,"Max.",VLOOKUP('Producer Inputs'!C43,'Summary Data'!$A$2:$U$4,21,FALSE)) -> Max. | J10: 8 | K10: $ 475/acre | L10: 475
B11: Percent of time the MG selection is more profitable when compared in the same year across all simulated weather years… | C11: =VLOOKUP('Producer Inputs'!C41,'Summary Data'!$A$2:$V$4,22,FALSE) -> 0.03333333333 | D11: =1-C11 -> 0.9666666667 | J11: 9 | K11: $ 500/acre | L11: 500

Sheet PrintSummary
C1: =CONCATENATE(+'Producer Inputs'!B1," -- Summary Printout of 30 Year Simulations") -> -- Summary Printout of 30 Year Simulations
A3: Location: | B3: =CONCATENATE(+'Producer Inputs'!C6," -- (",'Producer Inputs'!D6," , ",'Producer Inputs'!E6,")") -> Marianna, AR -- (34⁰ 46' N , 90⁰ 45' W) | G3: Cash irrigation cost ($ per acre-inch): | H3: =CONCATENATE("Suggested: $",TEXT('Output 4'!D6,"0.00"), " User specified: $",TEXT('Output 4'!D7,"0.00")) -> Suggested: $1.10 User specified: $0.75
A5: Soil Texture/Irrigation: | B5: =+'Producer Inputs'!C9 -> Silt Loam -- allow 1.5 inch of water deficit | G5: User-specified irrigation cost ($ per acre): | H5: =CONCATENATE(J15,": $",TEXT('Output 4'!D7*'Output 3'!M9/IF('Output 4'!O2=1,0.5,0.75),"0.00")," ",K15,": $",TEXT('Output 4'!D7*'Output 3'!N9/IF('Output 4'!O2=1,0.5,0.75),"0.00")) -> MG 3.0-3.4: $10.81 MG 5.0-5.4: $13.61
A7: Planting Week: | B7: =CONCATENATE(+'Producer Inputs'!C12," with a risk of freezing of ",ROUND('Output 1'!N8*100,0),"%") -> May 23 - 31 with a risk of freezing of 0% | G7: Market (chosen for seasonal price effect): | H7: =+'Seasonal Index'!T1 -> Old Town, AR
A9: Yield Prediction & Risk (incl. early frost years):
D10: =+'Producer Inputs'!C15 -> MG 3.0-3.4 | E10: =+'Producer Inputs'!C17 -> MG 5.0-5.4 | G10: Expected Annual Soybean Price (net of typical $0.25/bu hauling charges) as entered by the user ($/bu): | H10: =+'Output 4'!C9 -> 7 | I10: Seasonally Adj. by Harvest Week:
A11: =+'Output 1'!B16 -> Risk of yields below 30 bu/acre | D11: =+'Output 1'!C16 -> Min. | E11: =+'Output 1'!D16 -> Min. | I11: =CONCATENATE("$",TEXT('Output 4'!C10,"0.00")," for ",'Output 4'!C5) -> $6.78 for MG 3.0-3.4
A12: Average Yield | D12: =VLOOKUP('Producer Inputs'!C41,'Summary Data'!$A$3:$V$4,8,FALSE) -> 64.56937949 | E12: =VLOOKUP('Producer Inputs'!C43,'Summary Data'!$A$3:$V$4,8,FALSE) -> 69.79175589 | I12: =CONCATENATE("$",TEXT('Output 4'!D10,"0.00")," for ",'Output 4'!D5) -> $6.40 for MG 5.0-5.4
A13: =+'Output 1'!B18 -> Probability of yield greater than 60 bu/acre | D13: =+'Output 1'!C18 -> 0.9333333333 | E13: =+'Output 1'!D18 -> Max. | G13: Price Risk ($/bu) … typical 2/3rd of the time | H13: =CONCATENATE('Output 4'!C11," for ",'Output 4'!C5, " and ",'Output 4'!D11," for ",'Output 4'!D5) -> +/- $0.56 for MG 3.0-3.4 and +/- $0.34 for MG 5.0-5.4
A14: 95% Confidence Interval | D14: =IF(D10='Summary Data'!AA7,CONCATENATE(TEXT('Summary Data'!AA8,"0.0")," to ",TEXT('Summary Data'!AA11,"0.0")),CONCATENATE(TEXT('Summary Data'!AB8,"0.0")," to ",TEXT('Summary Data'!AB11,"0.0"))) -> 59.4 to 68.9 | E14: =IF(E10='Summary Data'!AA7,CONCATENATE(TEXT('Summary Data'!AA8,"0.0")," to ",TEXT('Summary Data'!AA11,"0.0")),CONCATENATE(TEXT('Summary Data'!AB8,"0.0")," to ",TEXT('Summary Data'!AB11,"0.0"))) -> 66.7 to 73.6
G15: Economic Analysis: | J15: =+D10 -> MG 3.0-3.4 | K15: =+E10 -> MG 5.0-5.4
A16: Phenology Information (horizontal bars represent 95% confidence interval -- excl. early frost years): | G16: Expected Returns (after irrigation costs but before other costs of seed, fertilizer, chemicals, labor, land and equipment charges) | J16: =+'Output 4'!C12 -> 426.7990453 | K16: =+'Output 4'!D12 -> 433.0454947
G19: User-specified charge for other costs | J19: =+'Output 5'!L2 -> 425
G20: Chance of profit (yield * price - irrigation and other costs) | J20: =+'Output 5'!C10 -> 0.5333333333 | K20: =+'Output 5'!D10 -> Max.
G21: =CONCATENATE("Percent of time that ", J15," outperforms ", K15," when compared in the same year") -> Percent of time that MG 3.0-3.4 outperforms MG 5.0-5.4 when compared in the same year | J21: =+'Output 5'!C11 -> 0.03333333333
A23: Note: (left most is R1, center is R5 and right data points are R8)
D24: =+D10 -> MG 3.0-3.4 | E24: =+E10 -> MG 5.0-5.4 | G24: Sensitivity Analyses:
A25: =+'Output 2'!$B16 -> Day of flowering (R1) | D25: =+'Output 2'!C16 -> Jun 25 (± 2.8 d) | E25: =+'Output 2'!D16 -> Jul 13 (± 3.4 d) | G25: =CONCATENATE("Soybean Price Sensitivity: ",'Output 5'!C6," ",'Output 5'!D6) -> Soybean Price Sensitivity: MG 3.0-3.4 is less profitable at current $6.78 per bushel. Price needs to rise to $6.87 per bushel to be as profitable as MG 5.0-5.4 at $6.4 per bushel. MG 5.0-5.4 could drop to $6.31 per bushel to be as profitable as MG 3.0-3.4.
A26: =+'Output 2'!$B17 -> Date of beginning seed fill (R5) | D26: =+'Output 2'!C17 -> Jul 25 (± 2.7 d) | E26: =+'Output 2'!D17 -> Aug 12 (± 2.6 d)
A27: =+'Output 2'!$B18 -> Earliest date of harvest (R8) | D27: =+'Output 2'!C18 -> Sep 7 (± 2.6 d) | E27: =+'Output 2'!D18 -> Sep 28 (± 2.4 d)
A29: Irrigation (in acre-inches excl. early frost years & excl. adjustment for irrigation efficiency): | G29: =CONCATENATE("Irrigation Cost Sensitivity: ",'Output 5'!C7) -> Irrigation Cost Sensitivity: MG 3.0-3.4 is less profitable and uses less irrigation. Cash irrigation cost would need to rise to $2.42 per acre-inch for MG 3.0-3.4 to be as profitable as MG 5.0-5.4.
D30: =+D24 -> MG 3.0-3.4 | E30: =+E24 -> MG 5.0-5.4
A31: Avg. Amount Needed (± 95% confidence interval) | D31: =+'Output 3'!C18 -> 7.2 (± 5.0) | E31: =+'Output 3'!D18 -> 9.1 (± 5.6)
A33: Disclaimer: The information provided within represents estimates that are a result of a set of complex calculations. Changes in parameter values and its implications on returns and other output are estimates and the user should use their own reasonable judgment to reflect whether the direction of change in output is appropriate before acting on the results. As such, this software is provided ‘as is’ and without warranties as to performance of merchantability. Further, statements may have been made to you about this software. Any such statements do not constitute warranties and shall not be relied on by the user in deciding whether to use the program or act on its results. This program is provided without any expressed or implied warranties whatsoever. Because the diversity of conditions and hardware under which this program may be used, no warranty of merchantability or warranty of fitness for a particular purpose is offered. The user is advised to test the program thoroughly before relying on it. The user assumes the entire risk of using the program. The University of Arkansas will not be liable for any claim or damage brought against the user by any third party, nor will the University of Arkansas be liable for any consequential, indirect or special damages suffered by the user as a result of the software.

Sheet Seasonal Index
T1: =IF('Output 4'!L12=1,'Output 4'!L13,IF('Output 4'!L12=2,'Output 4'!L14,IF('Output 4'!L12=3,'Output 4'!L15,IF('Output 4'!L12=4,'Output 4'!L16,IF('Output 4'!L12=5,'Output 4'!L17,'Output 4'!L18))))) -> Old Town, AR | Y1: Producer Choices
A2: =CONCATENATE("Weekly Seasonal Index Chart for ",T1) -> Weekly Seasonal Index Chart for Old Town, AR | AG2: TRUE
A3: using daily average of high and low prices from 2005 to 2014 for #2 Soybean | T3: Week | U3: Avg. Index | V3: S.E. | W3: Annual Avg. | X3: Axis Label | Y3: =+'Producer Inputs'!C15 -> MG 3.0-3.4 | Z3: Avg. Index | AA3: S.E. | AB3: =+'Producer Inputs'!C17 -> MG 5.0-5.4 | AC3: Avg. Index | AD3: S.E.
T4: 1 | U4: =+HLOOKUP($T$1,Prices!$W$1:$AB$54,'Seasonal Index'!T4+2,FALSE) -> 1.018549308 | V4: =+HLOOKUP($T$1,Prices!$AC$1:$AH$54,T4+2,FALSE) -> 0.06838329539 | W4: 1 | X4: 1900-01-01 | Y4: =1+ROUNDDOWN('Output 2'!M11/7,0) -> 37 | Z4: =VLOOKUP(Y4,'Seasonal Index'!$T$4:$U$55,2,FALSE) -> 0.9681945935 | AA4: =VLOOKUP(Y4,'Seasonal Index'!$T$4:$V$55,3,FALSE) -> 0.08065477415 | AB4: =1+ROUNDDOWN('Output 2'!N11/7,0) -> 40 | AC4: =VLOOKUP(AB4,'Seasonal Index'!$T$4:$U$55,2,FALSE) -> 0.9142661903 | AD4: =VLOOKUP(AB4,'Seasonal Index'!$T$4:$V$55,3,FALSE) -> 0.04831784136
T5: 2 | U5: =+HLOOKUP($T$1,Prices!$W$1:$AB$54,'Seasonal Index'!T5+2,FALSE) -> 1.004303469 | V5: =+HLOOKUP($T$1,Prices!$AC$1:$AH$54,T5+2,FALSE) -> 0.060708744 | W5: 1 | X5: =+X4+7 -> 1900-01-08
T6: 3 | U6: =+HLOOKUP($T$1,Prices!$W$1:$AB$54,'Seasonal Index'!T6+2,FALSE) -> 1.009816785 | V6: =+HLOOKUP($T$1,Prices!$AC$1:$AH$54,T6+2,FALSE) -> 0.05565445371 | W6: 1 | X6: =+X5+7 -> 1900-01-15
T7: 4 | U7: =+HLOOKUP($T$1,Prices!$W$1:$AB$54,'Seasonal Index'!T7+2,FALSE) -> 1.004337722 | V7: =+HLOOKUP($T$1,Prices!$AC$1:$AH$54,T7+2,FALSE) -> 0.04213753121 | W7: 1 | X7: 1900-01-22
T8: 5 | U8: =+HLOOKUP($T$1,Prices!$W$1:$AB$54,'Seasonal Index'!T8+2,FALSE) -> 1.006449366 | V8: =+HLOOKUP($T$1,Prices!$AC$1:$AH$54,T8+2,FALSE) -> 0.0608353587 | W8: 1 | X8: 1900-01-29
T9: 6 | U9: =+HLOOKUP($T$1,Prices!$W$1:$AB$54,'Seasonal Index'!T9+2,FALSE) -> 1.020147752 | V9: =+HLOOKUP($T$1,Prices!$AC$1:$AH$54,T9+2,FALSE) -> 0.06511735307 | W9: 1 | X9: 1900-02-05
T10: 7 | U10: =+HLOOKUP($T$1,Prices!$W$1:$AB$54,'Seasonal Index'!T10+2,FALSE) -> 1.017507708 | V10: =+HLOOKUP($T$1,Prices!$AC$1:$AH$54,T10+2,FALSE) -> 0.05712707173 | W10: 1 | X10: 1900-02-12
T11: 8 | U11: =+HLOOKUP($T$1,Prices!$W$1:$AB$54,'Seasonal Index'!T11+2,FALSE) -> 1.019449903 | V11: =+HLOOKUP($T$1,Prices!$AC$1:$AH$54,T11+2,FALSE) -> 0.06914419148 | W11: 1 | X11: 1900-02-19
T12: 9 | U12: =+HLOOKUP($T$1,Prices!$W$1:$AB$54,'Seasonal Index'!T12+2,FALSE) -> 1.032373416 | V12: =+HLOOKUP($T$1,Prices!$AC$1:$AH$54,T12+2,FALSE) -> 0.0852967418 | W12: 1 | X12: 1900-02-26
T13: 10 | U13: =+HLOOKUP($T$1,Prices!$W$1:$AB$54,'Seasonal Index'!T13+2,FALSE) -> 1.025022734 | V13: =+HLOOKUP($T$1,Prices!$AC$1:$AH$54,T13+2,FALSE) -> 0.06934601776 | W13: 1 | X13: 1900-03-04
T14: 11 | U14: =+HLOOKUP($T$1,Prices!$W$1:$AB$54,'Seasonal Index'!T14+2,FALSE) -> 1.008513269 | V14: =+HLOOKUP($T$1,Prices!$AC$1:$AH$54,T14+2,FALSE) -> 0.0475612966 | W14: 1 | X14: 1900-03-11
T15: 12 | U15: =+HLOOKUP($T$1,Prices!$W$1:$AB$54,'Seasonal Index'!T15+2,FALSE) -> 1.009423984 | V15: =+HLOOKUP($T$1,Prices!$AC$1:$AH$54,T15+2,FALSE) -> 0.03982805614 | W15: 1 | X15: 1900-03-18
T16: 13 | U16: =+HLOOKUP($T$1,Prices!$W$1:$AB$54,'Seasonal Index'!T16+2,FALSE) -> 1.013963748 | V16: =+HLOOKUP($T$1,Prices!$AC$1:$AH$54,T16+2,FALSE) -> 0.04578560481 | W16: 1 | X16: 1900-03-25
T17: 14 | U17: =+HLOOKUP($T$1,Prices!$W$1:$AB$54,'Seasonal Index'!T17+2,FALSE) -> 1.012644344 | V17: =+HLOOKUP($T$1,Prices!$AC$1:$AH$54,T17+2,FALSE) -> 0.06778828998 | W17: 1 | X17: 1900-04-01
T18: 15 | U18: =+HLOOKUP($T$1,Prices!$W$1:$AB$54,'Seasonal Index'!T18+2,FALSE) -> 1.020379648 | V18: =+HLOOKUP($T$1,Prices!$AC$1:$AH$54,T18+2,FALSE) -> 0.07243059117 | W18: 1 | X18: 1900-04-08
T19: 16 | U19: =+HLOOKUP($T$1,Prices!$W$1:$AB$54,'Seasonal Index'!T19+2,FALSE) -> 1.008316557 | V19: =+HLOOKUP($T$1,Prices!$AC$1:$AH$54,T19+2,FALSE) -> 0.05421899462 | W19: 1 | X19: 1900-04-15
T20: 17 | U20: =+HLOOKUP($T$1,Prices!$W$1:$AB$54,'Seasonal Index'!T20+2,FALSE) -> 1.011217587 | V20: =+HLOOKUP($T$1,Prices!$AC$1:$AH$54,T20+2,FALSE) -> 0.05340035683 | W20: 1 | X20: 1900-04-22
T21: 18 | U21: =+HLOOKUP($T$1,Prices!$W$1:$AB$54,'Seasonal Index'!T21+2,FALSE) -> 1.017902402 | V21: =+HLOOKUP($T$1,Prices!$AC$1:$AH$54,T21+2,FALSE) -> 0.06422554355 | W21: 1 | X21: 1900-04-29
T22: 19 | U22: =+HLOOKUP($T$1,Prices!$W$1:$AB$54,'Seasonal Index'!T22+2,FALSE) -> 1.007133722 | V22: =+HLOOKUP($T$1,Prices!$AC$1:$AH$54,T22+2,FALSE) -> 0.07997220269 | W22: 1 | X22: 1900-05-06
T23: 20 | U23: =+HLOOKUP($T$1,Prices!$W$1:$AB$54,'Seasonal Index'!T23+2,FALSE) -> 0.9947438752 | V23: =+HLOOKUP($T$1,Prices!$AC$1:$AH$54,T23+2,FALSE) -> 0.04615142027 | W23: 1 | X23: 1900-05-13
T24: 21 | U24: =+HLOOKUP($T$1,Prices!$W$1:$AB$54,'Seasonal Index'!T24+2,FALSE) -> 0.9980076309 | V24: =+HLOOKUP($T$1,Prices!$AC$1:$AH$54,T24+2,FALSE) -> 0.05940024654 | W24: 1 | X24: 1900-05-20
T25: 22 | U25: =+HLOOKUP($T$1,Prices!$W$1:$AB$54,'Seasonal Index'!T25+2,FALSE) -> 0.9955199993 | V25: =+HLOOKUP($T$1,Prices!$AC$1:$AH$54,T25+2,FALSE) -> 0.06247568817 | W25: 1 | X25: 1900-05-27
T26: 23 | U26: =+HLOOKUP($T$1,Prices!$W$1:$AB$54,'Seasonal Index'!T26+2,FALSE) -> 1.010076435 | V26: =+HLOOKUP($T$1,Prices!$AC$1:$AH$54,T26+2,FALSE) -> 0.07497746519 | W26: 1 | X26: 1900-06-03
T27: 24 | U27: =+HLOOKUP($T$1,Prices!$W$1:$AB$54,'Seasonal Index'!T27+2,FALSE) -> 1.012669894 | V27: =+HLOOKUP($T$1,Prices!$AC$1:$AH$54,T27+2,FALSE) -> 0.1007081958 | W27: 1 | X27: 1900-06-10
T28: 25 | U28: =+HLOOKUP($T$1,Prices!$W$1:$AB$54,'Seasonal Index'!T28+2,FALSE) -> 1.012991393 | V28: =+HLOOKUP($T$1,Prices!$AC$1:$AH$54,T28+2,FALSE) -> 0.1131811154 | W28: 1 | X28: 1900-06-17
T29: 26 | U29: =+HLOOKUP($T$1,Prices!$W$1:$AB$54,'Seasonal Index'!T29+2,FALSE) -> 1.027507081 | V29: =+HLOOKUP($T$1,Prices!$AC$1:$AH$54,T29+2,FALSE) -> 0.1177523195 | W29: 1 | X29: 1900-06-24
T30: 27 | U30: =+HLOOKUP($T$1,Prices!$W$1:$AB$54,'Seasonal Index'!T30+2,FALSE) -> 1.052191796 | V30: =+HLOOKUP($T$1,Prices!$AC$1:$AH$54,T30+2,FALSE) -> 0.1344961177 | W30: 1 | X30: 1900-07-01
T31: 28 | U31: =+HLOOKUP($T$1,Prices!$W$1:$AB$54,'Seasonal Index'!T31+2,FALSE) -> 1.067461643 | V31: =+HLOOKUP($T$1,Prices!$AC$1:$AH$54,T31+2,FALSE) -> 0.1164753824 | W31: 1 | X31: 1900-07-08
T32: 29 | U32: =+HLOOKUP($T$1,Prices!$W$1:$AB$54,'Seasonal Index'!T32+2,FALSE) -> 1.04941389 | V32: =+HLOOKUP($T$1,Prices!$AC$1:$AH$54,T32+2,FALSE) -> 0.1132703792 | W32: 1 | X32: 1900-07-15
T33: 30 | U33: =+HLOOKUP($T$1,Prices!$W$1:$AB$54,'Seasonal Index'!T33+2,FALSE) -> 1.017416849 | V33: =+HLOOKUP($T$1,Prices!$AC$1:$AH$54,T33+2,FALSE) -> 0.1081948282 | W33: 1 | X33: 1900-07-22
T34: 31 | U34: =+HLOOKUP($T$1,Prices!$W$1:$AB$54,'Seasonal Index'!T34+2,FALSE) -> 1.021406634 | V34: =+HLOOKUP($T$1,Prices!$AC$1:$AH$54,T34+2,FALSE) -> 0.09464246376 | W34: 1 | X34: 1900-07-29
T35: 32 | U35: =+HLOOKUP($T$1,Prices!$W$1:$AB$54,'Seasonal Index'!T35+2,FALSE) -> 0.9846899461 | V35: =+HLOOKUP($T$1,Prices!$AC$1:$AH$54,T35+2,FALSE) -> 0.07125889545 | W35: 1 | X35: 1900-08-05
T36: 33 | U36: =+HLOOKUP($T$1,Prices!$W$1:$AB$54,'Seasonal Index'!T36+2,FALSE) -> 0.9799596442 | V36: =+HLOOKUP($T$1,Prices!$AC$1:$AH$54,T36+2,FALSE) -> 0.08387192168 | W36: 1 | X36: 1900-08-12
T37: 34 | U37: =+HLOOKUP($T$1,Prices!$W$1:$AB$54,'Seasonal Index'!T37+2,FALSE) -> 0.9920693993 | V37: =+HLOOKUP($T$1,Prices!$AC$1:$AH$54,T37+2,FALSE) -> 0.1078570061 | W37: 1 | X37: 1900-08-19
T38: 35 | U38: =+HLOOKUP($T$1,Prices!$W$1:$AB$54,'Seasonal Index'!T38+2,FALSE) -> 0.9916316242 | V38: =+HLOOKUP($T$1,Prices!$AC$1:$AH$54,T38+2,FALSE) -> 0.1113731647 | W38: 1 | X38: 1900-08-26
T39: 36 | U39: =+HLOOKUP($T$1,Prices!$W$1:$AB$54,'Seasonal Index'!T39+2,FALSE) -> 0.9813528052 | V39: =+HLOOKUP($T$1,Prices!$AC$1:$AH$54,T39+2,FALSE) -> 0.09575678053 | W39: 1 | X39: 1900-09-02
T40: 37 | U40: =+HLOOKUP($T$1,Prices!$W$1:$AB$54,'Seasonal Index'!T40+2,FALSE) -> 0.9681945935 | V40: =+HLOOKUP($T$1,Prices!$AC$1:$AH$54,T40+2,FALSE) -> 0.08065477415 | W40: 1 | X40: 1900-09-09
T41: 38 | U41: =+HLOOKUP($T$1,Prices!$W$1:$AB$54,'Seasonal Index'!T41+2,FALSE) -> 0.9656330963 | V41: =+HLOOKUP($T$1,Prices!$AC$1:$AH$54,T41+2,FALSE) -> 0.05158708292 | W41: 1 | X41: 1900-09-16
T42: 39 | U42: =+HLOOKUP($T$1,Prices!$W$1:$AB$54,'Seasonal Index'!T42+2,FALSE) -> 0.9576477318 | V42: =+HLOOKUP($T$1,Prices!$AC$1:$AH$54,T42+2,FALSE) -> 0.052259394 | W42: 1 | X42: 1900-09-23
T43: 40 | U43: =+HLOOKUP($T$1,Prices!$W$1:$AB$54,'Seasonal Index'!T43+2,FALSE) -> 0.9142661903 | V43: =+HLOOKUP($T$1,Prices!$AC$1:$AH$54,T43+2,FALSE) -> 0.04831784136 | W43: 1 | X43: 1900-09-30
T44: 41 | U44: =+HLOOKUP($T$1,Prices!$W$1:$AB$54,'Seasonal Index'!T44+2,FALSE) -> 0.9273343538 | V44: =+HLOOKUP($T$1,Prices!$AC$1:$AH$54,T44+2,FALSE) -> 0.0636242235 | W44: 1 | X44: 1900-10-07
T45: 42 | U45: =+HLOOKUP($T$1,Prices!$W$1:$AB$54,'Seasonal Index'!T45+2,FALSE) -> 0.9425523913 | V45: =+HLOOKUP($T$1,Prices!$AC$1:$AH$54,T45+2,FALSE) -> 0.08101089672 | W45: 1 | X45: 1900-10-14
T46: 43 | U46: =+HLOOKUP($T$1,Prices!$W$1:$AB$54,'Seasonal Index'!T46+2,FALSE) -> 0.9555800447 | V46: =+HLOOKUP($T$1,Prices!$AC$1:$AH$54,T46+2,FALSE) -> 0.08085526101 | W46: 1 | X46: 1900-10-21
T47: 44 | U47: =+HLOOKUP($T$1,Prices!$W$1:$AB$54,'Seasonal Index'!T47+2,FALSE) -> 0.9652103344 | V47: =+HLOOKUP($T$1,Prices!$AC$1:$AH$54,T47+2,FALSE) -> 0.07179904119 | W47: 1 | X47: 1900-10-28
T48: 45 | U48: =+HLOOKUP($T$1,Prices!$W$1:$AB$54,'Seasonal Index'!T48+2,FALSE) -> 0.9682328436 | V48: =+HLOOKUP($T$1,Prices!$AC$1:$AH$54,T48+2,FALSE) -> 0.08183080915 | W48: 1 | X48: 1900-11-04
T49: 46 | U49: =+HLOOKUP($T$1,Prices!$W$1:$AB$54,'Seasonal Index'!T49+2,FALSE) -> 0.9613400567 | V49: =+HLOOKUP($T$1,Prices!$AC$1:$AH$54,T49+2,FALSE) -> 0.07042258176 | W49: 1 | X49: 1900-11-11
T50: 47 | U50: =+HLOOKUP($T$1,Prices!$W$1:$AB$54,'Seasonal Index'!T50+2,FALSE) -> 0.9634078567 | V50: =+HLOOKUP($T$1,Prices!$AC$1:$AH$54,T50+2,FALSE) -> 0.08134192846 | W50: 1 | X50: 1900-11-18
T51: 48 | U51: =+HLOOKUP($T$1,Prices!$W$1:$AB$54,'Seasonal Index'!T51+2,FALSE) -> 0.976100947 | V51: =+HLOOKUP($T$1,Prices!$AC$1:$AH$54,T51+2,FALSE) -> 0.09225064808 | W51: 1 | X51: 1900-11-25
T52: 49 | U52: =+HLOOKUP($T$1,Prices!$W$1:$AB$54,'Seasonal Index'!T52+2,FALSE) -> 0.9749102749 | V52: =+HLOOKUP($T$1,Prices!$AC$1:$AH$54,T52+2,FALSE) -> 0.09987049441 | W52: 1 | X52: 1900-12-02
T53: 50 | U53: =+HLOOKUP($T$1,Prices!$W$1:$AB$54,'Seasonal Index'!T53+2,FALSE) -> 0.9876389786 | V53: =+HLOOKUP($T$1,Prices!$AC$1:$AH$54,T53+2,FALSE) -> 0.09168071675 | W53: 1 | X53: 1900-12-09
T54: 51 | U54: =+HLOOKUP($T$1,Prices!$W$1:$AB$54,'Seasonal Index'!T54+2,FALSE) -> 0.9937865916 | V54: =+HLOOKUP($T$1,Prices!$AC$1:$AH$54,T54+2,FALSE) -> 0.07894446288 | W54: 1 | X54: 1900-12-16
T55: 52 | U55: =+HLOOKUP($T$1,Prices!$W$1:$AB$54,'Seasonal Index'!T55+2,FALSE) -> 1.011118311 | V55: =+HLOOKUP($T$1,Prices!$AC$1:$AH$54,T55+2,FALSE) -> 0.07133641018 | W55: 1 | X55: 1900-12-23
W56: 1 | X56: 1900-12-30

Sheet Yields
B1: MIDSOUTH SOYBEAN GENOTYPE SELECTION DECISION TOOL
B3: Yield Comparisons | V3: =CONCATENATE("Simulated Yields for ",'Producer Inputs'!C6," planted between ",'Producer Inputs'!C12) -> Simulated Yields for Marianna, AR planted between May 23 - 31
G22: Irrigation is not adjusted for irrigation efficiency & shown without error bars

Sheet Profits
B1: MIDSOUTH SOYBEAN GENOTYPE SELECTION DECISION TOOL
B3: =CONCATENATE("Yield and Profit Comparisons for ",'Producer Inputs'!C6," planted between ",'Producer Inputs'!C12," on ",VLOOKUP('Producer Inputs'!C9,'Producer Inputs'!N19:O20,2,FALSE)) -> Yield and Profit Comparisons for Marianna, AR planted between May 23 - 31 on loam
H4: Description | J4: =+'Output 5'!C5 -> MG 3.0-3.4 | K4: =+'Output 5'!D5 -> MG 5.0-5.4
H5: Avg. Harvest Date | J5: =+'Output 2'!M11 -> 1900-09-08T20:00:00 | K5: =+'Output 2'!N11 -> 1900-09-29T00:48:00
H6: Avg. Acre-inch applied | J6: =+'Output 3'!M9/IF('Output 4'!O2=1,'Output 4'!P5,'Output 4'!P6) -> 14.41469816 | K6: =+'Output 3'!N9/IF('Output 4'!O2=1,'Output 4'!P5,'Output 4'!P6) -> 18.1496063
H7: Irrigation ($/acre) | J7: =+J6*'Output 4'!$D$7 -> 10.81102362 | K7: =+K6*'Output 4'!$D$7 -> 13.61220472
H8: Price ($/bu) | J8: =+'Output 4'!C10 -> 6.777362154 | K8: =+'Output 4'!D10 -> 6.399863332
H9: Avg. Yield (bu/acre) | J9: =IF(J4='Summary Data'!T8,AVERAGEIF('Summary Data'!J10:J39,">0"),AVERAGEIF('Summary Data'!J41:J70,">0")) -> 64.56937949 | K9: =IF(K4='Summary Data'!T8,AVERAGEIF('Summary Data'!J10:J39,">0"),AVERAGEIF('Summary Data'!J41:J70,">0")) -> 69.79175589
H10: Other Costs ($/acre) | J10: =+PrintSummary!J19 -> 425
H11: Exp. Net Returns ($/acre) | J11: =IF(J4='Summary Data'!T8,AVERAGE('Summary Data'!N10:N39),AVERAGE('Summary Data'!N41:N70)) -> 1.799045292 | K11: =IF(K4='Summary Data'!T8,AVERAGE('Summary Data'!N10:N39),AVERAGE('Summary Data'!N41:N70)) -> 34.39180031
H12: Range of Net Returns | J12: =IF(J4='Summary Data'!T8,CONCATENATE("(",TEXT(MIN('Summary Data'!N10:N39),"$0")," to ",TEXT(MAX('Summary Data'!N10:N39),"$0"),")"),CONCATENATE("(",TEXT(MIN('Summary Data'!N41:N70),"$0")," to ",TEXT(MAX('Summary Data'!N41:N70),"$0"),")")) -> (-$34 to $37) | K12: =IF(K4='Summary Data'!V8,CONCATENATE("(",TEXT(MIN('Summary Data'!N41:N70),"$0")," to ",TEXT(MAX('Summary Data'!N41:N70),"$0"),")"),CONCATENATE("(",TEXT(MIN('Summary Data'!N10:N39),"$0")," to ",TEXT(MAX('Summary Data'!N10:N39),"$0"),")")) -> ($9 to $65)
H13: Avg. Returns per Acre-Inch | J13: =+J11/J6 -> 0.1248063103 | K13: =+K11/K6 -> 1.894906134
H14: Above information excludes early frost years.
B17: =+'Summary Data'!AG37 -> Annual Net Return Difference (MG 5.0-5.4 - MG 3.0-3.4) in $/acre
B28: Disclaimer: The information provided within represents estimates that are a result of a set of complex calculations. Changes in parameter values and its implications on returns and other output are estimates and the user should use their own reasonable judgment to reflect whether the direction of change in output is appropriate before acting on the results. As such, this software is provided ‘as is’ and without warranties as to performance of merchantability. Further, statements may have been made to you about this software. Any such statements do not constitute warranties and shall not be relied on by the user in deciding whether to use the program or act on its results. This program is provided without any expressed or implied warranties whatsoever. Because the diversity of conditions and hardware under which this program may be used, no warranty of merchantability or warranty of fitness for a particular purpose is offered. The user is advised to test the program thoroughly before relying on it. The user assumes the entire risk of using the program. The University of Arkansas will not be liable for any claim or damage brought against the user by any third party, nor will the University of Arkansas be liable for any consequential, indirect or special damages suffered by the user as a result of the software.

Sheet Summary Data
A1: Code | B1: Location ID | C1: Soil ID | D1: Plant DOY | E1: MG ID | F1: Freeze_E | G1: Freeze_M | H1: Yield | I1: Y<30 | J1: Ymedian | K1: Y>60 | L1: Avg R1 | M1: CI R1 | N1: Avg R5 | O1: CI R5 | P1: Avg R8 | Q1: CI R8 | R1: Avg Irr | S1: CI Irr | T1: Harvest Week | U1: Profit Likelihood | V1: Annual Profit Compare | W1: Avg Profit | X1: Yield excluding frost years
A2: 1 | B2: 2 | C2: 3 | D2: 4 | E2: 5 | F2: 6 | G2: 7 | H2: 8 | I2: 9 | J2: 10 | K2: 11 | L2: 12 | M2: 13 | N2: 14 | O2: 15 | P2: 16 | Q2: 17 | R2: 18 | S2: 19 | T2: 20 | U2: 21 | V2: 22 | W2: 23 | X2: 24
A3: =CONCATENATE(B3,C3,D3,E3) -> Loc08loam147rm3.0 | B3: =B10 -> Loc08 | C3: =D10 -> loam | D3: =E10 -> 147 | E3: =F10 -> rm3.0 | F3: =SUM(L10:L39)/30 -> 0 | G3: =SUM(M10:M39)/30 -> 0 | H3: =SUM(J10:J39)/30 -> 64.56937949 | I3: =COUNTIF(J10:J39,"<30")/30 -> 0 | J3: =MEDIAN(J10:J39) -> 64.23762783 | K3: =COUNTIF(J10:J39,">60")/30 -> 0.9333333333 | L3: =AVERAGE(G10:G39) -> 178.3666667 | M3: =STDEV(G10:G39)*1.96 -> 2.841864047 | N3: =AVERAGE(H10:H39)+7 -> 208 | O3: =STDEV(H10:H39)*1.96 -> 2.674569898 | P3: =AVERAGE(I10:I39) -> 252.8333333 | Q3: =STDEV(I10:I39)*1.96 -> 2.628776211 | R3: =AVERAGE(K10:K39) -> 7.207349081 | S3: =STDEV(K10:K39)*1.96 -> 4.97338128 | T3: =1+ROUNDDOWN(P3/7,0) -> 37 | U3: =SUM(O10:O39)/30 -> 0.5333333333 | V3: =SUM(P10:P39)/COUNT(P10:P39) -> 0.03333333333 | W3: =AVERAGE(N10:N39) -> 1.799045292 | X3: =SUM(J10:J39)/COUNTIF(J10:J39,">0") -> 64.56937949
A4: =CONCATENATE(B4,C4,D4,E4) -> Loc08loam147rm5.0 | B4: =B41 -> Loc08 | C4: =D41 -> loam | D4: =E41 -> 147 | E4: =F41 -> rm5.0 | F4: =SUM(L41:L70)/30 -> 0 | G4: =SUM(M41:M70)/30 -> 0 | H4: =SUM(J41:J70)/30 -> 69.79175589 | I4: =COUNTIF(J41:J70,"<30")/30 -> 0 | J4: =MEDIAN(J41:J69) -> 69.66784864 | K4: =COUNTIF(J41:J70,">60")/30 -> 1 | L4: =AVERAGE(G41:G70) -> 196.2 | M4: =STDEV(G41:G70)*1.96 -> 3.429758612 | N4: =AVERAGE(H41:H70)+7 -> 226.8 | O4: =STDEV(H41:H70)*1.96 -> 2.59411323 | P4: =AVERAGE(I41:I70) -> 273.0333333 | Q4: =STDEV(I41:I70)*1.96 -> 2.385738855 | R4: =AVERAGE(K41:K70) -> 9.07480315 | S4: =STDEV(K41:K70)*1.96 -> 5.641202534 | T4: =1+ROUNDDOWN(P4/7,0) -> 40 | U4: =SUM(O41:O70)/30 -> 1 | V4: =1-V3 -> 0.9666666667 | W4: =AVERAGE(N41:N70) -> 34.39180031 | X4: =SUM(J41:J70)/COUNTIF(J41:J70,">0") -> 69.79175589
Z5: For Box Plot | AD5: CDF plot | AE5: TRUE
X6: For CDF Plot
T7: =CONCATENATE(T8," yield (top)") -> MG 3.0-3.4 yield (top) | V7: =CONCATENATE(V8," yield (top)") -> MG 5.0-5.4 yield (top) | AA7: =+T8 -> MG 3.0-3.4 | AB7: =+V8 -> MG 5.0-5.4
T8: =VLOOKUP(F10,'Producer Inputs'!S23:T30,2,FALSE) -> MG 3.0-3.4 | V8: =VLOOKUP(F41,'Producer Inputs'!S23:T30,2,FALSE) -> MG 5.0-5.4 | X8: Min Yield | Y8: =ROUNDDOWN(MIN(T39,V39),0)-1 -> 58 | Z8: Min | AA8: =MIN(W10:W39) -> 59.37269815 | AB8: =MIN(X10:X39) -> 66.72148278
B9: Location ID | C9: Year | D9: Soil ID | E9: Plant DOY | F9: MG ID | G9: R1 | H9: R5 | I9: R8 | J9: Yield | K9: Irr | L9: Freeze_E | M9: Freeze_M | N9: Profit | O9: Profit > 0 | P9: Annual | Q9: Price | R9: =IF(A10='Producer Inputs'!C41,'Output 4'!C10,'Output 4'!D10) -> 6.777362154 | T9: Sorted Yield Data | U9: Probability | X9: Max Yield | Y9: =ROUNDUP(MAX(T10,V10),0)+1 -> 75 | Z9: 25th Percentile | AA9: =PERCENTILE(W10:W39,0.25) -> 62.4646693 | AB9: =PERCENTILE(X10:X39,0.25) -> 68.56296144
A10: =CONCATENATE(B10,D10,E10,F10) -> Loc08loam147rm3.0 | B10: Loc08 | C10: 1985 | D10: loam | E10: 147 | F10: rm3.0 | G10: 179 | H10: 202 | I10: 254 | J10: 64.2718879 | K10: 6.141732283 | L10: 0 | M10: 0 | N10: =IF(L10=1,"",+J10*$R$9-K10*'Output 4'!$D$7/IF('Output 4'!$O$2=1,'Output 4'!$P$5,'Output 4'!$P$6)-'Output 5'!$L$2) -> 1.381262232 | O10: =IF(L10=1,"",IF(N10>0,1,0)) -> 1 | P10: =IF(L10=1,"",IF(N10>N41,1,0)) -> 0 | T10: 68.91412714 | U10: =0.975-0.5*(0.95/30) -> 0.9591666667 | V10: 73.60775648 | W10: =IF(T10>0,T10,"") -> 68.91412714 | X10: =IF(V10>0,V10,"") -> 73.60775648 | Z10: 75th Percentile | AA10: =PERCENTILE(W10:W39,0.75) -> 66.6315501 | AB10: =PERCENTILE(X10:X39,0.75) -> 70.99114377
B11: Loc08 | C11: 1986 | D11: loam | E11: 147 | F11: rm3.0 | G11: 177 | H11: 200 | I11: 253 | J11: 63.15843569 | K11: 9.527559055 | L11: 0 | M11: 0 | N11: =IF(L11=1,"",+J11*$R$9-K11*'Output 4'!$D$7/IF('Output 4'!$O$2=1,'Output 4'!$P$5,'Output 4'!$P$6)-'Output 5'!$L$2) -> -11.24374683 | O11: =IF(L11=1,"",IF(N11>0,1,0)) -> 0 | P11: =IF(L11=1,"",IF(N11>N42,1,0)) -> 0 | T11: 68.45161622 | U11: =+U10-0.95/30 -> 0.9275 | V11: 72.88829505 | W11: =IF(T11>0,T11,"") -> 68.45161622 | X11: =IF(V11>0,V11,"") -> 72.88829505 | Z11: Max | AA11: =MAX(W10:W39) -> 68.91412714 | AB11: =MAX(X10:X39) -> 73.60775648
B12: Loc08 | C12: 1987 | D12: loam | E12: 147 | F12: rm3.0 | G12: 177 | H12: 200 | I12: 252 | J12: 59.37269815 | K12: 7.598425197 | L12: 0 | M12: 0 | N12: =IF(L12=1,"",+J12*$R$9-K12*'Output 4'!$D$7/IF('Output 4'!$O$2=1,'Output 4'!$P$5,'Output 4'!$P$6)-'Output 5'!$L$2) -> -34.00736033 | O12: 0 | P12: 0 | T12: 68.19466571 | U12: =+U11-0.95/30 -> 0.8958333333 | V12: 72.59708447 | W12: 68.19466571 | X12: 72.59708447
B13: Loc08 | C13: 1988 | D13: loam | E13: 147 | F13: rm3.0 | G13: 182 | H13: 204 | I13: 255 | J13: 62.88435514 | K13: 7.598425197 | L13: 0 | M13: 0 | N13: =IF(L13=1,"",+J13*$R$9-K13*'Output 4'!$D$7/IF('Output 4'!$O$2=1,'Output 4'!$P$5,'Output 4'!$P$6)-'Output 5'!$L$2) -> -10.20758916 | O13: 0 | P13: 0 | T13: 68.0404954 | U13: 0.8641666667 | V13: 72.25448379 | W13: 68.0404954 | X13: 72.25448379
B14: Loc08 | C14: 1989 | D14: loam | E14: 147 | F14: rm3.0 | G14: 179 | H14: 201 | I14: 253 | J14: 61.17135173 | K14: 6.220472441 | L14: 0 | M14: 0 | N14: =IF(L14=1,"",+J14*$R$9-K14*'Output 4'!$D$7/IF('Output 4'!$O$2=1,'Output 4'!$P$5,'Output 4'!$P$6)-'Output 5'!$L$2) -> -19.7503045 | O14: 0 | P14: 0 | T14: 67.76641486 | U14: 0.8325 | V14: 72.11744351 | W14: 67.76641486 | X14: 72.11744351 | AA14: =+AA7 -> MG 3.0-3.4 | AB14: =+AB7 -> MG 5.0-5.4
B15: Loc08 | C15: 1990 | D15: loam | E15: 147 | F15: rm3.0 | G15: 180 | H15: 204 | I15: 255 | J15: 66.63583261 | K15: 7.874015748 | L15: 0 | M15: 0 | N15: =IF(L15=1,"",+J15*$R$9-K15*'Output 4'!$D$7/IF('Output 4'!$O$2=1,'Output 4'!$P$5,'Output 4'!$P$6)-'Output 5'!$L$2) -> 14.80414641 | O15: 1 | P15: 0 | T15: 67.56085445 | U15: 0.8008333333 | V15: 71.53502235 | W15: 67.56085445 | X15: 71.53502235 | Z15: Series 1 | AA15: =+AA8 -> 59.37269815 | AB15: =+AB8 -> 66.72148278
B16: Loc08 | C16: 1991 | D16: loam | E16: 147 | F16: rm3.0 | G16: 177 | H16: 200 | I16: 253 | J16: 68.0404954 | K16: 9.606299213 | L16: 0 | M16: 0 | N16: =IF(L16=1,"",+J16*$R$9-K16*'Output 4'!$D$7/IF('Output 4'!$O$2=1,'Output 4'!$P$5,'Output 4'!$P$6)-'Output 5'!$L$2) -> 21.72562968 | O16: 1 | P16: 0 | T16: 67.01269336 | U16: 0.7691666667 | V16: 71.39798208 | W16: 67.01269336 | X16: 71.39798208 | Z16: Series 2 | AA16: =+AA9-AA8 -> 3.091971153 | AB16: 1.841478665
B17: Loc08 | C17: 1992 | D17: loam | E17: 147 | F17: rm3.0 | G17: 183 | H17: 205 | I17: 258 | J17: 68.91412714 | K17: 3.070866142 | L17: 0 | M17: 0 | N17: =IF(L17=1,"",+J17*$R$9-K17*'Output 4'!$D$7/IF('Output 4'!$O$2=1,'Output 4'!$P$5,'Output 4'!$P$6)-'Output 5'!$L$2) -> 37.44969797 | O17: 1 | P17: 1 | T17: 66.63583261 | U17: 0.7375 | V17: 71.03825137 | W17: 66.63583261 | X17: 71.03825137 | Z17: Series 3 | AA17: 4.166880792 | AB17: 2.428182332
B18: Loc08 | C18: 1993 | D18: loam | E18: 147 | F18: rm3.0 | G18: 179 | H18: 201 | I18: 253 | J18: 62.73018483 | K18: 8.031496063 | L18: 0 | M18: 0 | N18: =IF(L18=1,"",+J18*$R$9-K18*'Output 4'!$D$7/IF('Output 4'!$O$2=1,'Output 4'!$P$5,'Output 4'!$P$6)-'Output 5'!$L$2) -> -11.90206346 | O18: 0 | P18: 0 | T18: 66.61870257 | U18: 0.7058333333 | V18: 70.84982099 | W18: 66.61870257 | X18: 70.84982099 | Z18: Series 5 | AA18: 2.282577042 | AB18: 2.616612707
B19: Loc08 | C19: 1994 | D19: loam | E19: 147 | F19: rm3.0 | G19: 178 | H19: 200 | I19: 253 | J19: 68.19466571 | K19: 3.149606299 | L19: 0 | M19: 0 | N19: =IF(L19=1,"",+J19*$R$9-K19*'Output 4'!$D$7/IF('Output 4'!$O$2=1,'Output 4'!$P$5,'Output 4'!$P$6)-'Output 5'!$L$2) -> 32.45553705 | O19: 1 | P19: 0 | T19: 66.5844425 | U19: 0.6741666667 | V19: 70.18174966 | W19: 66.5844425 | X19: 70.18174966
B20: Loc08 | C20: 1995 | D20: loam | E20: 147 | F20: rm3.0 | G20: 178 | H20: 201 | I20: 252 | J20: 59.71529883 | K20: 7.716535433 | L20: 0 | M20: 0 | N20: =IF(L20=1,"",+J20*$R$9-K20*'Output 4'!$D$7/IF('Output 4'!$O$2=1,'Output 4'!$P$5,'Output 4'!$P$6)-'Output 5'!$L$2) -> -31.86259679 | O20: 0 | P20: 0 | T20: 66.32749199 | U20: 0.6425 | V20: 70.16461963 | W20: 66.32749199 | X20: 70.16461963
B21: Loc08 | C21: 1996 | D21: loam | E21: 147 | F21: rm3.0 | G21: 178 | H21: 200 | I21: 252 | J21: 62.54175446 | K21: 4.68503937 | L21: 0 | M21: 0 | N21: =IF(L21=1,"",+J21*$R$9-K21*'Output 4'!$D$7/IF('Output 4'!$O$2=1,'Output 4'!$P$5,'Output 4'!$P$6)-'Output 5'!$L$2) -> -8.159439317 | O21: 0 | P21: 0 | T21: 65.95063124 | U21: 0.6108333333 | V21: 70.11322953 | W21: 65.95063124 | X21: 70.11322953 | AD21: Box Plot
B22: Loc08 | C22: 1997 | D22: loam | E22: 147 | F22: rm3.0 | G22: 180 | H22: 202 | I22: 254 | J22: 62.43897425 | K22: 6.023622047 | L22: 0 | M22: 0 | N22: =IF(L22=1,"",+J22*$R$9-K22*'Output 4'!$D$7/IF('Output 4'!$O$2=1,'Output 4'!$P$5,'Output 4'!$P$6)-'Output 5'!$L$2) -> -10.863892 | O22: 0 | P22: 0 | T22: 65.76220087 | U22: 0.5791666667 | V22: 69.95905922 | W22: 65.76220087 | X22: 69.95905922
B23: Loc08 | C23: 1998 | D23: loam | E23: 147 | F23: rm3.0 | G23: 178 | H23: 201 | I23: 252 | J23: 62.28480395 | K23: 10.86614173 | L23: 0 | M23: 0 | N23: =IF(L23=1,"",+J23*$R$9-K23*'Output 4'!$D$7/IF('Output 4'!$O$2=1,'Output 4'!$P$5,'Output 4'!$P$6)-'Output 5'!$L$2) -> -19.17253953 | O23: 0 | P23: 0 | T23: 64.49457834 | U23: 0.5475 | V23: 69.82201895 | W23: 64.49457834 | X23: 69.82201895
B24: Loc08 | C24: 1999 | D24: loam | E24: 147 | F24: rm3.0 | G24: 178 | H24: 200 | I24: 252 | J24: 63.03852545 | K24: 7.874015748 | L24: 0 | M24: 0 | N24: =IF(L24=1,"",+J24*$R$9-K24*'Output 4'!$D$7/IF('Output 4'!$O$2=1,'Output 4'!$P$5,'Output 4'!$P$6)-'Output 5'!$L$2) -> -9.576106986 | O24: 0 | P24: 0 | T24: 64.2718879 | U24: 0.5158333333 | V24: 69.70210871 | W24: 64.2718879 | X24: 69.70210871
B25: Loc08 | C25: 2000 | D25: loam | E25: 147 | F25: rm3.0 | G25: 178 | H25: 201 | I25: 253 | J25: 62.38758415 | K25: 12.12598425 | L25: 0 | M25: 0 | N25: =IF(L25=1,"",+J25*$R$9-K25*'Output 4'!$D$7/IF('Output 4'!$O$2=1,'Output 4'!$P$5,'Output 4'!$P$6)-'Output 5'!$L$2) -> -20.36572464 | O25: 0 | P25: 0 | T25: 64.20336776 | U25: 0.4841666667 | V25: 69.66784864 | W25: 64.20336776 | X25: 69.66784864
B26: Loc08 | C26: 2001 | D26: loam | E26: 147 | F26: rm3.0 | G26: 178 | H26: 201 | I26: 252 | J26: 62.09637357 | K26: 7.755905512 | L26: 0 | M26: 0 | N26: =IF(L26=1,"",+J26*$R$9-K26*'Output 4'!$D$7/IF('Output 4'!$O$2=1,'Output 4'!$P$5,'Output 4'!$P$6)-'Output 5'!$L$2) -> -15.78424609 | O26: 0 | P26: 0 | T26: 64.04919746 | U26: 0.4525 | V26: 69.56506843 | W26: 64.04919746 | X26: 69.56506843
B27: Loc08 | C27: 2002 | D27: loam | E27: 147 | F27: rm3.0 | G27: 178 | H27: 201 | I27: 252 | J27: 64.04919746 | K27: 6.141732283 | L27: 0 | M27: 0 | N27: =IF(L27=1,"",+J27*$R$9-K27*'Output 4'!$D$7/IF('Output 4'!$O$2=1,'Output 4'!$P$5,'Output 4'!$P$6)-'Output 5'!$L$2) -> -0.1279915496 | O27: 0 | P27: 0 | T27: 63.15843569 | U27: 0.4208333333 | V27: 69.27385785 | W27: 63.15843569 | X27: 69.27385785
B28: Loc08 | C28: 2003 | D28: loam | E28: 147 | F28: rm3.0 | G28: 180 | H28: 202 | I28: 253 | J28: 62.42184422 | K28: 4.763779528 | L28: 0 | M28: 0 | N28: =IF(L28=1,"",+J28*$R$9-K28*'Output 4'!$D$7/IF('Output 4'!$O$2=1,'Output 4'!$P$5,'Output 4'!$P$6)-'Output 5'!$L$2) -> -9.090224666 | O28: 0 | P28: 0 | T28: 63.03852545 | U28: 0.3891666667 | V28: 69.20533772 | W28: 63.03852545 | X28: 69.20533772
B29: Loc08 | C29: 2004 | D29: loam | E29: 147 | F29: rm3.0 | G29: 178 | H29: 200 | I29: 253 | J29: 66.5844425 | K29: 6.062992126 | L29: 0 | M29: 0 | N29: =IF(L29=1,"",+J29*$R$9-K29*'Output 4'!$D$7/IF('Output 4'!$O$2=1,'Output 4'!$P$5,'Output 4'!$P$6)-'Output 5'!$L$2) -> 17.17239251 | O29: 1 | P29: 0 | T29: 62.88435514 | U29: 0.3575 | V29: 69.13681758 | W29: 62.88435514 | X29: 69.13681758
B30: Loc08 | C30: 2005 | D30: loam | E30: 147 | F30: rm3.0 | G30: 179 | H30: 201 | I30: 252 | J30: 64.20336776 | K30: 6.25984252 | L30: 0 | M30: 0 | N30: =IF(L30=1,"",+J30*$R$9-K30*'Output 4'!$D$7/IF('Output 4'!$O$2=1,'Output 4'!$P$5,'Output 4'!$P$6)-'Output 5'!$L$2) -> 0.7397110987 | O30: 1 | P30: 0 | T30: 62.73018483 | U30: 0.3258333333 | V30: 68.86273704 | W30: 62.73018483 | X30: 68.86273704
B31: Loc08 | C31: 2006 | D31: loam | E31: 147 | F31: rm3.0 | G31: 178 | H31: 201 | I31: 252 | J31: 65.95063124 | K31: 9.251968504 | L31: 0 | M31: 0 | N31: =IF(L31=1,"",+J31*$R$9-K31*'Output 4'!$D$7/IF('Output 4'!$O$2=1,'Output 4'!$P$5,'Output 4'!$P$6)-'Output 5'!$L$2) -> 8.093359486 | O31: 1 | P31: 0 | T31: 62.54175446 | U31: 0.2941666667 | V31: 68.845607 | W31: 62.54175446 | X31: 68.845607
B32: Loc08 | C32: 2007 | D32: loam | E32: 147 | F32: rm3.0 | G32: 177 | H32: 199 | I32: 251 | J32: 64.49457834 | K32: 7.913385827 | L32: 0 | M32: 0 | N32: =IF(L32=1,"",+J32*$R$9-K32*'Output 4'!$D$7/IF('Output 4'!$O$2=1,'Output 4'!$P$5,'Output 4'!$P$6)-'Output 5'!$L$2) -> 0.2330356986 | O32: 1 | P32: 0 | T32: 62.43897425 | U32: 0.2625 | V32: 68.46874625 | W32: 62.43897425 | X32: 68.46874625
B33: Loc08 | C33: 2008 | D33: loam | E33: 147 | F33: rm3.0 | G33: 177 | H33: 200 | I33: 252 | J33: 67.76641486 | K33: 6.220472441 | L33: 0 | M33: 0 | N33: =IF(L33=1,"",+J33*$R$9-K33*'Output 4'!$D$7/IF('Output 4'!$O$2=1,'Output 4'!$P$5,'Output 4'!$P$6)-'Output 5'!$L$2) -> 24.94682672 | O33: 1 | P33: 0 | T33: 62.42184422 | U33: 0.2308333333 | V33: 67.9377152 | W33: 62.42184422 | X33: 67.9377152
B34: Loc08 | C34: 2009 | D34: loam | E34: 147 | F34: rm3.0 | G34: 178 | H34: 201 | I34: 253 | J34: 68.45161622 | K34: 3.070866142 | L34: 0 | M34: 0 | N34: =IF(L34=1,"",+J34*$R$9-K34*'Output 4'!$D$7/IF('Output 4'!$O$2=1,'Output 4'!$P$5,'Output 4'!$P$6)-'Output 5'!$L$2) -> 34.31509396 | O34: 1 | P34: 0 | T34: 62.38758415 | U34: 0.1991666667 | V34: 67.86919506 | W34: 62.38758415 | X34: 67.86919506
B35: Loc08 | C35: 2010 | D35: loam | E35: 147 | F35: rm3.0 | G35: 177 | H35: 200 | I35: 252 | J35: 65.76220087 | K35: 10.86614173 | L35: 0 | M35: 0 | N35: =IF(L35=1,"",+J35*$R$9-K35*'Output 4'!$D$7/IF('Output 4'!$O$2=1,'Output 4'!$P$5,'Output 4'!$P$6)-'Output 5'!$L$2) -> 4.395038751 | O35: 1 | P35: 0 | T35: 62.28480395 | U35: 0.1675 | V35: 67.66363465 | W35: 62.28480395 | X35: 67.66363465
B36: Loc08 | C36: 2011 | D36: loam | E36: 147 | F36: rm3.0 | G36: 177 | H36: 200 | I36: 252 | J36: 67.01269336 | K36: 6.299212598 | L36: 0 | M36: 0 | N36: =IF(L36=1,"",+J36*$R$9-K36*'Output 4'!$D$7/IF('Output 4'!$O$2=1,'Output 4'!$P$5,'Output 4'!$P$6)-'Output 5'!$L$2) -> 19.72047292 | O36: 1 | P36: 0 | T36: 62.09637357 | U36: 0.1358333333 | V36: 67.61224455 | W36: 62.09637357 | X36: 67.61224455
B37: Loc08 | C37: 2012 | D37: loam | E37: 147 | F37: rm3.0 | G37: 178 | H37: 202 | I37: 253 | J37: 66.32749199 | K37: 12.5984252 | L37: 0 | M37: 0 | N37: =IF(L37=1,"",+J37*$R$9-K37*'Output 4'!$D$7/IF('Output 4'!$O$2=1,'Output 4'!$P$5,'Output 4'!$P$6)-'Output 5'!$L$2) -> 5.62779623 | O37: 1 | P37: 0 | T37: 61.17135173 | U37: 0.1041666667 | V37: 67.44094421 | W37: 61.17135173 | X37: 67.44094421 | AA37: =CONCATENATE("Annual Yield Difference (MG",IF(H3>H4,CONCATENATE(RIGHT(A3,3)," - MG",RIGHT(A4,3)),CONCATENATE(RIGHT(A4,3)," - MG",RIGHT(A3,3))),")") -> Annual Yield Difference (MG5.0 - MG3.0) | AG37: =CONCATENATE("Annual Net Return Difference (",IF(W3>W4,CONCATENATE(T8," - ",V8),CONCATENATE(V8," - ",T8)),") in $/acre") -> Annual Net Return Difference (MG 5.0-5.4 - MG 3.0-3.4) in $/acre
B38: Loc08 | C38: 2013 | D38: loam | E38: 147 | F38: rm3.0 | G38: 178 | H38: 200 | I38: 252 | J38: 67.56085445 | K38: 7.755905512 | L38: 0 | M38: 0 | N38: =IF(L38=1,"",+J38*$R$9-K38*'Output 4'!$D$7/IF('Output 4'!$O$2=1,'Output 4'!$P$5,'Output 4'!$P$6)-'Output 5'!$L$2) -> 21.25051978 | O38: 1 | P38: 0 | T38: 59.71529883 | U38: 0.0725 | V38: 67.25251383 | W38: 59.71529883 | X38: 67.25251383
B39: Loc08 | C39: 2014 | D39: loam | E39: 147 | F39: rm3.0 | G39: 177 | H39: 200 | I39: 252 | J39: 66.61870257 | K39: 3.149606299 | L39: 0 | M39: 0 | N39: =IF(L39=1,"",+J39*$R$9-K39*'Output 4'!$D$7/IF('Output 4'!$O$2=1,'Output 4'!$P$5,'Output 4'!$P$6)-'Output 5'!$L$2) -> 21.77466414 | O39: 1 | P39: 0 | T39: 59.37269815 | U39: 0.04083333333 | V39: 66.72148278 | W39: 59.37269815 | X39: 66.72148278 | AA39: Bin | AG39: Bin | AK39: =IF(W3>W4,CONCATENATE(V8," > ",T8," (bottom)"),CONCATENATE(V8," < ",T8," (bottom)")) -> MG 5.0-5.4 < MG 3.0-3.4 (bottom) | AL39: =IF(W3>W4,CONCATENATE(V8," < ",T8," (bottom)"),CONCATENATE(V8," > ",T8," (bottom)")) -> MG 5.0-5.4 > MG 3.0-3.4 (bottom)
B40: Location ID | C40: Year | D40: Soil ID | E40: Plant DOY | F40: MG ID | G40: R1 | H40: R5 | I40: R8 | J40: Yield | K40: Irr | L40: Freeze_E | M40: Freeze_M | N40: Profit | O40: Profit > 0 | Q40: Price | R40: =IF(A41='Producer Inputs'!C43,'Output 4'!D10,'Output 4'!C10) -> 6.399863332 | T40: π Diff | U40: Yield Diff | W40: Max Y Diff | X40: Min Y Diff | Y40: Bin | AA40: =+X41-0.5*$Y$41 -> -0.5464480874 | AB40: X | AD40: 0 | AG40: =+ROUNDUP(X44/Y44,0)*Y44 -> -7 | AJ40: 0
A41: =CONCATENATE(B41,D41,E41,F41) -> Loc08loam147rm5.0 | B41: Loc08 | C41: 1985 | D41: loam | E41: 147 | F41: rm5.0 | G41: 198 | H41: 221 | I41: 274 | J41: 69.82201895 | K41: 7.795275591 | L41: 0 | M41: 0 | N41: =IF(L41=1,"",+J41*$R$9-K41*'Output 4'!$D$7/IF('Output 4'!$O$2=1,'Output 4'!$P$5,'Output 4'!$P$6)-'Output 5'!$L$2) -> 36.51619537 | O41: =IF(L41=1,"",IF(N41>0,1,0)) -> 1 | T41: =IFERROR(IF($W$3>$W$4,N10-N41,N41-N10),"") -> 35.13493313 | U41: =IF($H$3>$H$4,J10-J41,J41-J10) -> 5.550131045 | W41: =+MAX(U41:U70) -> 9.490038885 | X41: =MIN(U41:U70) -> -0.06852013636 | Y41: =+(W41-X41)/10 -> 0.9558559022 | AA41: =+AA40+$Y$41 -> 0.4094078147 | AB41: =CONCATENATE(TEXT(AA40,"0.0")," to < ",TEXT(AA41,"0.0")) -> -0.5 to < 0.4 | AC41: =(AD41-AD40)/30 -> 0.03333333333 | AD41: =COUNTIF($U$41:$U$70,"<"&AA41) -> 1 | AG41: =+AG40+$Y$44 -> 0 | AH41: =CONCATENATE(TEXT(AG40,"$0")," to < ",TEXT(AG41,"$0")) -> -$7 to < $0 | AI41: =(AJ41-AJ40)/30 -> 0.03333333333 | AJ41: =COUNTIF($T$41:$T$70,"<"&AG41) -> 1 | AK41: =IF(AG41<=0,AI41,"") -> 0.03333333333 | AL41: =IF(AG41>0,AI41,"") -> 
B42: Loc08 | C42: 1986 | D42: loam | E42: 147 | F42: rm5.0 | G42: 194 | H42: 220 | I42: 274 | J42: 71.53502235 | K42: 12.55905512 | L42: 0 | M42: 0 | N42: =IF(L42=1,"",+J42*$R$9-K42*'Output 4'!$D$7/IF('Output 4'!$O$2=1,'Output 4'!$P$5,'Output 4'!$P$6)-'Output 5'!$L$2) -> 40.98017055 | O42: 1 | T42: =IFERROR(IF($W$3>$W$4,N11-N42,N42-N11),"") -> 52.22391738 | U42: =IF($H$3>$H$4,J11-J42,J42-J11) -> 8.376586669 | AA42: =+AA41+$Y$41 -> 1.365263717 | AB42: =CONCATENATE(TEXT(AA41,"0.0")," to < ",TEXT(AA42,"0.0")) -> 0.4 to < 1.4 | AC42: 0 | AD42: 1 | AG42: =+AG41+$Y$44 -> 7 | AH42: =CONCATENATE(TEXT(AG41,"$0")," to < ",TEXT(AG42,"$0")) -> $0 to < $7 | AI42: 0.03333333333 | AJ42: =COUNTIF($T$41:$T$70,"<"&AG42) -> 2 | AK42: =IF(AG42<=0,AI42,"") ->  | AL42: =IF(AG42>0,AI42,"") -> 0.03333333333
B43: Loc08 | C43: 1987 | D43: loam | E43: 147 | F43: rm5.0 | G43: 195 | H43: 219 | I43: 273 | J43: 68.86273704 | K43: 9.566929134 | L43: 0 | M43: 0 | N43: =IF(L43=1,"",+J43*$R$9-K43*'Output 4'!$D$7/IF('Output 4'!$O$2=1,'Output 4'!$P$5,'Output 4'!$P$6)-'Output 5'!$L$2) -> 27.35731415 | O43: 1 | T43: 61.36467448 | U43: 9.490038885 | W43: Max π Diff | X43: Min π Diff | Y43: Bin | AA43: 2.321119619 | AB43: 1.4 to < 2.3 | AC43: 0.1 | AD43: 4 | AG43: 14 | AH43: $7 to < $14 | AI43: 0.1 | AJ43: 5 | AK43: =IF(AG43<=0,AI43,"") ->  | AL43: 0.1
B44: Loc08 | C44: 1988 | D44: loam | E44: 147 | F44: rm5.0 | G44: 200 | H44: 222 | I44: 275 | J44: 68.46874625 | K44: 9.37007874 | L44: 0 | M44: 0 | N44: =IF(L44=1,"",+J44*$R$9-K44*'Output 4'!$D$7/IF('Output 4'!$O$2=1,'Output 4'!$P$5,'Output 4'!$P$6)-'Output 5'!$L$2) -> 24.98237151 | O44: 1 | T44: 35.18996067 | U44: 5.584391113 | W44: =MAX(T41:T70) -> 61.36467448 | X44: =MIN(T41:T70) -> -2.885645621 | Y44: =ROUNDUP((W44-X44)/10,0) -> 7 | AA44: 3.276975521 | AB44: 2.3 to < 3.3 | AC44: 0.03333333333 | AD44: 5 | AG44: 21 | AH44: $14 to < $21 | AI44: 0 | AJ44: 5 | AL44: 0
B45: Loc08 | C45: 1989 | D45: loam | E45: 147 | F45: rm5.0 | G45: 196 | H45: 219 | I45: 273 | J45: 67.66363465 | K45: 6.141732283 | L45: 0 | M45: 0 | N45: =IF(L45=1,"",+J45*$R$9-K45*'Output 4'!$D$7/IF('Output 4'!$O$2=1,'Output 4'!$P$5,'Output 4'!$P$6)-'Output 5'!$L$2) -> 24.36835829 | O45: 1 | T45: 44.11866279 | U45: 6.49228292 | AA45: 4.232831423 | AB45: 3.3 to < 4.2 | AC45: 0.1666666667 | AD45: 10 | AG45: 28 | AH45: $21 to < $28 | AI45: 0.1666666667 | AJ45: 10 | AL45: 0.1666666667
B46: Loc08 | C46: 1990 | D46: loam | E46: 147 | F46: rm5.0 | G46: 200 | H46: 223 | I46: 275 | J46: 69.27385785 | K46: 10.62992126 | L46: 0 | M46: 0 | N46: =IF(L46=1,"",+J46*$R$9-K46*'Output 4'!$D$7/IF('Output 4'!$O$2=1,'Output 4'!$P$5,'Output 4'!$P$6)-'Output 5'!$L$2) -> 28.54914063 | O46: 1 | T46: 13.74499422 | U46: 2.63802525 | AA46: 5.188687325 | AB46: 4.2 to < 5.2 | AC46: 0.1 | AD46: 13 | AG46: 35 | AH46: $28 to < $35 | AI46: 0.1666666667 | AJ46: 15 | AL46: 0.1666666667
B47: Loc08 | C47: 1991 | D47: loam | E47: 147 | F47: rm5.0 | G47: 195 | H47: 220 | I47: 273 | J47: 70.11322953 | K47: 12.5984252 | L47: 0 | M47: 0 | N47: =IF(L47=1,"",+J47*$R$9-K47*'Output 4'!$D$7/IF('Output 4'!$O$2=1,'Output 4'!$P$5,'Output 4'!$P$6)-'Output 5'!$L$2) -> 31.28511052 | O47: 1 | T47: 9.559480837 | U47: 2.072734125 | AA47: 6.144543228 | AB47: 5.2 to < 6.1 | AC47: 0.2 | AD47: 19 | AG47: 42 | AH47: $35 to < $42 | AI47: 0.2 | AJ47: 21 | AL47: 0.2
B48: Loc08 | C48: 1992 | D48: loam | E48: 147 | F48: rm5.0 | G48: 201 | H48: 224 | I48: 277 | J48: 68.845607 | K48: 4.68503937 | L48: 0 | M48: 0 | N48: =IF(L48=1,"",+J48*$R$9-K48*'Output 4'!$D$7/IF('Output 4'!$O$2=1,'Output 4'!$P$5,'Output 4'!$P$6)-'Output 5'!$L$2) -> 34.56405235 | O48: 1 | T48: -2.885645621 | U48: -0.06852013636 | AA48: 7.10039913 | AB48: 6.1 to < 7.1 | AC48: 0.2 | AD48: 25 | AG48: 49 | AH48: $42 to < $49 | AI48: 0.1666666667 | AJ48: 26 | AL48: 0.1666666667
B49: Loc08 | C49: 1993 | D49: loam | E49: 147 | F49: rm5.0 | G49: 196 | H49: 220 | I49: 274 | J49: 69.56506843 | K49: 9.448818898 | L49: 0 | M49: 0 | N49: =IF(L49=1,"",+J49*$R$9-K49*'Output 4'!$D$7/IF('Output 4'!$O$2=1,'Output 4'!$P$5,'Output 4'!$P$6)-'Output 5'!$L$2) -> 32.29443373 | O49: 1 | T49: 44.1964972 | U49: 6.834883601 | AA49: 8.056255032 | AB49: 7.1 to < 8.1 | AC49: 0.06666666667 | AD49: 27 | AG49: 56 | AH49: $49 to < $56 | AI49: 0.1 | AJ49: 29 | AL49: 0.1
B50: Loc08 | C50: 1994 | D50: loam | E50: 147 | F50: rm5.0 | G50: 195 | H50: 219 | I50: 273 | J50: 73.60775648 | K50: 6.220472441 | L50: 0 | M50: 0 | N50: =IF(L50=1,"",+J50*$R$9-K50*'Output 4'!$D$7/IF('Output 4'!$O$2=1,'Output 4'!$P$5,'Output 4'!$P$6)-'Output 5'!$L$2) -> 64.53571438 | O50: 1 | T50: 32.08017732 | U50: 5.413090772 | AA50: 9.012110934 | AB50: 8.1 to < 9.0 | AC50: 0.06666666667 | AD50: 29 | AG50: 63 | AH50: $56 to < $63 | AI50: 0.03333333333 | AJ50: 30 | AL50: 0.03333333333
B51: Loc08 | C51: 1995 | D51: loam | E51: 147 | F51: rm5.0 | G51: 197 | H51: 219 | I51: 272 | J51: 66.72148278 | K51: 9.291338583 | L51: 0 | M51: 0 | N51: =IF(L51=1,"",+J51*$R$9-K51*'Output 4'!$D$7/IF('Output 4'!$O$2=1,'Output 4'!$P$5,'Output 4'!$P$6)-'Output 5'!$L$2) -> 13.25864438 | O51: 1 | T51: 45.12124117 | U51: 7.006183942 | AA51: 9.967966836 | AB51: 9.0 to < 10.0 | AC51: 0.03333333333 | AD51: 30 | AG51: 70 | AH51: $63 to < $70 | AI51: 0 | AJ51: 30 | AL51: 0
B52: Loc08 | C52: 1996 | D52: loam | E52: 147 | F52: rm5.0 | G52: 196 | H52: 219 | I52: 272 | J52: 69.66784864 | K52: 6.25984252 | L52: 0 | M52: 0 | N52: =IF(L52=1,"",+J52*$R$9-K52*'Output 4'!$D$7/IF('Output 4'!$O$2=1,'Output 4'!$P$5,'Output 4'!$P$6)-'Output 5'!$L$2) -> 37.77447697 | O52: 1 | T52: 45.93391629 | U52: 7.126094181
B53: Loc08 | C53: 1997 | D53: loam | E53: 147 | F53: rm5.0 | G53: 198 | H53: 221 | I53: 274 | J53: 71.03825137 | K53: 7.834645669 | L53: 0 | M53: 0 | N53: =IF(L53=1,"",+J53*$R$9-K53*'Output 4'!$D$7/IF('Output 4'!$O$2=1,'Output 4'!$P$5,'Output 4'!$P$6)-'Output 5'!$L$2) -> 44.69998782 | O53: 1 | T53: 55.56387983 | U53: 8.599277113
B54: Loc08 | C54: 1998 | D54: loam | E54: 147 | F54: rm5.0 | G54: 195 | H54: 219 | I54: 272 | J54: 67.61224455 | K54: 12.63779528 | L54: 0 | M54: 0 | N54: =IF(L54=1,"",+J54*$R$9-K54*'Output 4'!$D$7/IF('Output 4'!$O$2=1,'Output 4'!$P$5,'Output 4'!$P$6)-'Output 5'!$L$2) -> 14.27597447 | O54: 1 | T54: 33.448514 | U54: 5.327440602
B55: Loc08 | C55: 1999 | D55: loam | E55: 147 | F55: rm5.0 | G55: 195 | H55: 219 | I55: 273 | J55: 69.70210871 | K55: 11.1023622 | L55: 0 | M55: 0 | N55: =IF(L55=1,"",+J55*$R$9-K55*'Output 4'!$D$7/IF('Output 4'!$O$2=1,'Output 4'!$P$5,'Output 4'!$P$6)-'Output 5'!$L$2) -> 30.74289033 | O55: 1 | T55: 40.31899732 | U55: 6.663583261
B56: Loc08 | C56: 2000 | D56: loam | E56: 147 | F56: rm5.0 | G56: 196 | H56: 220 | I56: 273 | J56: 67.44094421 | K56: 15.31496063 | L56: 0 | M56: 0 | N56: =IF(L56=1,"",+J56*$R$9-K56*'Output 4'!$D$7/IF('Output 4'!$O$2=1,'Output 4'!$P$5,'Output 4'!$P$6)-'Output 5'!$L$2) -> 9.099261989 | O56: 1 | T56: 29.46498663 | U56: 5.053360056
B57: Loc08 | C57: 2001 | D57: loam | E57: 147 | F57: rm5.0 | G57: 196 | H57: 219 | I57: 272 | J57: 67.9377152 | K57: 9.330708661 | L57: 0 | M57: 0 | N57: =IF(L57=1,"",+J57*$R$9-K57*'Output 4'!$D$7/IF('Output 4'!$O$2=1,'Output 4'!$P$5,'Output 4'!$P$6)-'Output 5'!$L$2) -> 21.44243684 | O57: 1 | T57: 37.22668293 | U57: 5.841341624
B58: Loc08 | C58: 2002 | D58: loam | E58: 147 | F58: rm5.0 | G58: 196 | H58: 219 | I58: 271 | J58: 67.86919506 | K58: 7.716535433 | L58: 0 | M58: 0 | N58: =IF(L58=1,"",+J58*$R$9-K58*'Output 4'!$D$7/IF('Output 4'!$O$2=1,'Output 4'!$P$5,'Output 4'!$P$6)-'Output 5'!$L$2) -> 23.3993109 | O58: 1 | T58: 23.52730245 | U58: 3.819997602
B59: Loc08 | C59: 2003 | D59: loam | E59: 147 | F59: rm5.0 | G59: 197 | H59: 220 | I59: 273 | J59: 70.16461963 | K59: 6.102362205 | L59: 0 | M59: 0 | N59: =IF(L59=1,"",+J59*$R$9-K59*'Output 4'!$D$7/IF('Output 4'!$O$2=1,'Output 4'!$P$5,'Output 4'!$P$6)-'Output 5'!$L$2) -> 41.37749434 | O59: 1 | T59: 50.46771901 | U59: 7.742775408
B60: Loc08 | C60: 2004 | D60: loam | E60: 147 | F60: rm5.0 | G60: 195 | H60: 220 | I60: 274 | J60: 72.88829505 | K60: 7.716535433 | L60: 0 | M60: 0 | N60: =IF(L60=1,"",+J60*$R$9-K60*'Output 4'!$D$7/IF('Output 4'!$O$2=1,'Output 4'!$P$5,'Output 4'!$P$6)-'Output 5'!$L$2) -> 57.41556921 | O60: 1 | T60: 40.2431767 | U60: 6.303852545
B61: Loc08 | C61: 2005 | D61: loam | E61: 147 | F61: rm5.0 | G61: 197 | H61: 220 | I61: 272 | J61: 69.13681758 | K61: 9.37007874 | L61: 0 | M61: 0 | N61: =IF(L61=1,"",+J61*$R$9-K61*'Output 4'!$D$7/IF('Output 4'!$O$2=1,'Output 4'!$P$5,'Output 4'!$P$6)-'Output 5'!$L$2) -> 29.51013285 | O61: 1 | T61: 28.77042175 | U61: 4.933449818
B62: Loc08 | C62: 2006 | D62: loam | E62: 147 | F62: rm5.0 | G62: 196 | H62: 220 | I62: 273 | J62: 72.59708447 | K62: 9.448818898 | L62: 0 | M62: 0 | N62: =IF(L62=1,"",+J62*$R$9-K62*'Output 4'!$D$7/IF('Output 4'!$O$2=1,'Output 4'!$P$5,'Output 4'!$P$6)-'Output 5'!$L$2) -> 52.84350445 | O62: 1 | T62: 44.75014497 | U62: 6.646453226
B63: Loc08 | C63: 2007 | D63: loam | E63: 147 | F63: rm5.0 | G63: 194 | H63: 218 | I63: 272 | J63: 69.20533772 | K63: 7.874015748 | L63: 0 | M63: 0 | N63: =IF(L63=1,"",+J63*$R$9-K63*'Output 4'!$D$7/IF('Output 4'!$O$2=1,'Output 4'!$P$5,'Output 4'!$P$6)-'Output 5'!$L$2) -> 32.21861312 | O63: 1 | T63: 31.98557742 | U63: 4.710759374
B64: Loc08 | C64: 2008 | D64: loam | E64: 147 | F64: rm5.0 | G64: 195 | H64: 219 | I64: 273 | J64: 69.95905922 | K64: 7.637795276 | L64: 0 | M64: 0 | N64: =IF(L64=1,"",+J64*$R$9-K64*'Output 4'!$D$7/IF('Output 4'!$O$2=1,'Output 4'!$P$5,'Output 4'!$P$6)-'Output 5'!$L$2) -> 37.6811874 | O64: 1 | T64: 12.73436067 | U64: 2.192644363
B65: Loc08 | C65: 2009 | D65: loam | E65: 147 | F65: rm5.0 | G65: 196 | H65: 219 | I65: 272 | J65: 72.25448379 | K65: 4.566929134 | L65: 0 | M65: 0 | N65: =IF(L65=1,"",+J65*$R$9-K65*'Output 4'!$D$7/IF('Output 4'!$O$2=1,'Output 4'!$P$5,'Output 4'!$P$6)-'Output 5'!$L$2) -> 57.8444102 | O65: 1 | T65: 23.52931624 | U65: 3.802867568
B66: Loc08 | C66: 2010 | D66: loam | E66: 147 | F66: rm5.0 | G66: 194 | H66: 219 | I66: 272 | J66: 67.25251383 | K66: 13.8976378 | L66: 0 | M66: 0 | N66: =IF(L66=1,"",+J66*$R$9-K66*'Output 4'!$D$7/IF('Output 4'!$O$2=1,'Output 4'!$P$5,'Output 4'!$P$6)-'Output 5'!$L$2) -> 9.948185349 | O66: 1 | T66: 5.553146598 | U66: 1.490312966
B67: Loc08 | C67: 2011 | D67: loam | E67: 147 | F67: rm5.0 | G67: 195 | H67: 218 | I67: 272 | J67: 70.84982099 | K67: 7.795275591 | L67: 0 | M67: 0 | N67: =IF(L67=1,"",+J67*$R$9-K67*'Output 4'!$D$7/IF('Output 4'!$O$2=1,'Output 4'!$P$5,'Output 4'!$P$6)-'Output 5'!$L$2) -> 43.48198205 | O67: 1 | T67: 23.76150913 | U67: 3.837127636
B68: Loc08 | C68: 2012 | D68: loam | E68: 147 | F68: rm5.0 | G68: 197 | H68: 220 | I68: 273 | J68: 70.18174966 | K68: 14.13385827 | L68: 0 | M68: 0 | N68: =IF(L68=1,"",+J68*$R$9-K68*'Output 4'!$D$7/IF('Output 4'!$O$2=1,'Output 4'!$P$5,'Output 4'!$P$6)-'Output 5'!$L$2) -> 29.44634669 | O68: 1 | T68: 23.81855046 | U68: 3.85425767
B69: Loc08 | C69: 2013 | D69: loam | E69: 147 | F69: rm5.0 | G69: 196 | H69: 219 | I69: 272 | J69: 71.39798208 | K69: 10.62992126 | L69: 0 | M69: 0 | N69: =IF(L69=1,"",+J69*$R$9-K69*'Output 4'!$D$7/IF('Output 4'!$O$2=1,'Output 4'!$P$5,'Output 4'!$P$6)-'Output 5'!$L$2) -> 42.94509978 | O69: 1 | T69: 21.69458 | U69: 3.837127636
B70: Loc08 | C70: 2014 | D70: loam | E70: 147 | F70: rm5.0 | G70: 195 | H70: 220 | I70: 273 | J70: 72.11744351 | K70: 4.566929134 | L70: 0 | M70: 0 | N70: =IF(L70=1,"",+J70*$R$9-K70*'Output 4'!$D$7/IF('Output 4'!$O$2=1,'Output 4'!$P$5,'Output 4'!$P$6)-'Output 5'!$L$2) -> 56.91563865 | O70: 1 | T70: 35.14097451 | U70: 5.498740942
A72: Plant DOY | B72: Year | C72: =+'Producer Inputs'!P23 -> 78 | D72: =+'Producer Inputs'!P24 -> 86 | E72: =+'Producer Inputs'!P25 -> 94 | F72: =+'Producer Inputs'!P26 -> 101 | G72: =+'Producer Inputs'!P27 -> 109 | H72: =+'Producer Inputs'!P28 -> 117 | I72: =+'Producer Inputs'!P29 -> 124 | J72: =+'Producer Inputs'!P30 -> 131 | K72: =+'Producer Inputs'!P31 -> 139 | L72: =+'Producer Inputs'!P32 -> 147 | M72: =+'Producer Inputs'!P33 -> 155 | N72: =+'Producer Inputs'!P34 -> 162 | O72: =+'Producer Inputs'!P35 -> 170 | P72: =+'Producer Inputs'!P36 -> 178 | T72: Min Yield | U72: =ROUNDDOWN(MIN(C73:P102,C107:P136)-MAX(C104:P104,C138:P138),0)-1 -> -29 | V72: Max Yield | W72: =ROUNDDOWN(MAX(C73:P102,C107:P136)+MAX(C138:P138,C104:P104),0)-1 -> 111 | X72: Axis Tick
A73: =+'Producer Inputs'!D41 -> Loc08loamrm3.0 | B73: =+C41 -> 1985 | E73: 61.47969234 | F73: 66.67009267 | G73: 71.72345273 | H73: 72.37439403 | I73: 72.37439403 | J73: 71.55215239 | K73: 69.95905922 | L73: 67.42381417 | M73: 60.14354969 | N73: 54.07951762 | O73: 50.85907121 | P73: 44.50382856
A74: Yields | B74: =+C42 -> 1986 | C74: 63.24408586 | D74: 60.38337016 | E74: 63.79224695 | F74: 67.54372441 | G74: 67.73215479 | H74: 70.67852065 | I74: 67.42381417 | J74: 68.07475547 | K74: 68.99977731 | L74: 66.60157254 | M74: 62.74731487 | N74: 60.02363945 | O74: 54.35359816 | P74: 47.75853504
B75: 1987 | D75: 68.89699711 | E75: 68.26318584 | F75: 68.7428268 | G75: 69.53080837 | H75: 67.49233431 | I75: 71.24381178 | J75: 73.02533532 | K75: 70.21600973 | L75: 67.50946434 | M75: 64.61448858 | N75: 59.08148757 | O75: 54.43924833 | P75: 48.59790671
B76: 1988 | C76: 57.3342241 | D76: 60.77736095 | E76: 66.08767151 | F76: 71.0553814 | G76: 74.41286808 | H76: 75.59484043 | I76: 74.68694863 | J76: 71.77484283 | K76: 70.23313976 | L76: 65.64229063 | M76: 63.02139541 | N76: 57.11153365 | O76: 51.81835312 | P76: 45.17189989
B77: 1989 | E77: 73.77905682 | F77: 73.17950563 | G77: 76.07448139 | H77: 76.09161142 | I77: 75.37214999 | J77: 73.74479675 | K77: 70.49009028 | L77: 65.36821008 | M77: 61.03431146 | N77: 55.94669133 | O77: 52.14382377 | P77: 44.65799887
B78: 1990 | D78: 64.58022851 | E78: 65.64229063 | F78: 67.21825376 | G78: 69.6507186 | H78: 72.25448379 | I78: 72.71699471 | J78: 73.45358617 | K78: 71.14103157 | L78: 68.91412714 | M78: 64.51170838 | N78: 61.03431146 | O78: 55.79252103 | P78: 47.82705518
B79: 1991 | D79: 62.19915378 | E79: 63.34686606 | F79: 64.95708926 | G79: 65.71081076 | H79: 68.46874625 | I79: 70.07896946 | J79: 73.35080597 | K79: 72.75125477 | L79: 69.46228823 | M79: 64.83717903 | N79: 60.14354969 | O79: 54.09664765 | P79: 46.42239238
B80: 1992 | C80: 63.08991555 | D80: 64.44318824 | E80: 66.12193158 | F80: 65.36821008 | G80: 76.77681279 | H80: 77.42775408 | I80: 75.28649982 | J80: 71.74058276 | K80: 69.5479384 | L80: 67.35529404 | M80: 64.34040804 | N80: 59.01296744 | O80: 54.01099748 | P80: 47.5872347
B81: 1993 | C81: 62.23341384 | D81: 61.9079432 | E81: 68.53726639 | F81: 68.52013636 | G81: 68.55439642 | H81: 70.45583021 | I81: 69.97618925 | J81: 68.19466571 | K81: 66.10480155 | L81: 65.04273944 | M81: 59.81807904 | N81: 55.34714014 | O81: 50.27665005 | P81: 44.82929921
B82: 1994 | C82: 65.35108005 | D82: 67.9377152 | E82: 68.58865649 | F82: 70.93547116 | G82: 73.77905682 | H82: 76.17726159 | I82: 73.64201655 | J82: 72.49430426 | K82: 70.62713055 | L82: 67.1839937 | M82: 63.55242647 | N82: 60.89727119 | O82: 53.65126677 | P82: 46.01127156
B83: 1995 | C83: 64.70013875 | D83: 65.64229063 | E83: 67.92058516 | F83: 71.55215239 | G83: 73.60775648 | H83: 73.76192679 | I83: 73.74479675 | J83: 73.45358617 | K83: 72.63134454 | L83: 68.55439642 | M83: 63.82650701 | N83: 58.75601692 | O83: 54.30220806 | P83: 47.48445449
B84: 1996 | D84: 69.6507186 | E84: 70.86695103 | F84: 72.32300392 | G84: 73.04246535 | H84: 75.30362985 | I84: 77.82174487 | J84: 75.86892098 | K84: 74.39573805 | L84: 69.82201895 | M84: 65.69368073 | N84: 61.89081316 | O84: 54.55915857 | P84: 46.67934289
B85: 1997 | F85: 78.91806705 | G85: 79.89447899 | H85: 77.65044452 | I85: 76.29717183 | J85: 73.3165459 | K85: 69.94192918 | L85: 67.61224455 | M85: 64.11771759 | N85: 59.21852784 | O85: 54.93601932 | P85: 45.56589068
B86: 1998 | C86: 72.15170358 | D86: 72.76838481 | E86: 74.10452747 | F86: 75.23510972 | G86: 77.65044452 | H86: 76.65690255 | I86: 80.61394042 | J86: 79.19214759 | K86: 75.6291005 | L86: 73.02533532 | M86: 68.845607 | N86: 63.31260599 | O86: 57.69395481 | P86: 49.07754766
B87: 1999 | C87: 64.56309848 | D87: 70.26739983 | E87: 73.52210631 | F87: 73.72766672 | G87: 79.05510732 | H87: 78.60972643 | I87: 76.79394282 | J87: 75.92031108 | K87: 75.50919026 | L87: 71.60354249 | M87: 64.18623773 | N87: 56.92310328 | O87: 47.98122548 | P87: 39.75880912
B88: 2000 | E88: 73.48784624 | F88: 75.18371962 | G88: 74.96102917 | H88: 73.72766672 | I88: 75.83466091 | J88: 76.65690255 | K88: 74.70407866 | L88: 71.50076229 | M88: 64.88856913 | N88: 60.57180054 | O88: 52.57207462 | P88: 48.13539579
B89: 2001 | C89: 57.4370043 | D89: 65.17977971 | E89: 63.92928722 | F89: 67.85206503 | G89: 70.79843089 | H89: 74.08739743 | I89: 74.15591757 | J89: 72.08318345 | K89: 70.55861041 | L89: 68.29744591 | M89: 63.48390633 | N89: 58.0879456 | O89: 53.97673741 | P89: 46.67934289
B90: 2002 | C90: 61.17135173 | D90: 60.60606061 | E90: 61.54821248 | F90: 70.55861041 | G90: 76.02309129 | H90: 74.84111893 | I90: 74.85824897 | J90: 75.26936979 | K90: 72.75125477 | L90: 71.20955171 | M90: 65.12838961 | N90: 62.30193398 | O90: 57.3856142 | P90: 51.04750158 | T90: Min Irrigation | U90: =ROUNDDOWN(MIN(C171:P171,C205:P205),0)-1 -> 4 | V90: Max Irrigation | W90: =ROUNDDOWN(MAX(C171:P171,C205:P205),0)+1 -> 10
B91: 2003 | D91: 57.23144389 | E91: 61.89081316 | F91: 66.92704318 | G91: 69.20533772 | H91: 77.01663326 | I91: 77.05089333 | J91: 74.22443771 | K91: 70.83269096 | L91: 68.64004659 | M91: 64.90569916 | N91: 59.62964866 | O91: 54.4221183 | P91: 48.83772719
B92: 2004 | C92: 72.88829505 | D92: 74.65268856 | E92: 71.98040324 | F92: 72.99107525 | G92: 76.60551244 | H92: 78.14721551 | I92: 78.02730527 | J92: 78.67824657 | K92: 74.73833873 | L92: 69.42802816 | M92: 65.04273944 | N92: 59.62964866 | O92: 51.90400329 | P92: 49.06041763
B93: 2005 | C93: 69.58219847 | D93: 71.63780256 | E93: 77.1879336 | F93: 80.1514295 | G93: 81.77878274 | H93: 78.95232712 | I93: 77.27358377 | J93: 75.86892098 | K93: 72.93968515 | L93: 70.26739983 | M93: 67.13260359 | N93: 63.00426538 | O93: 57.77960498 | P93: 48.59790671
B94: 2006 | C94: 58.2421159 | D94: 59.42408825 | E94: 60.64032067 | F94: 69.06829745 | G94: 72.83690495 | H94: 74.36147798 | I94: 76.4342121 | J94: 76.4342121 | K94: 73.79618685 | L94: 69.83914898 | M94: 67.26964387 | N94: 62.64453466 | O94: 56.06660157 | P94: 50.94472138
B95: 2007 | E95: 66.17332168 | F95: 67.85206503 | G95: 69.80488891 | H95: 73.2651558 | I95: 74.73833873 | J95: 75.09806945 | K95: 73.59062645 | L95: 69.08542748 | M95: 62.90148517 | N95: 59.95511931 | O95: 53.44570636 | P95: 50.92759135
B96: 2008 | C96: 67.68076468 | D96: 70.54148038 | E96: 75.95457115 | F96: 75.04667934 | G96: 77.10228343 | H96: 77.54766432 | I96: 78.30138582 | J96: 78.5412063 | K96: 74.75546876 | L96: 72.92255512 | M96: 67.50946434 | N96: 62.16489371 | O96: 57.26570396 | P96: 50.89333128
B97: 2009 | C97: 64.11771759 | D97: 64.95708926 | E97: 63.65520667 | F97: 68.10901554 | G97: 70.2502698 | H97: 75.20084965 | I97: 77.82174487 | J97: 76.89672302 | K97: 74.60129846 | L97: 73.3165459 | M97: 70.69565068 | N97: 66.37888209 | O97: 57.96803536 | P97: 48.73494698
B98: 2010 | C98: 63.17556572 | D98: 64.2204978 | E98: 64.10058756 | F98: 62.47323432 | G98: 62.50749439 | H98: 68.87986707 | I98: 69.82201895 | J98: 71.24381178 | K98: 69.51367833 | L98: 69.68497867 | M98: 67.85206503 | N98: 63.82650701 | O98: 57.72821488 | P98: 53.41144629
B99: 2011 | C99: 64.58022851 | D99: 62.62740463 | E99: 68.62291656 | F99: 72.06605341 | G99: 73.24802576 | H99: 75.45780016 | I99: 75.83466091 | J99: 77.32497388 | K99: 74.875379 | L99: 72.6656046 | M99: 67.80067492 | N99: 64.64874865 | O99: 58.22498587 | P99: 53.0174555
B100: 2012 | C100: 51.09889169 | D100: 51.78409305 | E100: 56.76893297 | F100: 60.48615037 | G100: 59.26991795 | H100: 68.7428268 | I100: 73.64201655 | J100: 75.5263203 | K100: 75.11519948 | L100: 71.50076229 | M100: 68.36596605 | N100: 65.21403978 | O100: 58.27637597 | P100: 51.37297223
B101: 2013 | C101: 77.29071381 | D101: 77.71896466 | E101: 75.90318105 | F101: 78.11295544 | G101: 79.41483804 | H101: 79.48335817 | I101: 79.24353769 | J101: 77.65044452 | K101: 76.05735135 | L101: 72.27161382 | M101: 68.36596605 | N101: 62.815835 | O101: 55.46705038 | P101: 48.30669613
B102: 2014 | C102: 72.28874385 | D102: 75.40641006 | E102: 76.91385306 | F102: 77.01663326 | G102: 76.74255272 | H102: 74.875379 | I102: 74.80685887 | J102: 76.93098309 | K102: 74.24156774 | L102: 70.2502698 | M102: 65.79646093 | N102: 61.99359337 | O102: 54.19942786 | P102: 47.55297463
B103: Average | C103: =AVERAGE(C73:C102) -> 64.61106258 | D103: =AVERAGE(D73:D102) -> 65.81770218 | E103: 67.95898007 | F103: 70.66139062 | G103: 72.92483912 | H103: 74.45283816 | I103: 74.86395898 | J103: 74.45283816 | K103: 72.37496503 | L103: 69.40004911 | M103: =AVERAGE(M73:M102) -> 65.08099651 | N103: =AVERAGE(N73:N102) -> 60.52155244 | O103: =AVERAGE(O73:O102) -> 54.58656663 | P103: =AVERAGE(P73:P102) -> 47.98179648
B104: Error | C104: =STDEV(C73:C102)*1.96 -> 12.15999524 | D104: =STDEV(D73:D102)*1.96 -> 12.02886974 | E104: 10.8235031 | F104: 9.331801264 | G104: 10.09053078 | H104: 6.46994069 | I104: 5.969260684 | J104: 5.572676928 | K104: 4.920897547 | L104: 4.582068968 | M104: =STDEV(M73:M102)*1.96 -> 5.022679062 | N104: =STDEV(N73:N102)*1.96 -> 5.748977766 | O104: =STDEV(O73:O102)*1.96 -> 5.043238048 | P104: =STDEV(P73:P102)*1.96 -> 5.532037818
A106: PlantDOY | B106: =+B$72 -> Year | C106: =+C$72 -> 78 | D106: 86 | E106: 94 | F106: 101 | G106: 109 | H106: 117 | I106: 124 | J106: 131 | K106: 139 | L106: 147 | M106: 155 | N106: 162 | O106: 170 | P106: 178
A107: =+'Producer Inputs'!D43 -> Loc08loamrm5.0 | B107: =+B73 -> 1985 | E107: 79.50048821 | F107: 79.07223735 | G107: 75.85179095 | H107: 72.85403498 | I107: 70.90121109 | J107: 67.85206503 | K107: 65.45386025 | L107: 62.79870497 | M107: 59.90372921 | N107: 57.11153365 | O107: 53.68552683 | P107: 49.91691933
A108: Yields | B108: =+B74 -> 1986 | C108: 71.92901314 | D108: 73.05959539 | E108: 73.60775648 | F108: 75.37214999 | G108: 76.41708207 | H108: 75.09806945 | I108: 75.38928002 | J108: 73.83044692 | K108: 72.30587389 | L108: 71.07251143 | M108: 67.30390393 | N108: 63.32973603 | O108: 58.63610669 | P108: 51.27019203
B109: 1987 | D109: 76.04022132 | E109: 76.10874146 | F109: 76.77681279 | G109: 77.56479435 | H109: 77.92452507 | I109: 77.890265 | J109: 75.61197047 | K109: 71.9118831 | L109: 68.57152646 | M109: 66.17332168 | N109: 60.67458074 | O109: 52.38364424 | P109: 47.27889408
B110: 1988 | C110: 78.52407626 | D110: 78.84954691 | E110: 76.81107285 | F110: 75.6291005 | G110: 73.3165459 | H110: 71.63780256 | I110: 71.07251143 | J110: 69.70210871 | K110: 67.40668414 | L110: 65.0769995 | M110: 61.75377289 | N110: 59.35556812 | O110: 55.29575004 | P110: 48.49512651
B111: 1989 | E111: 74.34434795 | F111: 74.36147798 | G111: 74.03600733 | H111: 71.55215239 | I111: 70.55861041 | J111: 69.63358857 | K111: 69.03403738 | L111: 67.14973363 | M111: 64.87143909 | N111: 61.9593333 | O111: 57.81386505 | P111: 52.55494458
B112: 1990 | D112: 75.09806945 | E112: 75.45780016 | F112: 75.49206023 | G112: 75.09806945 | H112: 74.9267691 | I112: 73.367936 | J112: 72.80264488 | K112: 71.46650222 | L112: 69.46228823 | M112: 67.57798448 | N112: 65.19690974 | O112: 58.9958374 | P112: 51.83548315
B113: 1991 | D113: 67.97197526 | E113: 71.87762304 | F113: 74.42999812 | G113: 75.16658958 | H113: 75.25223975 | I113: 74.31008788 | J113: 73.53923634 | K113: 71.32946195 | L113: 66.46453226 | M113: 63.87789712 | N113: 60.65745071 | O113: 56.20364185 | P113: 50.75629101
B114: 1992 | C114: 80.66533052 | D114: 79.36344793 | E114: 80.93941107 | F114: 79.24353769 | G114: 75.80040084 | H114: 73.89896706 | I114: 74.0188773 | J114: 73.05959539 | K114: 69.82201895 | L114: 66.89278312 | M114: 64.52883841 | N114: 62.07924354 | O114: 58.96157733 | P114: 53.97673741
B115: 1993 | C115: 72.08318345 | D115: 70.86695103 | E115: 72.23735375 | F115: 72.78551484 | G115: 72.6656046 | H115: 71.39798208 | I115: 69.82201895 | J115: 68.45161622 | K115: 68.87986707 | L115: 67.57798448 | M115: 64.80291896 | N115: 61.23987187 | O115: 58.10507563 | P115: 53.87395721
B116: 1994 | C116: 75.49206023 | D116: 77.42775408 | E116: 75.81753088 | F116: 77.8388749 | G116: 76.39995204 | H116: 76.05735135 | I116: 75.76614077 | J116: 74.73833873 | K116: 73.05959539 | L116: 71.07251143 | M116: 68.87986707 | N116: 65.6765507 | O116: 59.6981688 | P116: 55.8781712
B117: 1995 | C117: 77.54766432 | D117: 80.63107046 | E117: 81.91582301 | F117: 83.59456635 | G117: 81.07645134 | H117: 80.18568957 | I117: 77.41062405 | J117: 75.14945955 | K117: 71.32946195 | L117: 68.31457595 | M117: 65.62516059 | N117: 62.11350361 | O117: 58.1393357 | P117: 52.64059475
B118: 1996 | D118: 81.84730288 | E118: 81.77878274 | F118: 81.12784144 | G118: 80.08290936 | H118: 79.72317865 | I118: 78.88380698 | J118: 77.70183463 | K118: 75.80040084 | L118: 71.63780256 | M118: 67.9377152 | N118: 64.1691077 | O118: 59.7495589 | P118: 52.14382377
B119: 1997 | E119: 0.1713003409 | F119: 75.88605101 | G119: 74.39573805 | H119: 74.15591757 | I119: 72.81977491 | J119: 72.75125477 | K119: 70.88408106 | L119: 68.0918855 | M119: 64.70013875 | N119: 62.79870497 | O119: 59.42408825 | P119: 52.8118951
B120: 1998 | C120: 83.26909571 | D120: 84.19411755 | E120: 82.61815441 | F120: 82.3612039 | G120: 81.48757216 | H120: 79.82595885 | I120: 79.63752848 | J120: 77.54766432 | K120: 74.19017764 | L120: 71.77484283 | M120: 69.03403738 | N120: 66.24184182 | O120: 61.65099269 | P120: 56.06660157
B121: 1999 | C121: 72.30587389 | D121: 70.18174966 | E121: 69.71923874 | F121: 69.78775888 | G121: 67.1839937 | H121: 66.10480155 | I121: 64.58022851 | J121: 62.61027459 | K121: 59.86946914 | L121: 56.44346232 | M121: 52.12669373 | N121: 50.79055107 | O121: 45.77145109 | P121: 37.42912448
B122: 2000 | E122: 77.54766432 | F122: 78.14721551 | G122: 76.14300152 | H122: 76.53699231 | I122: 77.05089333 | J122: 74.20730767 | K122: 70.72991075 | L122: 69.68497867 | M122: 66.5844425 | N122: 61.73664286 | O122: 53.12023571 | P122: 44.02418761
B123: 2001 | C123: 73.29941587 | D123: 76.50273224 | E123: 76.96524316 | F123: 76.36569197 | G123: 75.78327081 | H123: 75.23510972 | I123: 72.08318345 | J123: 71.0039913 | K123: 68.46874625 | L123: 65.31681998 | M123: 61.73664286 | N123: 58.49906641 | O123: 54.54202854 | P123: 52.79476506
B124: 2002 | C124: 75.78327081 | D124: 76.62264248 | E124: 76.39995204 | F124: 79.63752848 | G124: 77.17080357 | H124: 76.74255272 | I124: 75.64623054 | J124: 74.31008788 | K124: 73.02533532 | L124: 70.47296024 | M124: 68.22892578 | N124: 66.39601213 | O124: 63.29547596 | P124: 58.12220566
B125: 2003 | D125: 79.77456875 | E125: 80.88802097 | F125: 81.21349161 | G125: 81.17923155 | H125: 78.88380698 | I125: 76.2286517 | J125: 74.25869777 | K125: 72.39152406 | L125: 70.02757935 | M125: 66.73861281 | N125: 62.38758415 | O125: 58.63610669 | P125: 54.90175925
B126: 2004 | C126: 74.05313737 | D126: 73.93322713 | E126: 73.98461723 | F126: 76.77681279 | G126: 75.88605101 | H126: 75.93744112 | I126: 74.53277832 | J126: 74.22443771 | K126: 70.96973123 | L126: 70.76417082 | M126: 68.50300632 | N126: 66.00202134 | O126: 60.77736095 | P126: 54.78184902
B127: 2005 | C127: 82.48111414 | D127: 80.66533052 | E127: 82.63528444 | F127: 80.68246056 | G127: 79.46622814 | H127: 79.89447899 | I127: 78.02730527 | J127: 78.18147558 | K127: 74.0702674 | L127: 71.08964147 | M127: 67.45807424 | N127: 64.80291896 | O127: 63.07278551 | P127: 55.91243127
B128: 2006 | C128: 74.41286808 | D128: 73.72766672 | E128: 77.17080357 | F128: 80.37411994 | G128: 80.27133974 | H128: 77.87313497 | I128: 76.04022132 | J128: 74.19017764 | K128: 73.64201655 | L128: 70.72991075 | M128: 67.95484523 | N128: 65.95063124 | O128: 60.26345992 | P128: 54.4221183
B129: 2007 | E129: 71.79197287 | F129: 70.31878993 | G129: 70.93547116 | H129: 71.34659198 | I129: 72.73412474 | J129: 71.36372201 | K129: 70.01044932 | L129: 67.81780496 | M129: 62.38758415 | N129: 58.75601692 | O129: 54.79897905 | P129: 53.6170067
B130: 2008 | C130: 77.59905442 | D130: 79.62039844 | E130: 79.43196807 | F130: 79.17501756 | G130: 77.42775408 | H130: 77.58192439 | I130: 76.45134214 | J130: 75.09806945 | K130: 74.1730476 | L130: 72.11744351 | M130: 67.76641486 | N130: 62.815835 | O130: 57.57404457 | P130: 52.93180533
B131: 2009 | C131: 81.47044213 | D131: 82.17277352 | E131: 82.3612039 | F131: 83.32048581 | G131: 82.20703359 | H131: 81.76165271 | I131: 79.55187831 | J131: 76.96524316 | K131: 74.96102917 | L131: 71.07251143 | M131: 66.80713295 | N131: 63.84363705 | O131: 59.90372921 | P131: 55.68974082
B132: 2010 | C132: 64.70013875 | D132: 66.56731247 | E132: 70.11322953 | F132: 71.29520188 | G132: 72.63134454 | H132: 73.3165459 | I132: 73.53923634 | J132: 71.14103157 | K132: 71.32946195 | L132: 69.85627901 | M132: 68.00623533 | N132: 64.71726879 | O132: 59.56112853 | P132: 55.77539099
B133: 2011 | C133: 71.53502235 | D133: 73.74479675 | E133: 75.33788992 | F133: 77.20506364 | G133: 78.71250664 | H133: 76.91385306 | I133: 76.14300152 | J133: 75.54345033 | K133: 74.89250904 | L133: 73.89896706 | M133: 70.69565068 | N133: 68.14327561 | O133: 63.60381657 | P133: 59.62964866
B134: 2012 | C134: 61.29126197 | D134: 68.86273704 | E134: 75.30362985 | F134: 75.76614077 | G134: 77.27358377 | H134: 74.66981859 | I134: 74.99528924 | J134: 72.90542508 | K134: 71.51789232 | L134: 70.66139062 | M134: 69.32524796 | N134: 66.17332168 | O134: 59.61251863 | P134: 56.6832828
B135: 2013 | C135: 81.74452267 | D135: 81.50470219 | E135: 80.78524076 | F135: 79.51761824 | G135: 76.16013156 | H135: 74.7725988 | I135: 73.35080597 | J135: 72.63134454 | K135: 71.02112133 | L135: 69.4451582 | M135: 68.7428268 | N135: 65.98489131 | O135: 60.4005002 | P135: 57.57404457
B136: =+B102 -> 2014 | C136: 75.73188071 | D136: 76.81107285 | E136: 76.29717183 | F136: 78.71250664 | G136: 79.14075749 | H136: 79.36344793 | I136: 77.46201415 | J136: 76.65690255 | K136: 75.21797968 | L136: 71.7063227 | M136: 65.81359097 | N136: 60.04076948 | O136: 56.49485242 | P136: 53.97673741
B137: =+B103 -> Average | C137: =AVERAGE(C107:C136) -> 75.29592134 | D137: =AVERAGE(D107:D136) -> 76.24167052 | E137: 74.33064392 | F137: 77.40891104 | G137: 76.56440036 | H137: 75.71417967 | I137: 74.6755286 | J137: 73.25544878 | K137: 71.3054799 | L137: 68.90213612 | M137: =AVERAGE(M107:M136) -> 65.86155506 | N137: =AVERAGE(N107:N136) -> 62.65481268 | O137: =AVERAGE(O107:O136) -> 58.00572143 | P137: =AVERAGE(P107:P136) -> 52.92552432
B138: =+B104 -> Error | C138: =STDEV(C107:C136)*1.96 -> 11.05505424 | D138: =STDEV(D107:D136)*1.96 -> 9.384176676 | E138: 28.42791425 | F138: 6.999503024 | G138: 6.559306999 | H138: 6.649843447 | I138: 6.406297284 | J138: 6.495235115 | K138: 6.345282889 | L138: 6.618112593 | M138: =STDEV(M107:M136)*1.96 -> 7.109130816 | N138: =STDEV(N107:N136)*1.96 -> 6.951642141 | O138: =STDEV(O107:O136)*1.96 -> 7.235721043 | P138: =STDEV(P107:P136)*1.96 -> 8.563252518
A140: Plant DOY | B140: =+B$72 -> Year | C140: =+C$72 -> 78 | D140: 86 | E140: 94 | F140: 101 | G140: 109 | H140: 117 | I140: 124 | J140: 131 | K140: 139 | L140: 147 | M140: 155 | N140: 162 | O140: 170 | P140: 178
A141: =+'Producer Inputs'!D41 -> Loc08loamrm3.0 | B141: =+B107 -> 1985 | E141: 6.181102362 | F141: 6.299212598 | G141: 6.220472441 | H141: 6.25984252 | I141: 6.299212598 | J141: 6.062992126 | K141: 4.803149606 | L141: 6.181102362 | M141: 6.338582677 | N141: 5.984251969 | O141: 4.645669291 | P141: 4.566929134
A142: Irrigation | B142: =+B108 -> 1986 | C142: 4.68503937 | D142: 4.68503937 | E142: 6.141732283 | F142: 6.25984252 | G142: 6.25984252 | H142: 7.913385827 | I142: 7.874015748 | J142: 9.37007874 | K142: 9.133858268 | L142: 9.291338583 | M142: 9.251968504 | N142: 9.37007874 | O142: 7.874015748 | P142: 7.598425197
B143: 1987 | D143: 7.755905512 | E143: 7.834645669 | F143: 7.795275591 | G143: 7.795275591 | H143: 7.874015748 | I143: 7.755905512 | J143: 9.251968504 | K143: 9.212598425 | L143: 9.409448819 | M143: 9.566929134 | N143: 9.527559055 | O143: 7.834645669 | P143: 6.377952756
B144: 1988 | C144: 11.02362205 | D144: 11.06299213 | E144: 10.94488189 | F144: 10.94488189 | G144: 9.527559055 | H144: 9.37007874 | I144: 9.37007874 | J144: 9.527559055 | K144: 7.952755906 | L144: 6.181102362 | M144: 6.023622047 | N144: 6.023622047 | O144: 4.566929134 | P144: 4.724409449
B145: 1989 | E145: 4.724409449 | F145: 4.606299213 | G145: 6.181102362 | H145: 6.377952756 | I145: 6.299212598 | J145: 7.716535433 | K145: 6.417322835 | L145: 6.338582677 | M145: 6.338582677 | N145: 6.141732283 | O145: 6.220472441 | P145: 6.299212598
B146: 1990 | D146: 7.874015748 | E146: 7.795275591 | F146: 9.291338583 | G146: 9.291338583 | H146: 9.527559055 | I146: 10.70866142 | J146: 10.7480315 | K146: 11.02362205 | L146: 11.14173228 | M146: 9.606299213 | N146: 9.645669291 | O146: 7.795275591 | P146: 6.25984252
B147: 1991 | D147: 6.220472441 | E147: 7.834645669 | F147: 7.755905512 | G147: 9.212598425 | H147: 9.173228346 | I147: 9.37007874 | J147: 9.330708661 | K147: 9.251968504 | L147: 9.291338583 | M147: 9.251968504 | N147: 9.37007874 | O147: 9.133858268 | P147: 7.598425197
B148: 1992 | C148: 4.606299213 | D148: 4.645669291 | E148: 4.724409449 | F148: 4.645669291 | G148: 4.763779528 | H148: 4.645669291 | I148: 4.606299213 | J148: 4.566929134 | K148: 4.724409449 | L148: 4.68503937 | M148: 4.566929134 | N148: 4.68503937 | O148: 4.606299213 | P148: 4.606299213
B149: 1993 | C149: 6.220472441 | D149: 6.25984252 | E149: 7.755905512 | F149: 7.716535433 | G149: 7.795275591 | H149: 7.755905512 | I149: 7.755905512 | J149: 9.094488189 | K149: 7.952755906 | L149: 7.992125984 | M149: 7.677165354 | N149: 7.913385827 | O149: 7.677165354 | P149: 6.102362205
B150: 1994 | C150: 1.614173228 | D150: 1.57480315 | E150: 1.496062992 | F150: 1.496062992 | G150: 1.614173228 | H150: 3.11023622 | I150: 3.149606299 | J150: 3.149606299 | K150: 3.070866142 | L150: 3.11023622 | M150: 2.992125984 | N150: 3.11023622 | O150: 3.031496063 | P150: 4.606299213
B151: 1995 | C151: 3.070866142 | D151: 3.070866142 | E151: 3.11023622 | F151: 3.11023622 | G151: 3.070866142 | H151: 3.11023622 | I151: 4.527559055 | J151: 4.566929134 | K151: 4.763779528 | L151: 6.25984252 | M151: 6.102362205 | N151: 6.102362205 | O151: 6.102362205 | P151: 4.606299213
B152: 1996 | D152: 3.11023622 | E152: 3.149606299 | F152: 3.188976378 | G152: 2.992125984 | H152: 4.527559055 | I152: 4.527559055 | J152: 4.68503937 | K152: 4.566929134 | L152: 4.68503937 | M152: 2.992125984 | N152: 3.070866142 | O152: 3.149606299 | P152: 3.070866142
B153: 1997 | E153: 0 | F153: 4.724409449 | G153: 4.724409449 | H153: 4.566929134 | I153: 4.645669291 | J153: 4.645669291 | K153: 4.566929134 | L153: 6.417322835 | M153: 6.220472441 | N153: 4.842519685 | O153: 6.25984252 | P153: 4.606299213
B154: 1998 | C154: 3.11023622 | D154: 3.070866142 | E154: 3.031496063 | F154: 3.149606299 | G154: 3.070866142 | H154: 2.992125984 | I154: 3.228346457 | J154: 4.724409449 | K154: 4.763779528 | L154: 4.566929134 | M154: 4.606299213 | N154: 4.645669291 | O154: 4.606299213 | P154: 6.220472441
B155: 1999 | C155: 9.291338583 | D155: 9.251968504 | E155: 10.70866142 | F155: 10.94488189 | G155: 11.1023622 | H155: 10.94488189 | I155: 12.51968504 | J155: 12.71653543 | K155: 12.51968504 | L155: 12.67716535 | M155: 12.67716535 | N155: 12.71653543 | O155: 12.79527559 | P155: 12.55905512
B156: 2000 | E156: 11.06299213 | F156: 11.2992126 | G156: 10.98425197 | H156: 11.02362205 | I156: 11.25984252 | J156: 12.63779528 | K156: 12.4015748 | L156: 12.55905512 | M156: 11.18110236 | N156: 9.606299213 | O156: 9.37007874 | P156: 8.031496063
B157: 2001 | C157: 4.645669291 | D157: 4.68503937 | E157: 4.645669291 | F157: 4.527559055 | G157: 4.724409449 | H157: 4.763779528 | I157: 4.606299213 | J157: 4.566929134 | K157: 3.031496063 | L157: 3.11023622 | M157: 1.496062992 | N157: 1.535433071 | O157: 1.535433071 | P157: 0
B158: 2002 | C158: 9.37007874 | D158: 9.330708661 | E158: 10.78740157 | F158: 10.94488189 | G158: 10.86614173 | H158: 11.14173228 | I158: 11.02362205 | J158: 9.409448819 | K158: 9.173228346 | L158: 10.98425197 | M158: 9.488188976 | N158: 9.330708661 | O158: 7.874015748 | P158: 6.102362205
B159: 2003 | D159: 6.25984252 | E159: 6.299212598 | F159: 6.102362205 | G159: 6.062992126 | H159: 7.637795276 | I159: 7.716535433 | J159: 7.874015748 | K159: 6.25984252 | L159: 6.181102362 | M159: 6.220472441 | N159: 6.181102362 | O159: 4.763779528 | P159: 4.645669291
B160: 2004 | C160: 4.763779528 | D160: 4.763779528 | E160: 4.724409449 | F160: 6.141732283 | G160: 6.299212598 | H160: 6.141732283 | I160: 6.062992126 | J160: 6.141732283 | K160: 6.417322835 | L160: 6.535433071 | M160: 6.338582677 | N160: 6.141732283 | O160: 6.181102362 | P160: 6.062992126
B161: 2005 | C161: 7.519685039 | D161: 7.480314961 | E161: 6.220472441 | F161: 6.220472441 | G161: 6.220472441 | H161: 4.645669291 | I161: 4.763779528 | J161: 4.606299213 | K161: 4.803149606 | L161: 4.527559055 | M161: 3.267716535 | N161: 3.070866142 | O161: 3.11023622 | P161: 3.11023622
B162: 2006 | C162: 6.102362205 | D162: 6.102362205 | E162: 6.377952756 | F162: 6.338582677 | G162: 6.338582677 | H162: 5.984251969 | I162: 6.220472441 | J162: 6.102362205 | K162: 6.220472441 | L162: 6.181102362 | M162: 6.299212598 | N162: 6.299212598 | O162: 6.181102362 | P162: 4.566929134
B163: 2007 | E163: 12.55905512 | F163: 12.79527559 | G163: 14.37007874 | H163: 14.2519685 | I163: 14.33070866 | J163: 14.40944882 | K163: 14.4488189 | L163: 12.5984252 | M163: 11.22047244 | N163: 10.86614173 | O163: 10.98425197 | P163: 9.409448819
B164: 2008 | C164: 7.755905512 | D164: 7.952755906 | E164: 9.37007874 | F164: 9.37007874 | G164: 9.409448819 | H164: 9.409448819 | I164: 10.70866142 | J164: 10.90551181 | K164: 9.566929134 | L164: 9.527559055 | M164: 9.37007874 | N164: 7.874015748 | O164: 7.677165354 | P164: 7.834645669
B165: 2009 | C165: 3.188976378 | D165: 2.952755906 | E165: 2.952755906 | F165: 2.992125984 | G165: 3.070866142 | H165: 4.488188976 | I165: 4.763779528 | J165: 4.724409449 | K165: 6.141732283 | L165: 4.566929134 | M165: 4.527559055 | N165: 4.68503937 | O165: 4.566929134 | P165: 4.527559055
B166: 2010 | C166: 4.566929134 | D166: 4.645669291 | E166: 4.645669291 | F166: 6.220472441 | G166: 6.220472441 | H166: 6.181102362 | I166: 6.181102362 | J166: 7.716535433 | K166: 7.637795276 | L166: 7.755905512 | M166: 6.220472441 | N166: 7.716535433 | O166: 7.637795276 | P166: 7.834645669
B167: 2011 | C167: 4.803149606 | D167: 4.566929134 | E167: 6.102362205 | F167: 6.102362205 | G167: 6.377952756 | H167: 6.417322835 | I167: 6.181102362 | J167: 7.874015748 | K167: 7.874015748 | L167: 7.795275591 | M167: 7.795275591 | N167: 7.913385827 | O167: 7.795275591 | P167: 6.181102362
B168: 2012 | C168: 9.330708661 | D168: 9.330708661 | E168: 11.1023622 | F168: 9.527559055 | G168: 9.448818898 | H168: 9.409448819 | I168: 9.409448819 | J168: 9.291338583 | K168: 7.874015748 | L168: 7.795275591 | M168: 6.181102362 | N168: 4.606299213 | O168: 4.527559055 | P168: 1.496062992
B169: 2013 | C169: 1.535433071 | D169: 1.535433071 | E169: 1.535433071 | F169: 1.57480315 | G169: 1.57480315 | H169: 1.57480315 | I169: 1.535433071 | J169: 2.992125984 | K169: 1.496062992 | L169: 1.535433071 | M169: 1.57480315 | N169: 3.031496063 | O169: 3.070866142 | P169: 3.031496063
B170: 2014 | C170: 6.023622047 | D170: 4.527559055 | E170: 4.606299213 | F170: 4.606299213 | G170: 4.68503937 | H170: 4.68503937 | I170: 4.68503937 | J170: 4.68503937 | K170: 4.803149606 | L170: 4.724409449 | M170: 4.724409449 | N170: 4.566929134 | O170: 4.527559055 | P170: 3.031496063
B171: Average | C171: =AVERAGE(C141:C170) -> 5.661417323 | D171: =AVERAGE(D141:D170) -> 5.708661417 | E171: 6.280839895 | F171: 6.556430446 | G171: 6.675853018 | H171: 6.86351706 | I171: 7.069553806 | J171: 7.469816273 | K171: 7.095800525 | L171: 7.153543307 | M171: =AVERAGE(M141:M170) -> 6.670603675 | N171: =AVERAGE(N141:N170) -> 6.552493438 | O171: =AVERAGE(O141:O170) -> 6.203412073 | P171: =AVERAGE(P141:P170) -> 5.522309711
B172: Error | C172: =STDEV(C141:C170)*1.96 -> 5.247697989 | D172: =STDEV(D141:D170)*1.96 -> 5.001134577 | E172: 6.386367993 | F172: 5.929667772 | G172: 6.037688306 | H172: 5.76752916 | I172: 6.010079021 | J172: 5.935662159 | K172: 5.938005315 | L172: 5.760576332 | M172: =STDEV(M141:M170)*1.96 -> 5.585050028 | N172: =STDEV(N141:N170)*1.96 -> 5.287110763 | O172: =STDEV(O141:O170)*1.96 -> 4.960887118 | P172: =STDEV(P141:P170)*1.96 -> 4.78055679
A174: PlantDOY | B174: =+B$72 -> Year | C174: =+C$72 -> 78 | D174: 86 | E174: 94 | F174: 101 | G174: 109 | H174: 117 | I174: 124 | J174: 131 | K174: 139 | L174: 147 | M174: 155 | N174: 162 | O174: 170 | P174: 178
A175: =+'Producer Inputs'!D43 -> Loc08loamrm5.0 | B175: =+B141 -> 1985 | E175: 7.834645669 | F175: 9.37007874 | G175: 9.251968504 | H175: 7.795275591 | I175: 7.755905512 | J175: 7.677165354 | K175: 7.952755906 | L175: 7.795275591 | M175: 6.25984252 | N175: 6.023622047 | O175: 6.299212598 | P175: 4.645669291
A176: Irrigation | B176: =+B142 -> 1986 | C176: 9.448818898 | D176: 10.94488189 | E176: 10.86614173 | F176: 10.90551181 | G176: 10.94488189 | H176: 10.98425197 | I176: 12.51968504 | J176: 12.48031496 | K176: 10.82677165 | L176: 10.94488189 | M176: 10.90551181 | N176: 10.62992126 | O176: 10.70866142 | P176: 9.251968504
B177: 1987 | D177: 12.51968504 | E177: 12.36220472 | F177: 12.87401575 | G177: 12.51968504 | H177: 12.51968504 | I177: 12.55905512 | J177: 11.14173228 | K177: 11.06299213 | L177: 9.291338583 | M177: 9.173228346 | N177: 9.409448819 | O177: 9.488188976 | P177: 9.448818898
B178: 1988 | C178: 14.33070866 | D178: 14.01574803 | E178: 14.09448819 | F178: 12.63779528 | G178: 12.5984252 | H178: 12.24409449 | I178: 11.14173228 | J178: 10.94488189 | K178: 9.448818898 | L178: 7.952755906 | M178: 6.102362205 | N178: 6.102362205 | O178: 4.606299213 | P178: 4.606299213
B179: 1989 | E179: 7.795275591 | F179: 7.874015748 | G179: 7.874015748 | H179: 7.874015748 | I179: 7.913385827 | J179: 7.795275591 | K179: 6.377952756 | L179: 7.874015748 | M179: 7.795275591 | N179: 7.755905512 | O179: 7.637795276 | P179: 6.338582677
B180: 1990 | D180: 12.79527559 | E180: 12.63779528 | F180: 12.63779528 | G180: 12.44094488 | H180: 12.44094488 | I180: 12.4015748 | J180: 12.36220472 | K180: 12.5984252 | L180: 10.86614173 | M180: 9.724409449 | N180: 9.803149606 | O180: 7.952755906 | P180: 7.874015748
B181: 1991 | D181: 10.94488189 | E181: 10.86614173 | F181: 10.86614173 | G181: 12.28346457 | H181: 10.82677165 | I181: 10.82677165 | J181: 10.70866142 | K181: 10.98425197 | L181: 10.66929134 | M181: 10.82677165 | N181: 11.06299213 | O181: 10.86614173 | P181: 9.488188976
B182: 1992 | C182: 7.677165354 | D182: 7.795275591 | E182: 7.716535433 | F182: 7.677165354 | G182: 6.181102362 | H182: 6.25984252 | I182: 6.141732283 | J182: 6.25984252 | K182: 6.338582677 | L182: 6.141732283 | M182: 6.181102362 | N182: 4.606299213 | O182: 4.566929134 | P182: 4.527559055
B183: 1993 | C183: 9.133858268 | D183: 9.173228346 | E183: 9.212598425 | F183: 9.251968504 | G183: 10.78740157 | H183: 9.448818898 | I183: 9.37007874 | J183: 9.409448819 | K183: 9.448818898 | L183: 9.488188976 | M183: 9.212598425 | N183: 8.070866142 | O183: 7.755905512 | P183: 7.677165354
B184: 1994 | C184: 3.149606299 | D184: 3.070866142 | E184: 3.031496063 | F184: 3.031496063 | G184: 4.527559055 | H184: 4.645669291 | I184: 4.68503937 | J184: 4.606299213 | K184: 4.606299213 | L184: 4.527559055 | M184: 4.724409449 | N184: 4.645669291 | O184: 4.606299213 | P184: 6.141732283
B185: 1995 | C185: 6.141732283 | D185: 6.181102362 | E185: 6.299212598 | F185: 6.102362205 | G185: 6.102362205 | H185: 6.299212598 | I185: 6.181102362 | J185: 6.141732283 | K185: 6.181102362 | L185: 6.141732283 | M185: 6.338582677 | N185: 6.299212598 | O185: 6.25984252 | P185: 4.803149606
B186: 1996 | D186: 4.645669291 | E186: 4.645669291 | F186: 4.68503937 | G186: 4.566929134 | H186: 4.606299213 | I186: 4.645669291 | J186: 4.566929134 | K186: 4.763779528 | L186: 4.606299213 | M186: 2.992125984 | N186: 3.031496063 | O186: 3.070866142 | P186: 3.11023622
B187: 1997 | E187: 0 | F187: 6.181102362 | G187: 7.716535433 | H187: 7.559055118 | I187: 7.677165354 | J187: 7.677165354 | K187: 7.637795276 | L187: 7.913385827 | M187: 7.874015748 | N187: 6.377952756 | O187: 6.220472441 | P187: 6.220472441
B188: 1998 | C188: 6.220472441 | D188: 6.181102362 | E188: 6.141732283 | F188: 6.102362205 | G188: 6.102362205 | H188: 6.25984252 | I188: 7.755905512 | J188: 7.795275591 | K188: 7.716535433 | L188: 7.755905512 | M188: 7.637795276 | N188: 6.062992126 | O188: 6.102362205 | P188: 6.220472441
B189: 1999 | C189: 15.94488189 | D189: 15.94488189 | E189: 17.32283465 | F189: 17.24409449 | G189: 16.02362205 | H189: 17.12598425 | I189: 16.06299213 | J189: 16.1023622 | K189: 15.86614173 | L189: 15.70866142 | M189: 16.14173228 | N189: 15.86614173 | O189: 14.48818898 | P189: 14.40944882
B190: 2000 | E190: 14.4488189 | F190: 14.4488189 | G190: 14.05511811 | H190: 14.48818898 | I190: 12.87401575 | J190: 12.87401575 | K190: 12.67716535 | L190: 12.67716535 | M190: 11.2992126 | N190: 10.66929134 | O190: 9.330708661 | P190: 7.874015748
B191: 2001 | C191: 6.102362205 | D191: 6.023622047 | E191: 4.68503937 | F191: 4.803149606 | G191: 4.842519685 | H191: 4.763779528 | I191: 4.724409449 | J191: 3.11023622 | K191: 3.11023622 | L191: 3.11023622 | M191: 3.11023622 | N191: 3.070866142 | O191: 3.11023622 | P191: 1.496062992
B192: 2002 | C192: 11.06299213 | D192: 11.06299213 | E192: 12.48031496 | F192: 12.63779528 | G192: 12.51968504 | H192: 12.71653543 | I192: 12.5984252 | J192: 11.06299213 | K192: 10.7480315 | L192: 11.18110236 | M192: 9.251968504 | N192: 9.409448819 | O192: 7.677165354 | P192: 6.25984252
B193: 2003 | D193: 7.795275591 | E193: 7.834645669 | F193: 7.755905512 | G193: 7.716535433 | H193: 7.755905512 | I193: 7.755905512 | J193: 7.795275591 | K193: 7.834645669 | L193: 7.755905512 | M193: 7.716535433 | N193: 7.755905512 | O193: 6.299212598 | P193: 6.220472441
B194: 2004 | C194: 7.874015748 | D194: 7.834645669 | E194: 7.755905512 | F194: 7.874015748 | G194: 7.913385827 | H194: 9.212598425 | I194: 7.519685039 | J194: 8.031496063 | K194: 8.149606299 | L194: 9.448818898 | M194: 9.448818898 | N194: 9.330708661 | O194: 9.330708661 | P194: 7.834645669
B195: 2005 | C195: 7.677165354 | D195: 6.377952756 | E195: 6.25984252 | F195: 6.338582677 | G195: 6.141732283 | H195: 4.763779528 | I195: 4.645669291 | J195: 4.606299213 | K195: 4.488188976 | L195: 4.488188976 | M195: 3.070866142 | N195: 3.070866142 | O195: 4.68503937 | P195: 4.724409449
B196: 2006 | C196: 9.448818898 | D196: 9.448818898 | E196: 9.448818898 | F196: 9.566929134 | G196: 9.68503937 | H196: 9.173228346 | I196: 8.070866142 | J196: 7.834645669 | K196: 7.677165354 | L196: 7.677165354 | M196: 7.559055118 | N196: 6.181102362 | O196: 6.181102362 | P196: 6.102362205
B197: 2007 | E197: 17.4015748 | F197: 17.48031496 | G197: 17.24409449 | H197: 17.16535433 | I197: 15.39370079 | J197: 14.48818898 | K197: 14.52755906 | L197: 12.63779528 | M197: 11.33858268 | N197: 10.98425197 | O197: 11.1023622 | P197: 10.98425197
B198: 2008 | C198: 12.4015748 | D198: 12.83464567 | E198: 12.67716535 | F198: 12.5984252 | G198: 12.44094488 | H198: 12.44094488 | I198: 12.63779528 | J198: 12.63779528 | K198: 12.63779528 | L198: 12.36220472 | M198: 12.4015748 | N198: 10.70866142 | O198: 10.86614173 | P198: 9.291338583
B199: 2009 | C199: 6.062992126 | D199: 6.062992126 | E199: 6.102362205 | F199: 6.062992126 | G199: 6.220472441 | H199: 6.102362205 | I199: 6.023622047 | J199: 6.338582677 | K199: 6.181102362 | L199: 6.25984252 | M199: 4.527559055 | N199: 4.606299213 | O199: 4.566929134 | P199: 4.68503937
B200: 2010 | C200: 9.330708661 | D200: 9.409448819 | E200: 9.409448819 | F200: 9.409448819 | G200: 9.330708661 | H200: 10.86614173 | I200: 10.90551181 | J200: 10.86614173 | K200: 11.14173228 | L200: 10.86614173 | M200: 9.527559055 | N200: 9.37007874 | O200: 9.291338583 | P200: 10.86614173
B201: 2011 | C201: 10.78740157 | D201: 9.173228346 | E201: 9.409448819 | F201: 9.37007874 | G201: 9.448818898 | H201: 9.409448819 | I201: 9.488188976 | J201: 7.992125984 | K201: 7.795275591 | L201: 7.716535433 | M201: 7.716535433 | N201: 7.677165354 | O201: 7.834645669 | P201: 7.834645669
B202: 2012 | C202: 12.63779528 | D202: 10.86614173 | E202: 10.90551181 | F202: 11.1023622 | G202: 9.68503937 | H202: 9.606299213 | I202: 9.448818898 | J202: 9.330708661 | K202: 7.952755906 | L202: 7.795275591 | M202: 6.299212598 | N202: 4.68503937 | O202: 4.527559055 | P202: 1.535433071
B203: 2013 | C203: 3.031496063 | D203: 3.031496063 | E203: 3.070866142 | F203: 3.11023622 | G203: 3.149606299 | H203: 3.031496063 | I203: 3.149606299 | J203: 3.070866142 | K203: 2.992125984 | L203: 3.11023622 | M203: 3.031496063 | N203: 3.070866142 | O203: 3.149606299 | P203: 3.031496063
B204: =+B170 -> 2014 | C204: 6.25984252 | D204: 6.220472441 | E204: 4.606299213 | F204: 4.645669291 | G204: 4.724409449 | H204: 4.645669291 | I204: 4.68503937 | J204: 6.141732283 | K204: 6.299212598 | L204: 6.141732283 | M204: 6.220472441 | N204: 6.25984252 | O204: 4.763779528 | P204: 4.566929134
... 3 more rows

Sheet Yearly Data (hidden)
A1: Code 1 | B1: Location ID | C1: Year | D1: Soil ID | E1: Plant DOY | F1: MG ID | G1: R1 | H1: R5 | I1: R8 | J1: Yield | K1: Irr | L1: Freeze_E | M1: Freeze_M | N1: Code 2
A2: =CONCATENATE(B2,D2,E2,F2) -> Loc01clay78rm3.0 | B2: Loc01 | C2: 1985 | D2: clay | E2: 78 | F2: rm3.0 | G2: 115 | H2: 133 | I2: 189 | J2: 38.85091731 | K2: 4.488188976 | L2: 0 | M2: 0 | N2: =CONCATENATE(B2,D2,F2) -> Loc01clayrm3.0
A3: Loc01clay78rm3.0 | B3: Loc01 | C3: 1986 | D3: clay | E3: 78 | F3: rm3.0 | G3: 117 | H3: 134 | I3: 189 | J3: 41.52320263 | K3: 2.244094488 | L3: 0 | M3: 0 | N3: Loc01clayrm3.0
A4: Loc01clay78rm3.0 | B4: Loc01 | C4: 1987 | D4: clay | E4: 78 | F4: rm3.0 | G4: 121 | H4: 138 | I4: 194 | J4: 47.48445449 | K4: 2.283464567 | L4: 0 | M4: 0 | N4: Loc01clayrm3.0
A5: Loc01clay78rm3.0 | B5: Loc01 | C5: 1988 | D5: clay | E5: 78 | F5: rm3.0 | G5: 117 | H5: 137 | I5: 194 | J5: 45.97701149 | K5: 4.409448819 | L5: 0 | M5: 0 | N5: Loc01clayrm3.0
A6: Loc01clay78rm3.0 | B6: Loc01 | C6: 1989 | D6: clay | E6: 78 | F6: rm3.0 | G6: 115 | H6: 134 | I6: 189 | J6: 41.47181253 | K6: 2.480314961 | L6: 0 | M6: 0 | N6: Loc01clayrm3.0
A7: Loc01clay78rm3.0 | B7: Loc01 | C7: 1990 | D7: clay | E7: 78 | F7: rm3.0 | G7: 116 | H7: 134 | I7: 190 | J7: 43.47602652 | K7: 2.322834646 | L7: 0 | M7: 0 | N7: Loc01clayrm3.0
A8: Loc01clay78rm3.0 | B8: Loc01 | C8: 1991 | D8: clay | E8: 78 | F8: rm3.0 | G8: 110 | H8: 128 | I8: 182 | J8: 33.93459753 | K8: 0 | L8: 0 | M8: 0 | N8: Loc01clayrm3.0
A9: Loc01clay78rm3.0 | B9: Loc01 | C9: 1992 | D9: clay | E9: 78 | F9: rm3.0 | G9: 116 | H9: 138 | I9: 194 | J9: 45.06911969 | K9: 4.527559055 | L9: 0 | M9: 0 | N9: Loc01clayrm3.0
A10: Loc01clay78rm3.0 | B10: Loc01 | C10: 1993 | D10: clay | E10: 78 | F10: rm3.0 | G10: 121 | H10: 142 | I10: 199 | J10: 50.27665005 | K10: 4.409448819 | L10: 0 | M10: 0 | N10: Loc01clayrm3.0
A11: Loc01clay78rm3.0 | B11: Loc01 | C11: 1994 | D11: clay | E11: 78 | F11: rm3.0 | G11: 117 | H11: 135 | I11: 191 | J11: 43.49315655 | K11: 0 | L11: 0 | M11: 0 | N11: Loc01clayrm3.0
A12: Loc01clay78rm3.0 | B12: Loc01 | C12: 1995 | D12: clay | E12: 78 | F12: rm3.0 | G12: 113 | H12: 132 | I12: 187 | J12: 41.5574627 | K12: 2.283464567 | L12: 0 | M12: 0 | N12: Loc01clayrm3.0
A13: Loc01clay78rm3.0 | B13: Loc01 | C13: 1996 | D13: clay | E13: 78 | F13: rm3.0 | G13: 121 | H13: 140 | I13: 196 | J13: 50.89333128 | K13: 2.244094488 | L13: 0 | M13: 0 | N13: Loc01clayrm3.0
A14: Loc01clay78rm3.0 | B14: Loc01 | C14: 1997 | D14: clay | E14: 78 | F14: rm3.0 | G14: 121 | H14: 141 | I14: 198 | J14: 46.9362934 | K14: 0 | L14: 0 | M14: 0 | N14: Loc01clayrm3.0
A15: Loc01clay78rm3.0 | B15: Loc01 | C15: 1998 | D15: clay | E15: 78 | F15: rm3.0 | G15: 118 | H15: 136 | I15: 192 | J15: 44.46956849 | K15: 6.771653543 | L15: 0 | M15: 0 | N15: Loc01clayrm3.0
A16: Loc01clay78rm3.0 | B16: Loc01 | C16: 1999 | D16: clay | E16: 78 | F16: rm3.0 | G16: 113 | H16: 132 | I16: 187 | J16: 43.95566747 | K16: 2.204724409 | L16: 0 | M16: 0 | N16: Loc01clayrm3.0
A17: Loc01clay78rm3.0 | B17: Loc01 | C17: 2000 | D17: clay | E17: 78 | F17: rm3.0 | G17: 119 | H17: 137 | I17: 193 | J17: 48.99189749 | K17: 6.771653543 | L17: 0 | M17: 0 | N17: Loc01clayrm3.0
A18: Loc01clay78rm3.0 | B18: Loc01 | C18: 2001 | D18: clay | E18: 78 | F18: rm3.0 | G18: 113 | H18: 134 | I18: 190 | J18: 42.3111842 | K18: 4.448818898 | L18: 0 | M18: 0 | N18: Loc01clayrm3.0
A19: Loc01clay78rm3.0 | B19: Loc01 | C19: 2002 | D19: clay | E19: 78 | F19: rm3.0 | G19: 113 | H19: 129 | I19: 186 | J19: 40.40975042 | K19: 6.732283465 | L19: 0 | M19: 0 | N19: Loc01clayrm3.0
A20: Loc01clay78rm3.0 | B20: Loc01 | C20: 2003 | D20: clay | E20: 78 | F20: rm3.0 | G20: 118 | H20: 135 | I20: 191 | J20: 47.17611388 | K20: 4.527559055 | L20: 0 | M20: 0 | N20: Loc01clayrm3.0
A21: Loc01clay78rm3.0 | B21: Loc01 | C21: 2004 | D21: clay | E21: 78 | F21: rm3.0 | G21: 118 | H21: 138 | I21: 194 | J21: 45.3260702 | K21: 2.204724409 | L21: 0 | M21: 0 | N21: Loc01clayrm3.0
A22: Loc01clay78rm3.0 | B22: Loc01 | C22: 2005 | D22: clay | E22: 78 | F22: rm3.0 | G22: 119 | H22: 140 | I22: 196 | J22: 53.41144629 | K22: 9.05511811 | L22: 0 | M22: 0 | N22: Loc01clayrm3.0
A23: Loc01clay78rm3.0 | B23: Loc01 | C23: 2006 | D23: clay | E23: 78 | F23: rm3.0 | G23: 111 | H23: 129 | I23: 185 | J23: 42.03710365 | K23: 9.251968504 | L23: 0 | M23: 0 | N23: Loc01clayrm3.0
A24: Loc01clay78rm3.0 | B24: Loc01 | C24: 2007 | D24: clay | E24: 78 | F24: rm3.0 | G24: 115 | H24: 133 | I24: 189 | J24: 44.50382856 | K24: 2.204724409 | L24: 0 | M24: 0 | N24: Loc01clayrm3.0
A25: Loc01clay78rm3.0 | B25: Loc01 | C25: 2008 | D25: clay | E25: 78 | F25: rm3.0 | G25: 114 | H25: 132 | I25: 187 | J25: 45.20615996 | K25: 2.204724409 | L25: 0 | M25: 0 | N25: Loc01clayrm3.0
A26: Loc01clay78rm3.0 | B26: Loc01 | C26: 2009 | D26: clay | E26: 78 | F26: rm3.0 | G26: 114 | H26: 131 | I26: 187 | J26: 41.84867328 | K26: 6.771653543 | L26: 0 | M26: 0 | N26: Loc01clayrm3.0
A27: Loc01clay78rm3.0 | B27: Loc01 | C27: 2010 | D27: clay | E27: 78 | F27: rm3.0 | G27: 116 | H27: 134 | I27: 189 | J27: 45.82284119 | K27: 4.68503937 | L27: 0 | M27: 0 | N27: Loc01clayrm3.0
A28: Loc01clay78rm3.0 | B28: Loc01 | C28: 2011 | D28: clay | E28: 78 | F28: rm3.0 | G28: 112 | H28: 131 | I28: 187 | J28: 43.45889648 | K28: 6.929133858 | L28: 0 | M28: 0 | N28: Loc01clayrm3.0
A29: Loc01clay78rm3.0 | B29: Loc01 | C29: 2012 | D29: clay | E29: 78 | F29: rm3.0 | G29: 108 | H29: 128 | I29: 183 | J29: 42.58526474 | K29: 2.244094488 | L29: 0 | M29: 0 | N29: Loc01clayrm3.0
A30: Loc01clay78rm3.0 | B30: Loc01 | C30: 2013 | D30: clay | E30: 78 | F30: rm3.0 | G30: 120 | H30: 141 | I30: 197 | J30: 52.58920465 | K30: 0 | L30: 0 | M30: 0 | N30: Loc01clayrm3.0
A31: Loc01clay78rm3.0 | B31: Loc01 | C31: 2014 | D31: clay | E31: 78 | F31: rm3.0 | G31: 117 | H31: 135 | I31: 192 | J31: 50.13960978 | K31: 2.244094488 | L31: 0 | M31: 0 | N31: Loc01clayrm3.0
A32: Loc01clay86rm3.0 | B32: Loc01 | C32: 1985 | D32: clay | E32: 86 | F32: rm3.0 | G32: 120 | H32: 138 | I32: 195 | J32: 42.77369512 | K32: 4.448818898 | L32: 0 | M32: 0 | N32: Loc01clayrm3.0
A33: Loc01clay86rm3.0 | B33: Loc01 | C33: 1986 | D33: clay | E33: 86 | F33: rm3.0 | G33: 120 | H33: 138 | I33: 194 | J33: 41.93432345 | K33: 0 | L33: 0 | M33: 0 | N33: Loc01clayrm3.0
A34: Loc01clay86rm3.0 | B34: Loc01 | C34: 1987 | D34: clay | E34: 86 | F34: rm3.0 | G34: 124 | H34: 142 | I34: 198 | J34: 45.41172037 | K34: 2.204724409 | L34: 0 | M34: 0 | N34: Loc01clayrm3.0
A35: Loc01clay86rm3.0 | B35: Loc01 | C35: 1988 | D35: clay | E35: 86 | F35: rm3.0 | G35: 120 | H35: 141 | I35: 198 | J35: 45.77145109 | K35: 4.527559055 | L35: 0 | M35: 0 | N35: Loc01clayrm3.0
A36: Loc01clay86rm3.0 | B36: Loc01 | C36: 1989 | D36: clay | E36: 86 | F36: rm3.0 | G36: 121 | H36: 140 | I36: 196 | J36: 43.71584699 | K36: 0 | L36: 0 | M36: 0 | N36: Loc01clayrm3.0
A37: Loc01clay86rm3.0 | B37: Loc01 | C37: 1990 | D37: clay | E37: 86 | F37: rm3.0 | G37: 121 | H37: 139 | I37: 196 | J37: 46.30248214 | K37: 2.362204724 | L37: 0 | M37: 0 | N37: Loc01clayrm3.0
A38: Loc01clay86rm3.0 | B38: Loc01 | C38: 1991 | D38: clay | E38: 86 | F38: rm3.0 | G38: 116 | H38: 133 | I38: 188 | J38: 35.37352039 | K38: 0 | L38: 0 | M38: 0 | N38: Loc01clayrm3.0
A39: Loc01clay86rm3.0 | B39: Loc01 | C39: 1992 | D39: clay | E39: 86 | F39: rm3.0 | G39: 122 | H39: 142 | I39: 199 | J39: 46.30248214 | K39: 4.527559055 | L39: 0 | M39: 0 | N39: Loc01clayrm3.0
A40: Loc01clay86rm3.0 | B40: Loc01 | C40: 1993 | D40: clay | E40: 86 | F40: rm3.0 | G40: 126 | H40: 147 | I40: 204 | J40: 50.99611148 | K40: 4.488188976 | L40: 0 | M40: 0 | N40: Loc01clayrm3.0
A41: Loc01clay86rm3.0 | B41: Loc01 | C41: 1994 | D41: clay | E41: 86 | F41: rm3.0 | G41: 120 | H41: 138 | I41: 195 | J41: 42.05423369 | K41: 0 | L41: 0 | M41: 0 | N41: Loc01clayrm3.0
A42: Loc01clay86rm3.0 | B42: Loc01 | C42: 1995 | D42: clay | E42: 86 | F42: rm3.0 | G42: 121 | H42: 138 | I42: 195 | J42: 45.44598044 | K42: 2.204724409 | L42: 0 | M42: 0 | N42: Loc01clayrm3.0
A43: Loc01clay86rm3.0 | B43: Loc01 | C43: 1996 | D43: clay | E43: 86 | F43: rm3.0 | G43: 126 | H43: 144 | I43: 201 | J43: 51.5100125 | K43: 2.204724409 | L43: 0 | M43: 0 | N43: Loc01clayrm3.0
A44: Loc01clay86rm3.0 | B44: Loc01 | C44: 1997 | D44: clay | E44: 86 | F44: rm3.0 | G44: 127 | H44: 147 | I44: 204 | J44: 49.64283879 | K44: 0 | L44: 0 | M44: 0 | N44: Loc01clayrm3.0
A45: Loc01clay86rm3.0 | B45: Loc01 | C45: 1998 | D45: clay | E45: 86 | F45: rm3.0 | G45: 123 | H45: 141 | I45: 197 | J45: 44.77790911 | K45: 6.771653543 | L45: 0 | M45: 0 | N45: Loc01clayrm3.0
A46: Loc01clay86rm3.0 | B46: Loc01 | C46: 1999 | D46: clay | E46: 86 | F46: rm3.0 | G46: 118 | H46: 137 | I46: 193 | J46: 43.33898624 | K46: 0 | L46: 0 | M46: 0 | N46: Loc01clayrm3.0
A47: Loc01clay86rm3.0 | B47: Loc01 | C47: 2000 | D47: clay | E47: 86 | F47: rm3.0 | G47: 124 | H47: 142 | I47: 198 | J47: 51.13315175 | K47: 6.88976378 | L47: 0 | M47: 0 | N47: Loc01clayrm3.0
A48: Loc01clay86rm3.0 | B48: Loc01 | C48: 2001 | D48: clay | E48: 86 | F48: rm3.0 | G48: 120 | H48: 139 | I48: 196 | J48: 44.96633948 | K48: 4.448818898 | L48: 0 | M48: 0 | N48: Loc01clayrm3.0
A49: Loc01clay86rm3.0 | B49: Loc01 | C49: 2002 | D49: clay | E49: 86 | F49: rm3.0 | G49: 118 | H49: 135 | I49: 193 | J49: 43.63019682 | K49: 4.527559055 | L49: 0 | M49: 0 | N49: Loc01clayrm3.0
A50: Loc01clay86rm3.0 | B50: Loc01 | C50: 2003 | D50: clay | E50: 86 | F50: rm3.0 | G50: 123 | H50: 140 | I50: 197 | J50: 49.0432876 | K50: 4.566929134 | L50: 0 | M50: 0 | N50: Loc01clayrm3.0
A51: Loc01clay86rm3.0 | B51: Loc01 | C51: 2004 | D51: clay | E51: 86 | F51: rm3.0 | G51: 126 | H51: 144 | I51: 201 | J51: 51.78409305 | K51: 2.204724409 | L51: 0 | M51: 0 | N51: Loc01clayrm3.0
A52: Loc01clay86rm3.0 | B52: Loc01 | C52: 2005 | D52: clay | E52: 86 | F52: rm3.0 | G52: 126 | H52: 145 | I52: 201 | J52: 55.41566028 | K52: 8.897637795 | L52: 0 | M52: 0 | N52: Loc01clayrm3.0
A53: Loc01clay86rm3.0 | B53: Loc01 | C53: 2006 | D53: clay | E53: 86 | F53: rm3.0 | G53: 117 | H53: 136 | I53: 192 | J53: 46.19970194 | K53: 9.251968504 | L53: 0 | M53: 0 | N53: Loc01clayrm3.0
A54: Loc01clay86rm3.0 | B54: Loc01 | C54: 2007 | D54: clay | E54: 86 | F54: rm3.0 | G54: 123 | H54: 142 | I54: 198 | J54: 52.1609538 | K54: 2.283464567 | L54: 0 | M54: 0 | N54: Loc01clayrm3.0
A55: Loc01clay86rm3.0 | B55: Loc01 | C55: 2008 | D55: clay | E55: 86 | F55: rm3.0 | G55: 121 | H55: 140 | I55: 196 | J55: 50.27665005 | K55: 2.283464567 | L55: 0 | M55: 0 | N55: Loc01clayrm3.0
A56: Loc01clay86rm3.0 | B56: Loc01 | C56: 2009 | D56: clay | E56: 86 | F56: rm3.0 | G56: 121 | H56: 138 | I56: 195 | J56: 46.14831184 | K56: 6.811023622 | L56: 0 | M56: 0 | N56: Loc01clayrm3.0
A57: Loc01clay86rm3.0 | B57: Loc01 | C57: 2010 | D57: clay | E57: 86 | F57: rm3.0 | G57: 121 | H57: 138 | I57: 194 | J57: 46.47378248 | K57: 4.488188976 | L57: 0 | M57: 0 | N57: Loc01clayrm3.0
A58: Loc01clay86rm3.0 | B58: Loc01 | C58: 2011 | D58: clay | E58: 86 | F58: rm3.0 | G58: 117 | H58: 138 | I58: 195 | J58: 45.10337976 | K58: 6.653543307 | L58: 0 | M58: 0 | N58: Loc01clayrm3.0
A59: Loc01clay86rm3.0 | B59: Loc01 | C59: 2012 | D59: clay | E59: 86 | F59: rm3.0 | G59: 118 | H59: 136 | I59: 192 | J59: 48.11826576 | K59: 4.488188976 | L59: 0 | M59: 0 | N59: Loc01clayrm3.0
A60: Loc01clay86rm3.0 | B60: Loc01 | C60: 2013 | D60: clay | E60: 86 | F60: rm3.0 | G60: 126 | H60: 146 | I60: 202 | J60: 52.76050499 | K60: 0 | L60: 0 | M60: 0 | N60: Loc01clayrm3.0
A61: Loc01clay86rm3.0 | B61: Loc01 | C61: 2014 | D61: clay | E61: 86 | F61: rm3.0 | G61: 123 | H61: 142 | I61: 199 | J61: 53.10310568 | K61: 2.283464567 | L61: 0 | M61: 0 | N61: Loc01clayrm3.0
A62: Loc01clay94rm3.0 | B62: Loc01 | C62: 1985 | D62: clay | E62: 94 | F62: rm3.0 | G62: 125 | H62: 144 | I62: 200 | J62: 43.88714734 | K62: 4.527559055 | L62: 0 | M62: 0 | N62: Loc01clayrm3.0
A63: Loc01clay94rm3.0 | B63: Loc01 | C63: 1986 | D63: clay | E63: 94 | F63: rm3.0 | G63: 127 | H63: 146 | I63: 202 | J63: 46.8335132 | K63: 0 | L63: 0 | M63: 0 | N63: Loc01clayrm3.0
A64: Loc01clay94rm3.0 | B64: Loc01 | C64: 1987 | D64: clay | E64: 94 | F64: rm3.0 | G64: 128 | H64: 146 | I64: 202 | J64: 45.13763982 | K64: 2.204724409 | L64: 0 | M64: 0 | N64: Loc01clayrm3.0
A65: =CONCATENATE(B65,D65,E65,F65) -> Loc01clay94rm3.0 | B65: Loc01 | C65: 1988 | D65: clay | E65: 94 | F65: rm3.0 | G65: 129 | H65: 149 | I65: 206 | J65: 51.11602172 | K65: 4.409448819 | L65: 0 | M65: 0 | N65: Loc01clayrm3.0
A66: Loc01clay94rm3.0 | B66: Loc01 | C66: 1989 | D66: clay | E66: 94 | F66: rm3.0 | G66: 128 | H66: 146 | I66: 203 | J66: 46.59369272 | K66: 0 | L66: 0 | M66: 0 | N66: =CONCATENATE(B66,D66,F66) -> Loc01clayrm3.0
A67: Loc01clay94rm3.0 | B67: Loc01 | C67: 1990 | D67: clay | E67: 94 | F67: rm3.0 | G67: 125 | H67: 144 | I67: 200 | J67: 45.83997122 | K67: 2.322834646 | L67: 0 | M67: 0 | N67: Loc01clayrm3.0
A68: Loc01clay94rm3.0 | B68: Loc01 | C68: 1991 | D68: clay | E68: 94 | F68: rm3.0 | G68: 123 | H68: 141 | I68: 197 | J68: 37.87450537 | K68: 0 | L68: 0 | M68: 0 | N68: Loc01clayrm3.0
A69: Loc01clay94rm3.0 | B69: Loc01 | C69: 1992 | D69: clay | E69: 94 | F69: rm3.0 | G69: 127 | H69: 148 | I69: 205 | J69: 48.70068691 | K69: 2.244094488 | L69: 0 | M69: 0 | N69: Loc01clayrm3.0
A70: Loc01clay94rm3.0 | B70: Loc01 | C70: 1993 | D70: clay | E70: 94 | F70: rm3.0 | G70: 131 | H70: 153 | I70: 209 | J70: 49.0946777 | K70: 4.566929134 | L70: 0 | M70: 0 | N70: Loc01clayrm3.0
A71: Loc01clay94rm3.0 | B71: Loc01 | C71: 1994 | D71: clay | E71: 94 | F71: rm3.0 | G71: 125 | H71: 144 | I71: 201 | J71: 43.98992754 | K71: 0 | L71: 0 | M71: 0 | N71: Loc01clayrm3.0
A72: Loc01clay94rm3.0 | B72: Loc01 | C72: 1995 | D72: clay | E72: 94 | F72: rm3.0 | G72: 126 | H72: 145 | I72: 202 | J72: 46.0284016 | K72: 2.244094488 | L72: 0 | M72: 0 | N72: Loc01clayrm3.0
A73: Loc01clay94rm3.0 | B73: Loc01 | C73: 1996 | D73: clay | E73: 94 | F73: rm3.0 | G73: 129 | H73: 148 | I73: 205 | J73: 52.02391353 | K73: 2.322834646 | L73: 0 | M73: 0 | N73: Loc01clayrm3.0
A74: Loc01clay94rm3.0 | B74: Loc01 | C74: 1997 | D74: clay | E74: 94 | F74: rm3.0 | G74: 134 | H74: 154 | I74: 210 | J74: 51.78409305 | K74: 0 | L74: 0 | M74: 0 | N74: Loc01clayrm3.0
A75: Loc01clay94rm3.0 | B75: Loc01 | C75: 1998 | D75: clay | E75: 94 | F75: rm3.0 | G75: 129 | H75: 147 | I75: 203 | J75: 46.59369272 | K75: 6.692913386 | L75: 0 | M75: 0 | N75: Loc01clayrm3.0
A76: Loc01clay94rm3.0 | B76: Loc01 | C76: 1999 | D76: clay | E76: 94 | F76: rm3.0 | G76: 125 | H76: 145 | I76: 201 | J76: 48.23817599 | K76: 0 | L76: 0 | M76: 0 | N76: Loc01clayrm3.0
A77: Loc01clay94rm3.0 | B77: Loc01 | C77: 2000 | D77: clay | E77: 94 | F77: rm3.0 | G77: 129 | H77: 147 | I77: 204 | J77: 52.9146753 | K77: 6.732283465 | L77: 0 | M77: 0 | N77: Loc01clayrm3.0
A78: Loc01clay94rm3.0 | B78: Loc01 | C78: 2001 | D78: clay | E78: 94 | F78: rm3.0 | G78: 126 | H78: 146 | I78: 203 | J78: 51.42436233 | K78: 4.409448819 | L78: 0 | M78: 0 | N78: Loc01clayrm3.0
A79: Loc01clay94rm3.0 | B79: Loc01 | C79: 2002 | D79: clay | E79: 94 | F79: rm3.0 | G79: 122 | H79: 142 | I79: 199 | J79: 45.39459034 | K79: 4.527559055 | L79: 0 | M79: 0 | N79: Loc01clayrm3.0
A80: Loc01clay94rm3.0 | B80: Loc01 | C80: 2003 | D80: clay | E80: 94 | F80: rm3.0 | G80: 126 | H80: 144 | I80: 201 | J80: 50.51647053 | K80: 4.409448819 | L80: 0 | M80: 0 | N80: Loc01clayrm3.0
A81: Loc01clay94rm3.0 | B81: Loc01 | C81: 2004 | D81: clay | E81: 94 | F81: rm3.0 | G81: 131 | H81: 150 | I81: 206 | J81: 48.25530603 | K81: 0 | L81: 0 | M81: 0 | N81: Loc01clayrm3.0
A82: Loc01clay94rm3.0 | B82: Loc01 | C82: 2005 | D82: clay | E82: 94 | F82: rm3.0 | G82: 132 | H82: 151 | I82: 207 | J82: 56.99162341 | K82: 8.897637795 | L82: 0 | M82: 0 | N82: Loc01clayrm3.0
A83: Loc01clay94rm3.0 | B83: Loc01 | C83: 2006 | D83: clay | E83: 94 | F83: rm3.0 | G83: 124 | H83: 143 | I83: 200 | J83: 52.65772479 | K83: 9.448818898 | L83: 0 | M83: 0 | N83: Loc01clayrm3.0
A84: Loc01clay94rm3.0 | B84: Loc01 | C84: 2007 | D84: clay | E84: 94 | F84: rm3.0 | G84: 128 | H84: 148 | I84: 204 | J84: 51.39010227 | K84: 2.204724409 | L84: 0 | M84: 0 | N84: Loc01clayrm3.0
A85: Loc01clay94rm3.0 | B85: Loc01 | C85: 2008 | D85: clay | E85: 94 | F85: rm3.0 | G85: 127 | H85: 146 | I85: 202 | J85: 50.13960978 | K85: 2.244094488 | L85: 0 | M85: 0 | N85: Loc01clayrm3.0
A86: Loc01clay94rm3.0 | B86: Loc01 | C86: 2009 | D86: clay | E86: 94 | F86: rm3.0 | G86: 125 | H86: 143 | I86: 200 | J86: 45.30894016 | K86: 6.692913386 | L86: 0 | M86: 0 | N86: Loc01clayrm3.0
A87: Loc01clay94rm3.0 | B87: Loc01 | C87: 2010 | D87: clay | E87: 94 | F87: rm3.0 | G87: 125 | H87: 143 | I87: 199 | J87: 49.52292855 | K87: 4.448818898 | L87: 0 | M87: 0 | N87: Loc01clayrm3.0
A88: Loc01clay94rm3.0 | B88: Loc01 | C88: 2011 | D88: clay | E88: 94 | F88: rm3.0 | G88: 124 | H88: 145 | I88: 202 | J88: 49.91691933 | K88: 9.173228346 | L88: 0 | M88: 0 | N88: Loc01clayrm3.0
A89: Loc01clay94rm3.0 | B89: Loc01 | C89: 2012 | D89: clay | E89: 94 | F89: rm3.0 | G89: 125 | H89: 144 | I89: 201 | J89: 53.05171557 | K89: 4.488188976 | L89: 0 | M89: 0 | N89: Loc01clayrm3.0
A90: Loc01clay94rm3.0 | B90: Loc01 | C90: 2013 | D90: clay | E90: 94 | F90: rm3.0 | G90: 132 | H90: 151 | I90: 208 | J90: 55.09018963 | K90: 0 | L90: 0 | M90: 0 | N90: Loc01clayrm3.0
A91: Loc01clay94rm3.0 | B91: Loc01 | C91: 2014 | D91: clay | E91: 94 | F91: rm3.0 | G91: 128 | H91: 147 | I91: 203 | J91: 52.24660397 | K91: 0 | L91: 0 | M91: 0 | N91: Loc01clayrm3.0
A92: Loc01clay101rm3.0 | B92: Loc01 | C92: 1985 | D92: clay | E92: 101 | F92: rm3.0 | G92: 130 | H92: 149 | I92: 206 | J92: 46.0284016 | K92: 4.606299213 | L92: 0 | M92: 0 | N92: Loc01clayrm3.0
A93: Loc01clay101rm3.0 | B93: Loc01 | C93: 1986 | D93: clay | E93: 101 | F93: rm3.0 | G93: 132 | H93: 151 | I93: 207 | J93: 45.89136132 | K93: 0 | L93: 0 | M93: 0 | N93: Loc01clayrm3.0
A94: Loc01clay101rm3.0 | B94: Loc01 | C94: 1987 | D94: clay | E94: 101 | F94: rm3.0 | G94: 131 | H94: 150 | I94: 206 | J94: 48.37521627 | K94: 2.283464567 | L94: 0 | M94: 0 | N94: Loc01clayrm3.0
A95: Loc01clay101rm3.0 | B95: Loc01 | C95: 1988 | D95: clay | E95: 101 | F95: rm3.0 | G95: 133 | H95: 154 | I95: 210 | J95: 50.87620124 | K95: 4.409448819 | L95: 0 | M95: 0 | N95: Loc01clayrm3.0
A96: Loc01clay101rm3.0 | B96: Loc01 | C96: 1989 | D96: clay | E96: 101 | F96: rm3.0 | G96: 134 | H96: 152 | I96: 209 | J96: 47.5872347 | K96: 0 | L96: 0 | M96: 0 | N96: Loc01clayrm3.0
A97: Loc01clay101rm3.0 | B97: Loc01 | C97: 1990 | D97: clay | E97: 101 | F97: rm3.0 | G97: 129 | H97: 148 | I97: 205 | J97: 45.83997122 | K97: 2.244094488 | L97: 0 | M97: 0 | N97: Loc01clayrm3.0
A98: Loc01clay101rm3.0 | B98: Loc01 | C98: 1991 | D98: clay | E98: 101 | F98: rm3.0 | G98: 130 | H98: 148 | I98: 204 | J98: 42.65378488 | K98: 0 | L98: 0 | M98: 0 | N98: Loc01clayrm3.0
A99: Loc01clay101rm3.0 | B99: Loc01 | C99: 1992 | D99: clay | E99: 101 | F99: rm3.0 | G99: 134 | H99: 154 | I99: 210 | J99: 51.92113332 | K99: 2.244094488 | L99: 0 | M99: 0 | N99: Loc01clayrm3.0
A100: Loc01clay101rm3.0 | B100: Loc01 | C100: 1993 | D100: clay | E100: 101 | F100: rm3.0 | G100: 135 | H100: 156 | I100: 213 | J100: 52.07530363 | K100: 4.488188976 | L100: 0 | M100: 0 | N100: Loc01clayrm3.0
A101: Loc01clay101rm3.0 | B101: Loc01 | C101: 1994 | D101: clay | E101: 101 | F101: rm3.0 | G101: 130 | H101: 149 | I101: 205 | J101: 44.16122788 | K101: 0 | L101: 0 | M101: 0 | N101: Loc01clayrm3.0
A102: Loc01clay101rm3.0 | B102: Loc01 | C102: 1995 | D102: clay | E102: 101 | F102: rm3.0 | G102: 130 | H102: 148 | I102: 206 | J102: 46.21683197 | K102: 2.204724409 | L102: 0 | M102: 0 | N102: Loc01clayrm3.0
A103: Loc01clay101rm3.0 | B103: Loc01 | C103: 1996 | D103: clay | E103: 101 | F103: rm3.0 | G103: 132 | H103: 151 | I103: 208 | J103: 49.62570876 | K103: 4.488188976 | L103: 0 | M103: 0 | N103: Loc01clayrm3.0
A104: Loc01clay101rm3.0 | B104: Loc01 | C104: 1997 | D104: clay | E104: 101 | F104: rm3.0 | G104: 137 | H104: 157 | I104: 213 | J104: 49.1974579 | K104: 0 | L104: 0 | M104: 0 | N104: Loc01clayrm3.0
A105: Loc01clay101rm3.0 | B105: Loc01 | C105: 1998 | D105: clay | E105: 101 | F105: rm3.0 | G105: 134 | H105: 152 | I105: 209 | J105: 48.30669613 | K105: 6.88976378 | L105: 0 | M105: 0 | N105: Loc01clayrm3.0
A106: Loc01clay101rm3.0 | B106: Loc01 | C106: 1999 | D106: clay | E106: 101 | F106: rm3.0 | G106: 131 | H106: 150 | I106: 207 | J106: 50.75629101 | K106: 0 | L106: 0 | M106: 0 | N106: Loc01clayrm3.0
A107: Loc01clay101rm3.0 | B107: Loc01 | C107: 2000 | D107: clay | E107: 101 | F107: rm3.0 | G107: 133 | H107: 152 | I107: 209 | J107: 53.58274663 | K107: 6.811023622 | L107: 0 | M107: 0 | N107: Loc01clayrm3.0
A108: Loc01clay101rm3.0 | B108: Loc01 | C108: 2001 | D108: clay | E108: 101 | F108: rm3.0 | G108: 134 | H108: 154 | I108: 210 | J108: 52.74337496 | K108: 2.204724409 | L108: 0 | M108: 0 | N108: Loc01clayrm3.0
A109: Loc01clay101rm3.0 | B109: Loc01 | C109: 2002 | D109: clay | E109: 101 | F109: rm3.0 | G109: 127 | H109: 148 | I109: 205 | J109: 48.3923463 | K109: 4.448818898 | L109: 0 | M109: 0 | N109: Loc01clayrm3.0
A110: Loc01clay101rm3.0 | B110: Loc01 | C110: 2003 | D110: clay | E110: 101 | F110: rm3.0 | G110: 130 | H110: 149 | I110: 205 | J110: 48.83772719 | K110: 4.527559055 | L110: 0 | M110: 0 | N110: Loc01clayrm3.0
A111: Loc01clay101rm3.0 | B111: Loc01 | C111: 2004 | D111: clay | E111: 101 | F111: rm3.0 | G111: 134 | H111: 152 | I111: 209 | J111: 48.27243606 | K111: 0 | L111: 0 | M111: 0 | N111: Loc01clayrm3.0
A112: Loc01clay101rm3.0 | B112: Loc01 | C112: 2005 | D112: clay | E112: 101 | F112: rm3.0 | G112: 135 | H112: 155 | I112: 211 | J112: 54.73045891 | K112: 9.133858268 | L112: 0 | M112: 0 | N112: Loc01clayrm3.0
A113: Loc01clay101rm3.0 | B113: Loc01 | C113: 2006 | D113: clay | E113: 101 | F113: rm3.0 | G113: 129 | H113: 149 | I113: 205 | J113: 51.06463162 | K113: 9.488188976 | L113: 0 | M113: 0 | N113: Loc01clayrm3.0
A114: Loc01clay101rm3.0 | B114: Loc01 | C114: 2007 | D114: clay | E114: 101 | F114: rm3.0 | G114: 131 | H114: 151 | I114: 207 | J114: 50.13960978 | K114: 2.283464567 | L114: 0 | M114: 0 | N114: Loc01clayrm3.0
A115: Loc01clay101rm3.0 | B115: Loc01 | C115: 2008 | D115: clay | E115: 101 | F115: rm3.0 | G115: 132 | H115: 151 | I115: 207 | J115: 51.11602172 | K115: 2.283464567 | L115: 0 | M115: 0 | N115: Loc01clayrm3.0
A116: Loc01clay101rm3.0 | B116: Loc01 | C116: 2009 | D116: clay | E116: 101 | F116: rm3.0 | G116: 129 | H116: 148 | I116: 205 | J116: 47.65575483 | K116: 6.771653543 | L116: 0 | M116: 0 | N116: Loc01clayrm3.0
A117: Loc01clay101rm3.0 | B117: Loc01 | C117: 2010 | D117: clay | E117: 101 | F117: rm3.0 | G117: 131 | H117: 149 | I117: 205 | J117: 49.96830944 | K117: 2.362204724 | L117: 0 | M117: 0 | N117: Loc01clayrm3.0
A118: Loc01clay101rm3.0 | B118: Loc01 | C118: 2011 | D118: clay | E118: 101 | F118: rm3.0 | G118: 130 | H118: 151 | I118: 208 | J118: 52.70911489 | K118: 8.976377953 | L118: 0 | M118: 0 | N118: Loc01clayrm3.0
A119: Loc01clay101rm3.0 | B119: Loc01 | C119: 2012 | D119: clay | E119: 101 | F119: rm3.0 | G119: 131 | H119: 151 | I119: 207 | J119: 53.68552683 | K119: 4.566929134 | L119: 0 | M119: 0 | N119: Loc01clayrm3.0
A120: Loc01clay101rm3.0 | B120: Loc01 | C120: 2013 | D120: clay | E120: 101 | F120: rm3.0 | G120: 137 | H120: 156 | I120: 212 | J120: 55.75826096 | K120: 0 | L120: 0 | M120: 0 | N120: Loc01clayrm3.0
A121: Loc01clay101rm3.0 | B121: Loc01 | C121: 2014 | D121: clay | E121: 101 | F121: rm3.0 | G121: 131 | H121: 151 | I121: 207 | J121: 54.23368793 | K121: 0 | L121: 0 | M121: 0 | N121: Loc01clayrm3.0
A122: Loc01clay109rm3.0 | B122: Loc01 | C122: 1985 | D122: clay | E122: 109 | F122: rm3.0 | G122: 136 | H122: 156 | I122: 213 | J122: 48.06687565 | K122: 2.244094488 | L122: 0 | M122: 0 | N122: Loc01clayrm3.0
A123: Loc01clay109rm3.0 | B123: Loc01 | C123: 1986 | D123: clay | E123: 109 | F123: rm3.0 | G123: 136 | H123: 156 | I123: 212 | J123: 43.64732686 | K123: 0 | L123: 0 | M123: 0 | N123: Loc01clayrm3.0
A124: Loc01clay109rm3.0 | B124: Loc01 | C124: 1987 | D124: clay | E124: 109 | F124: rm3.0 | G124: 136 | H124: 155 | I124: 211 | J124: 46.21683197 | K124: 2.244094488 | L124: 0 | M124: 0 | N124: Loc01clayrm3.0
A125: Loc01clay109rm3.0 | B125: Loc01 | C125: 1988 | D125: clay | E125: 109 | F125: rm3.0 | G125: 140 | H125: 160 | I125: 216 | J125: 50.6535108 | K125: 2.204724409 | L125: 0 | M125: 0 | N125: Loc01clayrm3.0
A126: Loc01clay109rm3.0 | B126: Loc01 | C126: 1989 | D126: clay | E126: 109 | F126: rm3.0 | G126: 137 | H126: 155 | I126: 212 | J126: 45.72006098 | K126: 0 | L126: 0 | M126: 0 | N126: Loc01clayrm3.0
A127: Loc01clay109rm3.0 | B127: Loc01 | C127: 1990 | D127: clay | E127: 109 | F127: rm3.0 | G127: 135 | H127: 154 | I127: 211 | J127: 46.67934289 | K127: 2.244094488 | L127: 0 | M127: 0 | N127: Loc01clayrm3.0
A128: Loc01clay109rm3.0 | B128: Loc01 | C128: 1991 | D128: clay | E128: 109 | F128: rm3.0 | G128: 135 | H128: 154 | I128: 210 | J128: 42.91073539 | K128: 0 | L128: 0 | M128: 0 | N128: Loc01clayrm3.0
A129: =CONCATENATE(B129,D129,E129,F129) -> Loc01clay109rm3.0 | B129: Loc01 | C129: 1992 | D129: clay | E129: 109 | F129: rm3.0 | G129: 141 | H129: 161 | I129: 217 | J129: 51.95539339 | K129: 2.244094488 | L129: 0 | M129: 0 | N129: Loc01clayrm3.0
A130: Loc01clay109rm3.0 | B130: Loc01 | C130: 1993 | D130: clay | E130: 109 | F130: rm3.0 | G130: 142 | H130: 162 | I130: 218 | J130: 52.74337496 | K130: 2.322834646 | L130: 0 | M130: 0 | N130: =CONCATENATE(B130,D130,F130) -> Loc01clayrm3.0
A131: Loc01clay109rm3.0 | B131: Loc01 | C131: 1994 | D131: clay | E131: 109 | F131: rm3.0 | G131: 136 | H131: 156 | I131: 212 | J131: 44.69225894 | K131: 0 | L131: 0 | M131: 0 | N131: Loc01clayrm3.0
A132: Loc01clay109rm3.0 | B132: Loc01 | C132: 1995 | D132: clay | E132: 109 | F132: rm3.0 | G132: 136 | H132: 156 | I132: 213 | J132: 48.51225654 | K132: 4.527559055 | L132: 0 | M132: 0 | N132: Loc01clayrm3.0
A133: Loc01clay109rm3.0 | B133: Loc01 | C133: 1996 | D133: clay | E133: 109 | F133: rm3.0 | G133: 138 | H133: 158 | I133: 214 | J133: 51.3044521 | K133: 4.566929134 | L133: 0 | M133: 0 | N133: Loc01clayrm3.0
A134: Loc01clay109rm3.0 | B134: Loc01 | C134: 1997 | D134: clay | E134: 109 | F134: rm3.0 | G134: 141 | H134: 161 | I134: 217 | J134: 50.05395961 | K134: 0 | L134: 0 | M134: 0 | N134: Loc01clayrm3.0
A135: Loc01clay109rm3.0 | B135: Loc01 | C135: 1998 | D135: clay | E135: 109 | F135: rm3.0 | G135: 138 | H135: 158 | I135: 214 | J135: 48.42660637 | K135: 6.692913386 | L135: 0 | M135: 0 | N135: Loc01clayrm3.0
A136: Loc01clay109rm3.0 | B136: Loc01 | C136: 1999 | D136: clay | E136: 109 | F136: rm3.0 | G136: 137 | H136: 157 | I136: 213 | J136: 49.50579852 | K136: 0 | L136: 0 | M136: 0 | N136: Loc01clayrm3.0
A137: Loc01clay109rm3.0 | B137: Loc01 | C137: 2000 | D137: clay | E137: 109 | F137: rm3.0 | G137: 138 | H137: 158 | I137: 214 | J137: 55.21009987 | K137: 6.732283465 | L137: 0 | M137: 0 | N137: Loc01clayrm3.0
A138: Loc01clay109rm3.0 | B138: Loc01 | C138: 2001 | D138: clay | E138: 109 | F138: rm3.0 | G138: 140 | H138: 161 | I138: 217 | J138: 54.62767871 | K138: 2.204724409 | L138: 0 | M138: 0 | N138: Loc01clayrm3.0
A139: Loc01clay109rm3.0 | B139: Loc01 | C139: 2002 | D139: clay | E139: 109 | F139: rm3.0 | G139: 133 | H139: 156 | I139: 212 | J139: 52.12669373 | K139: 4.527559055 | L139: 0 | M139: 0 | N139: Loc01clayrm3.0
A140: Loc01clay109rm3.0 | B140: Loc01 | C140: 2003 | D140: clay | E140: 109 | F140: rm3.0 | G140: 136 | H140: 155 | I140: 212 | J140: 53.42857632 | K140: 2.204724409 | L140: 0 | M140: 0 | N140: Loc01clayrm3.0
A141: Loc01clay109rm3.0 | B141: Loc01 | C141: 2004 | D141: clay | E141: 109 | F141: rm3.0 | G141: 139 | H141: 158 | I141: 214 | J141: 49.11180773 | K141: 0 | L141: 0 | M141: 0 | N141: Loc01clayrm3.0
A142: Loc01clay109rm3.0 | B142: Loc01 | C142: 2005 | D142: clay | E142: 109 | F142: rm3.0 | G142: 141 | H142: 161 | I142: 217 | J142: 57.31709406 | K142: 8.976377953 | L142: 0 | M142: 0 | N142: Loc01clayrm3.0
A143: Loc01clay109rm3.0 | B143: Loc01 | C143: 2006 | D143: clay | E143: 109 | F143: rm3.0 | G143: 137 | H143: 157 | I143: 213 | J143: 52.84615516 | K143: 9.448818898 | L143: 0 | M143: 0 | N143: Loc01clayrm3.0
A144: Loc01clay109rm3.0 | B144: Loc01 | C144: 2007 | D144: clay | E144: 109 | F144: rm3.0 | G144: 136 | H144: 157 | I144: 212 | J144: 49.40301831 | K144: 2.204724409 | L144: 0 | M144: 0 | N144: Loc01clayrm3.0
A145: Loc01clay109rm3.0 | B145: Loc01 | C145: 2008 | D145: clay | E145: 109 | F145: rm3.0 | G145: 138 | H145: 157 | I145: 213 | J145: 50.94472138 | K145: 2.244094488 | L145: 0 | M145: 0 | N145: Loc01clayrm3.0
A146: Loc01clay109rm3.0 | B146: Loc01 | C146: 2009 | D146: clay | E146: 109 | F146: rm3.0 | G146: 134 | H146: 154 | I146: 211 | J146: 46.76499306 | K146: 6.732283465 | L146: 0 | M146: 0 | N146: Loc01clayrm3.0
A147: Loc01clay109rm3.0 | B147: Loc01 | C147: 2010 | D147: clay | E147: 109 | F147: rm3.0 | G147: 137 | H147: 156 | I147: 211 | J147: 50.10534971 | K147: 2.598425197 | L147: 0 | M147: 0 | N147: Loc01clayrm3.0
A148: Loc01clay109rm3.0 | B148: Loc01 | C148: 2011 | D148: clay | E148: 109 | F148: rm3.0 | G148: 140 | H148: 160 | I148: 216 | J148: 55.65548075 | K148: 6.811023622 | L148: 0 | M148: 0 | N148: Loc01clayrm3.0
A149: Loc01clay109rm3.0 | B149: Loc01 | C149: 2012 | D149: clay | E149: 109 | F149: rm3.0 | G149: 137 | H149: 156 | I149: 213 | J149: 53.83969714 | K149: 4.448818898 | L149: 0 | M149: 0 | N149: Loc01clayrm3.0
A150: Loc01clay109rm3.0 | B150: Loc01 | C150: 2013 | D150: clay | E150: 109 | F150: rm3.0 | G150: 142 | H150: 161 | I150: 217 | J150: 55.1758398 | K150: 0 | L150: 0 | M150: 0 | N150: Loc01clayrm3.0
A151: Loc01clay109rm3.0 | B151: Loc01 | C151: 2014 | D151: clay | E151: 109 | F151: rm3.0 | G151: 138 | H151: 157 | I151: 213 | J151: 54.06238758 | K151: 0 | L151: 0 | M151: 0 | N151: Loc01clayrm3.0
A152: Loc01clay117rm3.0 | B152: Loc01 | C152: 1985 | D152: clay | E152: 117 | F152: rm3.0 | G152: 144 | H152: 164 | I152: 220 | J152: 48.16965586 | K152: 2.283464567 | L152: 0 | M152: 0 | N152: Loc01clayrm3.0
A153: Loc01clay117rm3.0 | B153: Loc01 | C153: 1986 | D153: clay | E153: 117 | F153: rm3.0 | G153: 144 | H153: 163 | I153: 218 | J153: 45.72006098 | K153: 0 | L153: 0 | M153: 0 | N153: Loc01clayrm3.0
A154: Loc01clay117rm3.0 | B154: Loc01 | C154: 1987 | D154: clay | E154: 117 | F154: rm3.0 | G154: 142 | H154: 161 | I154: 217 | J154: 45.00059955 | K154: 0 | L154: 0 | M154: 0 | N154: Loc01clayrm3.0
A155: Loc01clay117rm3.0 | B155: Loc01 | C155: 1988 | D155: clay | E155: 117 | F155: rm3.0 | G155: 146 | H155: 168 | I155: 223 | J155: 52.84615516 | K155: 2.322834646 | L155: 0 | M155: 0 | N155: Loc01clayrm3.0
A156: Loc01clay117rm3.0 | B156: Loc01 | C156: 1989 | D156: clay | E156: 117 | F156: rm3.0 | G156: 144 | H156: 164 | I156: 219 | J156: 48.30669613 | K156: 0 | L156: 0 | M156: 0 | N156: Loc01clayrm3.0
A157: Loc01clay117rm3.0 | B157: Loc01 | C157: 1990 | D157: clay | E157: 117 | F157: rm3.0 | G157: 143 | H157: 163 | I157: 219 | J157: 50.01969954 | K157: 2.244094488 | L157: 0 | M157: 0 | N157: Loc01clayrm3.0
A158: Loc01clay117rm3.0 | B158: Loc01 | C158: 1991 | D158: clay | E158: 117 | F158: rm3.0 | G158: 143 | H158: 162 | I158: 218 | J158: 46.25109204 | K158: 2.244094488 | L158: 0 | M158: 0 | N158: Loc01clayrm3.0
A159: Loc01clay117rm3.0 | B159: Loc01 | C159: 1992 | D159: clay | E159: 117 | F159: rm3.0 | G159: 148 | H159: 168 | I159: 223 | J159: 50.77342104 | K159: 0 | L159: 0 | M159: 0 | N159: Loc01clayrm3.0
A160: Loc01clay117rm3.0 | B160: Loc01 | C160: 1993 | D160: clay | E160: 117 | F160: rm3.0 | G160: 148 | H160: 169 | I160: 223 | J160: 50.37943026 | K160: 2.244094488 | L160: 0 | M160: 0 | N160: Loc01clayrm3.0
A161: Loc01clay117rm3.0 | B161: Loc01 | C161: 1994 | D161: clay | E161: 117 | F161: rm3.0 | G161: 144 | H161: 164 | I161: 219 | J161: 47.84418521 | K161: 0 | L161: 0 | M161: 0 | N161: Loc01clayrm3.0
A162: Loc01clay117rm3.0 | B162: Loc01 | C162: 1995 | D162: clay | E162: 117 | F162: rm3.0 | G162: 144 | H162: 163 | I162: 219 | J162: 50.34517019 | K162: 4.527559055 | L162: 0 | M162: 0 | N162: Loc01clayrm3.0
A163: Loc01clay117rm3.0 | B163: Loc01 | C163: 1996 | D163: clay | E163: 117 | F163: rm3.0 | G163: 144 | H163: 164 | I163: 219 | J163: 52.40077428 | K163: 4.448818898 | L163: 0 | M163: 0 | N163: Loc01clayrm3.0
A164: Loc01clay117rm3.0 | B164: Loc01 | C164: 1997 | D164: clay | E164: 117 | F164: rm3.0 | G164: 147 | H164: 167 | I164: 222 | J164: 49.69422889 | K164: 0 | L164: 0 | M164: 0 | N164: Loc01clayrm3.0
A165: Loc01clay117rm3.0 | B165: Loc01 | C165: 1998 | D165: clay | E165: 117 | F165: rm3.0 | G165: 144 | H165: 165 | I165: 220 | J165: 51.15028179 | K165: 4.566929134 | L165: 0 | M165: 0 | N165: Loc01clayrm3.0
A166: Loc01clay117rm3.0 | B166: Loc01 | C166: 1999 | D166: clay | E166: 117 | F166: rm3.0 | G166: 144 | H166: 164 | I166: 219 | J166: 51.83548315 | K166: 0 | L166: 0 | M166: 0 | N166: Loc01clayrm3.0
A167: Loc01clay117rm3.0 | B167: Loc01 | C167: 2000 | D167: clay | E167: 117 | F167: rm3.0 | G167: 144 | H167: 164 | I167: 219 | J167: 53.70265687 | K167: 6.811023622 | L167: 0 | M167: 0 | N167: Loc01clayrm3.0
A168: Loc01clay117rm3.0 | B168: Loc01 | C168: 2001 | D168: clay | E168: 117 | F168: rm3.0 | G168: 146 | H168: 166 | I168: 222 | J168: 55.79252103 | K168: 2.283464567 | L168: 0 | M168: 0 | N168: Loc01clayrm3.0
A169: Loc01clay117rm3.0 | B169: Loc01 | C169: 2002 | D169: clay | E169: 117 | F169: rm3.0 | G169: 146 | H169: 166 | I169: 221 | J169: 57.83099508 | K169: 4.527559055 | L169: 0 | M169: 0 | N169: Loc01clayrm3.0
A170: Loc01clay117rm3.0 | B170: Loc01 | C170: 2003 | D170: clay | E170: 117 | F170: rm3.0 | G170: 142 | H170: 162 | I170: 218 | J170: 51.61279271 | K170: 2.244094488 | L170: 0 | M170: 0 | N170: Loc01clayrm3.0
A171: Loc01clay117rm3.0 | B171: Loc01 | C171: 2004 | D171: clay | E171: 117 | F171: rm3.0 | G171: 146 | H171: 165 | I171: 220 | J171: 51.93826336 | K171: 2.204724409 | L171: 0 | M171: 0 | N171: Loc01clayrm3.0
A172: Loc01clay117rm3.0 | B172: Loc01 | C172: 2005 | D172: clay | E172: 117 | F172: rm3.0 | G172: 146 | H172: 166 | I172: 221 | J172: 56.0323415 | K172: 8.897637795 | L172: 0 | M172: 0 | N172: Loc01clayrm3.0
A173: Loc01clay117rm3.0 | B173: Loc01 | C173: 2006 | D173: clay | E173: 117 | F173: rm3.0 | G173: 146 | H173: 166 | I173: 221 | J173: 56.08373161 | K173: 9.05511811 | L173: 0 | M173: 0 | N173: Loc01clayrm3.0
A174: Loc01clay117rm3.0 | B174: Loc01 | C174: 2007 | D174: clay | E174: 117 | F174: rm3.0 | G174: 144 | H174: 163 | I174: 219 | J174: 52.1095637 | K174: 2.204724409 | L174: 0 | M174: 0 | N174: Loc01clayrm3.0
A175: Loc01clay117rm3.0 | B175: Loc01 | C175: 2008 | D175: clay | E175: 117 | F175: rm3.0 | G175: 145 | H175: 164 | I175: 220 | J175: 54.73045891 | K175: 4.488188976 | L175: 0 | M175: 0 | N175: Loc01clayrm3.0
A176: Loc01clay117rm3.0 | B176: Loc01 | C176: 2009 | D176: clay | E176: 117 | F176: rm3.0 | G176: 143 | H176: 163 | I176: 219 | J176: 49.35162821 | K176: 6.929133858 | L176: 0 | M176: 0 | N176: Loc01clayrm3.0
A177: Loc01clay117rm3.0 | B177: Loc01 | C177: 2010 | D177: clay | E177: 117 | F177: rm3.0 | G177: 143 | H177: 163 | I177: 218 | J177: 53.27440602 | K177: 4.566929134 | L177: 0 | M177: 0 | N177: Loc01clayrm3.0
A178: Loc01clay117rm3.0 | B178: Loc01 | C178: 2011 | D178: clay | E178: 117 | F178: rm3.0 | G178: 147 | H178: 168 | I178: 223 | J178: 56.7346729 | K178: 6.771653543 | L178: 0 | M178: 0 | N178: Loc01clayrm3.0
A179: Loc01clay117rm3.0 | B179: Loc01 | C179: 2012 | D179: clay | E179: 117 | F179: rm3.0 | G179: 144 | H179: 164 | I179: 219 | J179: 53.94247735 | K179: 4.488188976 | L179: 0 | M179: 0 | N179: Loc01clayrm3.0
A180: Loc01clay117rm3.0 | B180: Loc01 | C180: 2013 | D180: clay | E180: 117 | F180: rm3.0 | G180: 148 | H180: 168 | I180: 223 | J180: 57.28283399 | K180: 0 | L180: 0 | M180: 0 | N180: Loc01clayrm3.0
A181: Loc01clay117rm3.0 | B181: Loc01 | C181: 2014 | D181: clay | E181: 117 | F181: rm3.0 | G181: 145 | H181: 164 | I181: 220 | J181: 56.11799167 | K181: 0 | L181: 0 | M181: 0 | N181: Loc01clayrm3.0
A182: Loc01clay124rm3.0 | B182: Loc01 | C182: 1985 | D182: clay | E182: 124 | F182: rm3.0 | G182: 152 | H182: 172 | I182: 226 | J182: 50.13960978 | K182: 2.244094488 | L182: 0 | M182: 0 | N182: Loc01clayrm3.0
A183: Loc01clay124rm3.0 | B183: Loc01 | C183: 1986 | D183: clay | E183: 124 | F183: rm3.0 | G183: 149 | H183: 169 | I183: 223 | J183: 46.45665245 | K183: 2.204724409 | L183: 0 | M183: 0 | N183: Loc01clayrm3.0
A184: Loc01clay124rm3.0 | B184: Loc01 | C184: 1987 | D184: clay | E184: 124 | F184: rm3.0 | G184: 149 | H184: 168 | I184: 223 | J184: 46.74786303 | K184: 0 | L184: 0 | M184: 0 | N184: Loc01clayrm3.0
A185: Loc01clay124rm3.0 | B185: Loc01 | C185: 1988 | D185: clay | E185: 124 | F185: rm3.0 | G185: 153 | H185: 174 | I185: 228 | J185: 53.29153605 | K185: 2.244094488 | L185: 0 | M185: 0 | N185: Loc01clayrm3.0
A186: Loc01clay124rm3.0 | B186: Loc01 | C186: 1989 | D186: clay | E186: 124 | F186: rm3.0 | G186: 151 | H186: 171 | I186: 226 | J186: 53.36005619 | K186: 0 | L186: 0 | M186: 0 | N186: Loc01clayrm3.0
A187: Loc01clay124rm3.0 | B187: Loc01 | C187: 1990 | D187: clay | E187: 124 | F187: rm3.0 | G187: 151 | H187: 171 | I187: 226 | J187: 54.30220806 | K187: 2.244094488 | L187: 0 | M187: 0 | N187: Loc01clayrm3.0
A188: Loc01clay124rm3.0 | B188: Loc01 | C188: 1991 | D188: clay | E188: 124 | F188: rm3.0 | G188: 150 | H188: 169 | I188: 224 | J188: 49.36875824 | K188: 2.204724409 | L188: 0 | M188: 0 | N188: Loc01clayrm3.0
A189: Loc01clay124rm3.0 | B189: Loc01 | C189: 1992 | D189: clay | E189: 124 | F189: rm3.0 | G189: 152 | H189: 173 | I189: 227 | J189: 51.25306199 | K189: 0 | L189: 0 | M189: 0 | N189: Loc01clayrm3.0
A190: Loc01clay124rm3.0 | B190: Loc01 | C190: 1993 | D190: clay | E190: 124 | F190: rm3.0 | G190: 155 | H190: 175 | I190: 228 | J190: 49.65996882 | K190: 4.409448819 | L190: 0 | M190: 0 | N190: Loc01clayrm3.0
A191: Loc01clay124rm3.0 | B191: Loc01 | C191: 1994 | D191: clay | E191: 124 | F191: rm3.0 | G191: 152 | H191: 172 | I191: 226 | J191: 50.12247974 | K191: 0 | L191: 0 | M191: 0 | N191: Loc01clayrm3.0
A192: Loc01clay124rm3.0 | B192: Loc01 | C192: 1995 | D192: clay | E192: 124 | F192: rm3.0 | G192: 150 | H192: 170 | I192: 225 | J192: 51.01324152 | K192: 4.527559055 | L192: 0 | M192: 0 | N192: Loc01clayrm3.0
A193: =CONCATENATE(B193,D193,E193,F193) -> Loc01clay124rm3.0 | B193: Loc01 | C193: 1996 | D193: clay | E193: 124 | F193: rm3.0 | G193: 151 | H193: 171 | I193: 225 | J193: 53.82256711 | K193: 2.322834646 | L193: 0 | M193: 0 | N193: Loc01clayrm3.0
A194: Loc01clay124rm3.0 | B194: Loc01 | C194: 1997 | D194: clay | E194: 124 | F194: rm3.0 | G194: 152 | H194: 172 | I194: 226 | J194: 50.51647053 | K194: 0 | L194: 0 | M194: 0 | N194: =CONCATENATE(B194,D194,F194) -> Loc01clayrm3.0
A195: Loc01clay124rm3.0 | B195: Loc01 | C195: 1998 | D195: clay | E195: 124 | F195: rm3.0 | G195: 150 | H195: 170 | I195: 224 | J195: 49.69422889 | K195: 4.448818898 | L195: 0 | M195: 0 | N195: Loc01clayrm3.0
A196: Loc01clay124rm3.0 | B196: Loc01 | C196: 1999 | D196: clay | E196: 124 | F196: rm3.0 | G196: 150 | H196: 170 | I196: 224 | J196: 50.89333128 | K196: 0 | L196: 0 | M196: 0 | N196: Loc01clayrm3.0
A197: Loc01clay124rm3.0 | B197: Loc01 | C197: 2000 | D197: clay | E197: 124 | F197: rm3.0 | G197: 150 | H197: 170 | I197: 225 | J197: 54.81610908 | K197: 6.653543307 | L197: 0 | M197: 0 | N197: Loc01clayrm3.0
A198: Loc01clay124rm3.0 | B198: Loc01 | C198: 2001 | D198: clay | E198: 124 | F198: rm3.0 | G198: 152 | H198: 172 | I198: 227 | J198: 54.98740942 | K198: 2.322834646 | L198: 0 | M198: 0 | N198: Loc01clayrm3.0
A199: Loc01clay124rm3.0 | B199: Loc01 | C199: 2002 | D199: clay | E199: 124 | F199: rm3.0 | G199: 154 | H199: 175 | I199: 229 | J199: 57.91664525 | K199: 4.488188976 | L199: 0 | M199: 0 | N199: Loc01clayrm3.0
A200: Loc01clay124rm3.0 | B200: Loc01 | C200: 2003 | D200: clay | E200: 124 | F200: rm3.0 | G200: 150 | H200: 170 | I200: 224 | J200: 52.00678349 | K200: 4.448818898 | L200: 0 | M200: 0 | N200: Loc01clayrm3.0
... 4300 more rows

Sheet Prices (hidden)
W1: =+'Output 4'!L13 -> New Orleans, LA | X1: =+'Output 4'!L14 -> Memphis, TN | Y1: =+'Output 4'!L15 -> Old Town, AR | Z1: =+'Output 4'!L16 -> Kansas City, MO | AA1: =+'Output 4'!L17 -> Joplin, MO | AB1: =+'Output 4'!L18 -> Chicago, Futures | AC1: =+W1 -> New Orleans, LA | AD1: Memphis, TN | AE1: Old Town, AR | AF1: Kansas City, MO | AG1: Joplin, MO | AH1: Chicago, Futures
A2: Year | B2: Week | C2: LA Gulf | D2: Memphis | E2: AR Old Town | F2: Kansas City | G2: MO Joplin' | H2: Futures | I2: Moving Avg's | O2: Index LA | P2: Index TN | Q2: Index AR | R2: Index MO | S2: Index Joplin | T2: Index Futures | V2: Week | W2: Avg. Index | AC2: Std. Dev. Index
A3: 2005 | B3: 1 | C3: 5.915 | D3: 5.588 | E3: 5.436 | F3: 5.18625 | G3: 4.896 | H3: 5.326 | V3: 1 | W3: =AVERAGE(O55,O107,O159,O211,O263,O315,O367,O419,O471) -> 0.9964446957 | X3: 1.009672313 | Y3: 1.018549308 | Z3: 0.984488384 | AA3: 0.9939733906 | AB3: 0.9975732081 | AC3: =STDEV(O55,O107,O159,O211,O263,O315,O367,O419,O471) -> 0.06285926281 | AD3: 0.06626050937 | AE3: 0.06838329539 | AF3: 0.06710539218 | AG3: 0.08158936421 | AH3: 0.07192137597
B4: 2 | C4: 6.072 | D4: 5.667 | E4: 5.476 | F4: 5.24875 | G4: 5.038333333 | H4: 5.366 | V4: 2 | W4: =AVERAGE(O56,O108,O160,O212,O264,O316,O368,O420,O472) -> 0.9854444638 | X4: 0.9964402327 | Y4: 1.004303469 | Z4: 0.9722408487 | AA4: 0.9758637394 | AB4: 0.988341762 | AC4: =STDEV(O56,O108,O160,O212,O264,O316,O368,O420,O472) -> 0.05524532253 | AD4: 0.05560753049 | AE4: 0.060708744 | AF4: 0.05852304515 | AG4: 0.07012315368 | AH4: 0.06352291519
B5: 3 | C5: 5.905 | D5: 5.495 | E5: 5.29 | F5: 5.13875 | H5: 5.18 | V5: 3 | W5: =AVERAGE(O57,O109,O161,O213,O265,O317,O369,O421,O473) -> 0.9921192903 | X5: 0.9994094653 | Y5: 1.009816785 | Z5: 0.9781993912 | AA5: 0.9937991401 | AB5: 0.9950529241 | AC5: =STDEV(O57,O109,O161,O213,O265,O317,O369,O421,O473) -> 0.05290812185 | AD5: 0.05327788387 | AE5: 0.05565445371 | AF5: 0.05733722547 | AG5: 0.05964119924 | AH5: 0.06389440047
B6: 4 | C6: 5.906 | D6: 5.515 | E6: 5.308 | F6: 5.198 | H6: 5.198 | V6: 4 | W6: =AVERAGE(O58,O110,O162,O214,O266,O318,O370,O422,O474) -> 0.9890149864 | X6: 0.995997514 | Y6: 1.004337722 | Z6: 0.9745432059 | AA6: 0.9840395762 | AB6: 0.9892032093 | AC6: =STDEV(O58,O110,O162,O214,O266,O318,O370,O422,O474) -> 0.04308900853 | AD6: 0.04203438495 | AE6: 0.04213753121 | AF6: 0.04361227219 | AG6: 0.04940731064 | AH6: 0.04867657648
B7: 5 | C7: 5.63 | D7: 5.339 | E7: 5.168 | F7: 5.058 | G7: 4.785 | H7: 5.058 | V7: 5 | W7: =AVERAGE(O59,O111,O163,O215,O267,O319,O371,O423,O475) -> 0.9913657205 | X7: 0.9993059842 | Y7: 1.006449366 | Z7: 0.9823032297 | AA7: 0.9780487191 | AB7: 0.9934846584 | AC7: =STDEV(O59,O111,O163,O215,O267,O319,O371,O423,O475) -> 0.06061469256 | AD7: 0.06182017753 | AE7: 0.0608353587 | AF7: 0.0586385041 | AG7: 0.07015961278 | AH7: 0.06168064755
B8: 6 | C8: 5.697 | D8: 5.387 | E8: 5.226 | F8: 5.125 | H8: 5.116 | V8: 6 | W8: =AVERAGE(O60,O112,O164,O216,O268,O320,O372,O424,O476) -> 1.001352089 | X8: 1.011289928 | Y8: 1.020147752 | Z8: 0.9972468459 | AA8: 0.9953101433 | AB8: 1.007346492 | AC8: =STDEV(O60,O112,O164,O216,O268,O320,O372,O424,O476) -> 0.06238094985 | AD8: 0.06281397449 | AE8: 0.06511735307 | AF8: 0.05731574864 | AG8: 0.07510968451 | AH8: 0.06118275438
B9: 7 | C9: 5.928 | D9: 5.566 | E9: 5.532 | F9: 5.422 | H9: 5.422 | V9: 7 | W9: =AVERAGE(O61,O113,O165,O217,O269,O321,O373,O425,O477) -> 1.002920346 | X9: 1.012602153 | Y9: 1.017507708 | Z9: 0.995578179 | AA9: 0.9956161706 | AB9: 1.006359213 | AC9: =STDEV(O61,O113,O165,O217,O269,O321,O373,O425,O477) -> 0.05984664536 | AD9: 0.05930749989 | AE9: 0.05712707173 | AF9: 0.05250542193 | AG9: 0.07078936202 | AH9: 0.05394300069
B10: 8 | C10: 6.2825 | D10: 5.895 | E10: 5.8175 | F10: 5.675 | H10: 5.8025 | V10: 8 | W10: =AVERAGE(O62,O114,O166,O218,O270,O322,O374,O426,O478) -> 1.002659919 | X10: 1.013227546 | Y10: 1.019449903 | Z10: 0.9957634575 | AA10: 0.9936422152 | AB10: 1.006321316 | AC10: =STDEV(O62,O114,O166,O218,O270,O322,O374,O426,O478) -> 0.07498419469 | AD10: 0.0765655348 | AE10: 0.06914419148 | AF10: 0.07273676492 | AG10: 0.08466206509 | AH10: 0.07386058955
B11: 9 | C11: 6.589 | D11: 6.202 | E11: 6.106 | F11: 5.994 | G11: 5.395 | H11: 6.226 | V11: 9 | W11: =AVERAGE(O63,O115,O167,O219,O271,O323,O375,O427,O479) -> 1.011795222 | X11: 1.023009762 | Y11: 1.032373416 | Z11: 1.006695242 | AA11: 1.006859207 | AB11: 1.019136074 | AC11: =STDEV(O63,O115,O167,O219,O271,O323,O375,O427,O479) -> 0.09076932241 | AD11: 0.08830023421 | AE11: 0.0852967418 | AF11: 0.08127639194 | AG11: 0.09347595681 | AH11: 0.08440301422
B12: 10 | C12: 6.661 | D12: 6.317 | E12: 6.188 | F12: 6.098 | H12: 6.348 | V12: 10 | W12: =AVERAGE(O64,O116,O168,O220,O272,O324,O376,O428,O480) -> 1.004580718 | X12: 1.015512651 | Y12: 1.025022734 | Z12: 1.002976249 | AA12: 0.9931758226 | AB12: 1.019596422 | AC12: =STDEV(O64,O116,O168,O220,O272,O324,O376,O428,O480) -> 0.07277717958 | AD12: 0.07214554679 | AE12: 0.06934601776 | AF12: 0.06751009419 | AG12: 0.0750571211 | AH12: 0.07751703251
B13: 11 | C13: 6.924 | D13: 6.562 | E13: 6.504 | F13: 6.424 | H13: 6.664 | V13: 11 | W13: =AVERAGE(O65,O117,O169,O221,O273,O325,O377,O429,O481) -> 0.9850879748 | X13: 0.996408986 | Y13: 1.008513269 | Z13: 0.9908593282 | AA13: 0.981921848 | AB13: 1.003513045 | AC13: =STDEV(O65,O117,O169,O221,O273,O325,O377,O429,O481) -> 0.04894074709 | AD13: 0.04584272502 | AE13: 0.0475612966 | AF13: 0.0428722766 | AG13: 0.04875509118 | AH13: 0.05396853987
B14: 12 | C14: 6.5025 | D14: 6.21 | E14: 6.105 | F14: 6.015 | H14: 6.265 | V14: 12 | W14: =AVERAGE(O66,O118,O170,O222,O274,O326,O378,O430,O482) -> 0.9856959195 | X14: 0.9971680234 | Y14: 1.009423984 | Z14: 0.9937798757 | AA14: 0.9808574171 | AB14: 1.005088475 | AC14: =STDEV(O66,O118,O170,O222,O274,O326,O378,O430,O482) -> 0.0338258492 | AD14: 0.02938010463 | AE14: 0.03982805614 | AF14: 0.03165452495 | AG14: 0.03416071976 | AH14: 0.03518740123
B15: 13 | C15: 6.513 | D15: 6.239 | E15: 6.106 | F15: 6.06 | H15: 6.266 | V15: 13 | W15: =AVERAGE(O67,O119,O171,O223,O275,O327,O379,O431,O483) -> 0.990066744 | X15: 1.003105915 | Y15: 1.013963748 | Z15: 1.002374476 | AA15: 0.9878487611 | AB15: 1.010302994 | AC15: =STDEV(O67,O119,O171,O223,O275,O327,O379,O431,O483) -> 0.04169699075 | AD15: 0.03657097839 | AE15: 0.04578560481 | AF15: 0.03898200218 | AG15: 0.03519656627 | AH15: 0.04171324849
B16: 14 | C16: 6.436 | D16: 6.152 | E16: 6.024 | F16: 6.044 | H16: 6.184 | V16: 14 | W16: =AVERAGE(O68,O120,O172,O224,O276,O328,O380,O432,O484) -> 0.9879355646 | X16: 1.000952684 | Y16: 1.012644344 | Z16: 1.003927124 | AA16: 0.9908650131 | AB16: 1.009914455 | AC16: =STDEV(O68,O120,O172,O224,O276,O328,O380,O432,O484) -> 0.05005866256 | AD16: 0.04956634211 | AE16: 0.06778828998 | AF16: 0.05001402797 | AG16: 0.0442862097 | AH16: 0.0545510483
B17: 15 | C17: 6.473 | D17: 6.199 | E17: 6.022 | F17: 6.112 | H17: 6.182 | V17: 15 | W17: =AVERAGE(O69,O121,O173,O225,O277,O329,O381,O433,O485) -> 0.9966711727 | X17: 1.010156074 | Y17: 1.020379648 | Z17: 0.9949139057 | AA17: 0.9997088404 | AB17: 0.9979161902 | AC17: =STDEV(O69,O121,O173,O225,O277,O329,O381,O433,O485) -> 0.05168965465 | AD17: 0.0514004616 | AE17: 0.07243059117 | AF17: 0.08735865264 | AG17: 0.04793632239 | AH17: 0.09385865437
B18: 16 | C18: 6.614 | D18: 6.343 | E18: 6.126 | F18: 6.236 | G18: 5.525 | H18: 6.286 | V18: 16 | W18: =AVERAGE(O70,O122,O174,O226,O278,O330,O382,O434,O486) -> 1.006636995 | X18: 1.021439994 | Y18: 1.008316557 | Z18: 1.02583763 | AA18: 1.00586518 | AB18: 1.023591435 | AC18: =STDEV(O70,O122,O174,O226,O278,O330,O382,O434,O486) -> 0.05970015198 | AD18: 0.05930052934 | AE18: 0.05421899462 | AF18: 0.0598412575 | AG18: 0.06356301488 | AH18: 0.07068944839
B19: 17 | C19: 6.636 | D19: 6.366 | E19: 6.196 | F19: 6.262 | H19: 6.272 | V19: 17 | W19: =AVERAGE(O71,O123,O175,O227,O279,O331,O383,O435,O487) -> 1.010193958 | X19: 1.025776293 | Y19: 1.011217587 | Z19: 1.028968417 | AA19: 1.019672129 | AB19: 1.024093213 | AC19: =STDEV(O71,O123,O175,O227,O279,O331,O383,O435,O487) -> 0.05876452862 | AD19: 0.05886580454 | AE19: 0.05340035683 | AF19: 0.06022876012 | AG19: 0.06142279019 | AH19: 0.06953333071
B20: 18 | C20: 6.633 | D20: 6.335 | E20: 6.214 | F20: 6.2 | H20: 6.294 | V20: 18 | W20: =AVERAGE(O72,O124,O176,O228,O280,O332,O384,O436,O488) -> 1.014913146 | X20: 1.029322754 | Y20: 1.017902402 | Z20: 1.034776816 | AA20: 1.031122756 | AB20: 1.035226162 | AC20: =STDEV(O72,O124,O176,O228,O280,O332,O384,O436,O488) -> 0.06046877346 | AD20: 0.06551692298 | AE20: 0.06422554355 | AF20: 0.06363331116 | AG20: 0.06240738427 | AH20: 0.07227954231
B21: 19 | C21: 6.622 | D21: 6.342 | E21: 6.224 | F21: 6.258 | G21: 5.9 | H21: 6.284 | V21: 19 | W21: =AVERAGE(O73,O125,O177,O229,O281,O333,O385,O437,O489) -> 1.010772977 | X21: 1.022660606 | Y21: 1.007133722 | Z21: 1.029737163 | AA21: 1.024979434 | AB21: 1.030828349 | AC21: =STDEV(O73,O125,O177,O229,O281,O333,O385,O437,O489) -> 0.06546351746 | AD21: 0.06993550703 | AE21: 0.07997220269 | AF21: 0.06768659816 | AG21: 0.07207774662 | AH21: 0.07545664008
B22: 20 | C22: 6.6 | D22: 6.337 | E22: 6.218 | F22: 6.268 | H22: 6.278 | V22: 20 | W22: =AVERAGE(O74,O126,O178,O230,O282,O334,O386,O438,O490) -> 1.023251827 | X22: 1.035125929 | Y22: 0.9947438752 | Z22: 1.043034279 | AA22: 1.034335278 | AB22: 1.041974911 | AC22: =STDEV(O74,O126,O178,O230,O282,O334,O386,O438,O490) -> 0.06989190597 | AD22: 0.07640768469 | AE22: 0.04615142027 | AF22: 0.07286311772 | AG22: 0.0818697967 | AH22: 0.08164064691
B23: 21 | C23: 6.876 | D23: 6.617 | E23: 6.534 | F23: 6.548 | H23: 6.594 | V23: 21 | W23: =AVERAGE(O75,O127,O179,O231,O283,O335,O387,O439,O491) -> 1.02598527 | X23: 1.040464246 | Y23: 0.9980076309 | Z23: 1.046646954 | AA23: 1.036336063 | AB23: 1.040959987 | AC23: =STDEV(O75,O127,O179,O231,O283,O335,O387,O439,O491) -> 0.08400404552 | AD23: 0.09091075046 | AE23: 0.05940024654 | AF23: 0.08781058233 | AG23: 0.09250102683 | AH23: 0.09533813067
B24: 22 | C24: 7.07625 | D24: 6.8025 | E24: 6.7125 | F24: 6.6575 | G24: 6.235 | H24: 6.7725 | V24: 22 | W24: =AVERAGE(O76,O128,O180,O232,O284,O336,O388,O440,O492) -> 1.029706502 | X24: 1.043417311 | Y24: 0.9955199993 | Z24: 1.050698928 | AA24: 1.038237136 | AB24: 1.039970105 | AC24: =STDEV(O76,O128,O180,O232,O284,O336,O388,O440,O492) -> 0.08772193122 | AD24: 0.0945698376 | AE24: 0.06247568817 | AF24: 0.09412827428 | AG24: 0.0999695727 | AH24: 0.1032839002
B25: 23 | C25: 7 | D25: 6.752 | E25: 6.66 | F25: 6.6 | H25: 6.72 | V25: 23 | W25: =AVERAGE(O77,O129,O181,O233,O285,O337,O389,O441,O493) -> 1.0433739 | X25: 1.056360143 | Y25: 1.010076435 | Z25: 1.061854502 | AA25: 1.050047516 | AB25: 1.053135344 | AC25: =STDEV(O77,O129,O181,O233,O285,O337,O389,O441,O493) -> 0.09188846431 | AD25: 0.1006398164 | AE25: 0.07497746519 | AF25: 0.09484198459 | AG25: 0.1014533392 | AH25: 0.09810659445
B26: 24 | C26: 7.221 | D26: 6.978 | E26: 6.938 | F26: 6.869 | H26: 6.998 | V26: 24 | W26: =AVERAGE(O78,O130,O182,O234,O286,O338,O390,O442,O494) -> 1.049688746 | X26: 1.062349371 | Y26: 1.012669894 | Z26: 1.065649329 | AA26: 1.057319447 | AB26: 1.050399543 | AC26: =STDEV(O78,O130,O182,O234,O286,O338,O390,O442,O494) -> 0.1013938676 | AD26: 0.1086221441 | AE26: 0.1007081958 | AF26: 0.09941530007 | AG26: 0.109706561 | AH26: 0.09691796411
B27: 25 | C27: 7.523 | D27: 7.278 | E27: 7.244 | F27: 7.251 | H27: 7.364 | V27: 25 | W27: =AVERAGE(O79,O131,O183,O235,O287,O339,O391,O443,O495) -> 1.044147085 | X27: 1.05434987 | Y27: 1.012991393 | Z27: 1.061177092 | AA27: 1.050479688 | AB27: 1.042243783 | AC27: =STDEV(O79,O131,O183,O235,O287,O339,O391,O443,O495) -> 0.1021382752 | AD27: 0.1070960671 | AE27: 0.1131811154 | AF27: 0.1012323131 | AG27: 0.10964871 | AH27: 0.09981024279
B28: 26 | C28: 6.928 | D28: 6.657 | E28: 6.6025 | F28: 6.684 | G28: 5.92 | H28: 6.724 | I28: =AVERAGE(C3:C54) -> 6.485783333 | J28: 6.082453526 | K28: 5.965733974 | L28: 5.976206731 | M28: 5.293574405 | N28: 6.105628205 | O28: =IF(C28<1,"",C28/I28) -> 1.068182461 | P28: =IF(D28<1,"",D28/J28) -> 1.094459657 | Q28: =IF(E28<1,"",E28/K28) -> 1.106737248 | R28: =IF(F28<1,"",F28/L28) -> 1.118435205 | S28: =IF(G28<1,"",G28/M28) -> 1.118336978 | T28: =IF(H28<1,"",H28/N28) -> 1.10127898 | V28: 26 | W28: =AVERAGE(O28,O80,O132,O184,O236,O288,O340,O392,O444,O496) -> 1.05467162 | X28: 1.064686946 | Y28: 1.027507081 | Z28: 1.070808264 | AA28: 1.058283275 | AB28: 1.045969303 | AC28: =STDEV(O28,O80,O132,O184,O236,O288,O340,O392,O444,O496) -> 0.1087456756 | AD28: 0.1139241082 | AE28: 0.1177523195 | AF28: 0.1121030983 | AG28: 0.1161836511 | AH28: 0.1088760482
B29: 27 | C29: 7.195 | D29: 6.93 | E29: 6.693333333 | F29: 7.08625 | H29: 6.9675 | I29: =AVERAGE(C4:C55) -> 6.498533333 | J29: 6.092972756 | K29: 5.977685897 | L29: 5.991423077 | M29: 5.318717262 | N29: 6.121907051 | O29: 1.107172901 | P29: 1.137375839 | Q29: 1.119719813 | R29: 1.182732367 | T29: 1.138125741 | V29: 27 | W29: =AVERAGE(O29,O81,O133,O185,O237,O289,O341,O393,O445) -> 1.074916106 | X29: 1.080224963 | Y29: 1.052191796 | Z29: 1.063421387 | AA29: 1.070275801 | AB29: 1.032432502 | AC29: =STDEV(O29,O81,O133,O185,O237,O289,O341,O393,O445) -> 0.1176282141 | AD29: 0.1299927053 | AE29: 0.1344961177 | AF29: 0.1477120247 | AG29: 0.1326246405 | AH29: 0.1486601563
B30: 28 | C30: 7.352 | D30: 7.08 | E30: 6.882 | F30: 7.15 | H30: 7.092 | I30: =AVERAGE(C5:C56) -> 6.501833333 | J30: 6.095607372 | K30: 5.981108974 | L30: 5.997870192 | M30: 5.325169643 | N30: 6.130907051 | O30: 1.130757991 | P30: 1.161492132 | Q30: 1.150622741 | R30: 1.19208982 | T30: 1.156761951 | V30: 28 | W30: =AVERAGE(O30,O82,O134,O186,O238,O290,O342,O394,O446) -> 1.074076384 | X30: =AVERAGE(P30,P82,P134,P186,P238,P290,P342,P394,P446) -> 1.057676495 | Y30: =AVERAGE(Q30,Q82,Q134,Q186,Q238,Q290,Q342,Q394,Q446) -> 1.067461643 | Z30: =AVERAGE(R30,R82,R134,R186,R238,R290,R342,R394,R446) -> 1.089898452 | AA30: =AVERAGE(S30,S82,S134,S186,S238,S290,S342,S394,S446) -> 1.069256599 | AB30: =AVERAGE(T30,T82,T134,T186,T238,T290,T342,T394,T446) -> 1.055852594 | AC30: =STDEV(O30,O82,O134,O186,O238,O290,O342,O394,O446) -> 0.1005986774 | AD30: =STDEV(P30,P82,P134,P186,P238,P290,P342,P394,P446) -> 0.1325073365 | AE30: =STDEV(Q30,Q82,Q134,Q186,Q238,Q290,Q342,Q394,Q446) -> 0.1164753824 | AF30: =STDEV(R30,R82,R134,R186,R238,R290,R342,R394,R446) -> 0.1082348846 | AG30: =STDEV(S30,S82,S134,S186,S238,S290,S342,S394,S446) -> 0.1208749154 | AH30: =STDEV(T30,T82,T134,T186,T238,T290,T342,T394,T446) -> 0.1119387708
B31: 29 | C31: 7.189 | D31: 6.842 | E31: 6.658 | F31: 6.88 | H31: 6.848 | I31: =AVERAGE(C6:C57) -> 6.506383333 | J31: 6.099405449 | K31: 5.985820513 | L31: 6.004096154 | M31: 5.317232759 | N31: 6.140426282 | O31: 1.104914917 | P31: 1.121748678 | Q31: 1.112295296 | R31: 1.14588438 | T31: 1.115232019 | V31: 29 | W31: 1.058147823 | X31: 1.051221961 | Y31: 1.04941389 | Z31: 1.067092796 | AA31: 1.041164548 | AB31: 1.043429933 | AC31: 0.1010578108 | AD31: 0.1133070099 | AE31: 0.1132703792 | AF31: 0.1070616184 | AG31: 0.116850429 | AH31: 0.1065673924
B32: 30 | C32: 7.095 | D32: 6.718 | E32: 6.642 | F32: 6.792 | H32: 6.752 | I32: =AVERAGE(C7:C58) -> 6.512663333 | J32: 6.10544391 | K32: 5.992551282 | L32: 6.010865385 | M32: 5.312991667 | N32: 6.151041667 | O32: 1.089416056 | P32: 1.100329493 | Q32: 1.108375997 | R32: 1.12995377 | T32: 1.097700254 | V32: 30 | W32: 1.029835641 | X32: 1.019387303 | Y32: 1.017416849 | Z32: 1.035434496 | AA32: 0.9976430373 | AB32: 1.009098952 | AC32: 0.09161053435 | AD32: 0.1012299944 | AE32: 0.1081948282 | AF32: 0.09885242667 | AG32: 0.0972293747 | AH32: 0.09971888761
B33: 31 | C33: 7.05 | D33: 6.758 | E33: 6.64 | F33: 6.767 | G33: 6.272 | H33: 6.854 | I33: =AVERAGE(C8:C59) -> 6.526623333 | J33: 6.116597756 | K33: 6.005551282 | L33: 6.023288462 | M33: 5.331291667 | N33: 6.167310897 | O33: 1.080191033 | P33: 1.104862584 | Q33: 1.10564371 | R33: 1.123472675 | S33: 1.17645036 | T33: 1.111343358 | V33: 31 | W33: 1.029556067 | X33: 1.017282684 | Y33: 1.021406634 | Z33: 1.03101318 | AA33: 1.031856219 | AB33: 1.009281831 | AC33: 0.08493503619 | AD33: 0.09296797024 | AE33: 0.09464246376 | AF33: 0.1062513916 | AG33: 0.1258411104 | AH33: 0.09757138772
B34: 32 | C34: 6.798 | D34: 6.467 | E34: 6.39 | F34: 6.58 | G34: 6.05875 | H34: 6.55 | I34: =AVERAGE(C9:C60) -> 6.538463333 | J34: 6.125078526 | K34: 6.015397436 | L34: 6.032769231 | M34: 5.329379032 | N34: 6.180810897 | O34: 1.039693832 | P34: 1.055823198 | Q34: 1.062273951 | R34: 1.090709714 | S34: 1.136858528 | T34: 1.059731499 | V34: 32 | W34: 1.00308596 | X34: 0.9759694076 | Y34: 0.9846899461 | Z34: 1.013620735 | AA34: 1.010771825 | AB34: 0.9880860918 | AC34: 0.07696929627 | AD34: 0.08373989878 | AE34: 0.07125889545 | AF34: 0.08252053961 | AG34: 0.1042716391 | AH34: 0.06801187327
B35: 33 | C35: 6.428 | D35: 6.035 | E35: 6.02 | F35: 6.202 | H35: 6.196 | I35: =AVERAGE(C10:C61) -> 6.547743333 | J35: 6.132924679 | K35: 6.021358974 | L35: 6.038 | M35: 5.330273437 | N35: 6.189887821 | O35: 0.9817122744 | P35: 0.9840329558 | Q35: 0.9997743077 | R35: 1.027161312 | T35: 1.000987446 | V35: 33 | W35: 0.9977016015 | X35: 0.9701454647 | Y35: 0.9799596442 | Z35: 1.013588578 | AA35: 0.9997186381 | AB35: 0.9850545751 | AC35: 0.07105074042 | AD35: 0.08256355765 | AE35: 0.08387192168 | AF35: 0.08611987034 | AG35: 0.1027417552 | AH35: 0.06620547347
B36: 34 | C36: 6.349 | D36: 5.911 | E36: 5.862 | F36: 6.062 | H36: 6.102 | I36: =AVERAGE(C11:C62) -> 6.547518333 | J36: 6.132516026 | K36: 6.020589744 | L36: 6.036125 | M36: 5.327575758 | N36: 6.189407051 | O36: 0.96968037 | P36: 0.9638784432 | Q36: 0.9736587693 | R36: 1.004286691 | T36: 0.9858779604 | V36: 34 | W36: 1.00664307 | X36: 0.9753864665 | Y36: 0.9920693993 | Z36: 1.022237671 | AA36: 0.9874298396 | AB36: 0.9973648311 | AC36: 0.09518472707 | AD36: 0.1070392793 | AE36: 0.1078570061 | AF36: 0.1084388043 | AG36: 0.1564835268 | AH36: 0.09519652726
B37: 35 | D37: 5.728 | E37: 5.684 | F37: 5.834 | G37: 5.495 | H37: 6.044 | I37: =AVERAGE(C12:C63) -> 6.541598333 | J37: 6.12688141 | K37: 6.015897436 | L37: 6.029548077 | M37: 5.324333333 | N37: 6.183137821 | O37: =IF(C37<1,"",C37/I37) ->  | P37: 0.9348965022 | Q37: 0.9448299378 | R37: 0.9675683692 | S37: 1.032054091 | T37: 0.9774972151 | V37: 35 | W37: 1.029166479 | X37: 0.9866870556 | Y37: 0.9916316242 | Z37: 1.037201325 | AA37: 1.023847792 | AB37: 1.013012652 | AC37: 0.1122033585 | AD37: 0.1168743555 | AE37: 0.1113731647 | AF37: 0.116477109 | AG37: 0.1331569651 | AH37: 0.1053642444
B38: 36 | D38: 5.47125 | E38: 5.5225 | F38: 5.8275 | G38: 5.424 | H38: 6.0275 | I38: =AVERAGE(C13:C64) -> 6.533478333 | J38: 6.118112179 | K38: 6.008320513 | L38: 6.020625 | M38: 5.321705882 | N38: 6.174599359 | O38: =IF(C38<1,"",C38/I38) ->  | P38: 0.8942709515 | Q38: 0.9191420445 | R38: 0.9679227655 | S38: 1.019222054 | T38: 0.9761766958 | V38: 36 | W38: 0.998697811 | X38: 0.967264796 | Y38: 0.9813528052 | Z38: 1.013557446 | AA38: 1.003867097 | AB38: 0.998531655 | AC38: 0.08955081852 | AD38: 0.09605009241 | AE38: 0.09575678053 | AF38: 0.09639407338 | AG38: 0.1050237788 | AH38: 0.09708807887
B39: 37 | C39: 6.116 | D39: 5.296 | E39: 5.262 | F39: 5.602 | G39: 5.15 | H39: 5.782 | I39: =AVERAGE(C14:C65) -> 6.517178333 | J39: 6.102650641 | K39: 5.993051282 | L39: 6.004201923 | M39: 5.3198 | N39: 6.15836859 | O39: 0.9384429407 | P39: 0.8678196265 | Q39: 0.8780168486 | R39: 0.9330132583 | S39: 0.9680815068 | T39: 0.9388850173 | V39: 37 | W39: 0.9804079872 | X39: 0.9582729799 | Y39: 0.9681945935 | Z39: 0.9872443692 | AA39: 0.9877390397 | AB39: 0.9855915559 | AC39: 0.07911580469 | AD39: 0.08522178309 | AE39: 0.08065477415 | AF39: 0.1002558759 | AG39: 0.09527503419 | AH39: 0.09155397845
B40: 38 | C40: 6.126 | D40: 5.5 | E40: 5.43 | F40: 5.492 | G40: 5.045 | H40: 5.732 | I40: =AVERAGE(C15:C66) -> 6.508068333 | J40: 6.092785256 | K40: 5.984070513 | L40: 5.994836538 | M40: 5.315083333 | N40: 6.148426282 | O40: 0.9412931282 | P40: 0.9027070163 | Q40: 0.9074090936 | R40: 0.9161217265 | S40: 0.9491854941 | T40: 0.9322710783 | V40: 38 | W40: 0.974893875 | X40: 0.9559096002 | Y40: 0.9656330963 | Z40: 0.9723838863 | AA40: 0.9619878077 | AB40: 0.9745964492 | AC40: 0.0527800145 | AD40: 0.05200652811 | AE40: 0.05158708292 | AF40: 0.06987588855 | AG40: 0.07050436234 | AH40: 0.06500642118
B41: 39 | C41: 6.007 | D41: 5.318 | E41: 5.29 | F41: 5.355 | G41: 4.909 | H41: 5.646 | I41: =AVERAGE(C16:C67) -> 6.499368333 | J41: 6.083439103 | K41: 5.976262821 | L41: 5.986182692 | M41: 5.312054054 | N41: 6.139657051 | O41: 0.9242436637 | P41: 0.8741765818 | Q41: 0.8851685675 | R41: 0.8945600686 | S41: 0.9241246324 | T41: 0.9195953378 | V41: 39 | W41: 0.9672688922 | X41: 0.9474397015 | Y41: 0.9576477318 | Z41: 0.9517995105 | AA41: 0.9541392261 | AB41: 0.9635594731 | AC41: 0.04930293607 | AD41: 0.05336004979 | AE41: 0.052259394 | AF41: 0.06083400039 | AG41: 0.06775532733 | AH41: 0.05905824472
B42: 40 | C42: 6.043 | D42: 5.265 | E42: 5.192 | F42: 5.372 | G42: 4.854 | H42: 5.672 | I42: =AVERAGE(C17:C68) -> 6.488668333 | J42: 6.072323718 | K42: 5.966301282 | L42: 5.974221154 | M42: 5.304473684 | N42: 6.128733974 | O42: 0.9313159017 | P42: 0.8670486365 | Q42: 0.870220888 | R42: 0.8991967089 | S42: 0.9150766483 | T42: 0.9254766194 | V42: 40 | W42: 0.9272485823 | X42: 0.9036349206 | Y42: 0.9142661903 | Z42: 0.9041629781 | AA42: 0.9076178938 | AB42: 0.9257252729 | AC42: 0.04171186577 | AD42: 0.04897990616 | AE42: 0.04831784136 | AF42: 0.04542287816 | AG42: 0.05573248682 | AH42: 0.04726093942
B43: 41 | C43: 6.15 | D43: 5.38125 | E43: 5.3175 | F43: 5.474 | G43: 4.89 | H43: 5.8275 | I43: =AVERAGE(C18:C69) -> 6.477608333 | J43: 6.06075641 | K43: 5.956166667 | L43: 5.961394231 | M43: 5.296987179 | N43: 6.117637821 | O43: 0.9494244918 | P43: 0.8878842236 | Q43: 0.8927721969 | R43: 0.9182415704 | S43: 0.9231662895 | T43: 0.9525735539 | V43: 41 | W43: 0.9426160336 | X43: 0.9193179849 | Y43: 0.9273343538 | Z43: 0.9184780749 | AA43: 0.9217512702 | AB43: 0.9393297051 | AC43: 0.04891044071 | AD43: 0.06825893616 | AE43: 0.0636242235 | AF43: 0.05414269561 | AG43: 0.0634919469 | AH43: 0.05685867624
B44: 42 | C44: 6.168 | D44: 5.51 | E44: 5.368 | F44: 5.544 | G44: 4.914 | H44: 5.824 | I44: =AVERAGE(C19:C70) -> 6.466808333 | J44: 6.049794872 | K44: 5.946358974 | L44: 5.949278846 | M44: 5.28675641 | N44: 6.10686859 | O44: 0.953793538 | P44: 0.9107746819 | Q44: 0.9027372924 | R44: 0.9318776516 | S44: 0.9294924182 | T44: 0.953680256 | V44: 42 | W44: 0.9504091077 | X44: 0.93670477 | Y44: 0.9425523913 | Z44: 0.928974357 | AA44: 0.9475073842 | AB44: 0.9515419883 | AC44: 0.06029594065 | AD44: 0.07792414754 | AE44: 0.08101089672 | AF44: 0.06434862036 | AG44: 0.08463569861 | AH44: 0.06542295703
B45: 43 | C45: 6.047 | D45: 5.521 | E45: 5.366 | F45: 5.422 | G45: 4.798 | H45: 5.722 | I45: =AVERAGE(C20:C71) -> 6.456948333 | J45: 6.040121795 | K45: 5.936820513 | L45: 5.938163462 | M45: 5.2865875 | N45: 6.097483974 | O45: 0.9365105136 | P45: 0.914054416 | Q45: 0.9038508051 | R45: 0.9130769193 | S45: 0.9075797951 | T45: 0.9384198506 | V45: 43 | W45: 0.9567014004 | X45: 0.948641226 | Y45: 0.9555800447 | Z45: 0.9370197415 | AA45: 0.9501270684 | AB45: 0.9565637329 | AC45: 0.06725223415 | AD45: 0.07699454201 | AE45: 0.08085526101 | AF45: 0.07042483161 | AG45: 0.08394629583 | AH45: 0.07301851465
B46: 44 | C46: 6.201 | D46: 5.77 | E46: 5.584 | F46: 5.478 | G46: 4.91 | H46: 5.862 | I46: =AVERAGE(C21:C72) -> 6.449968333 | J46: 6.033160256 | K46: 5.930666667 | L46: 5.929625 | M46: 5.289792683 | N46: 6.092330128 | O46: 0.9614000689 | P46: 0.9563810267 | Q46: 0.9415467626 | R46: 0.9238358244 | S46: 0.9282027282 | T46: 0.9621934263 | V46: 44 | W46: 0.9612673959 | X46: 0.9564334105 | Y46: 0.9652103344 | Z46: 0.9446605817 | AA46: 0.9607926394 | AB46: 0.9608835134 | AC46: 0.06198728356 | AD46: 0.07297473699 | AE46: 0.07179904119 | AF46: 0.06256517744 | AG46: 0.07384173794 | AH46: 0.06262103329
B47: 45 | C47: 6.275 | D47: 5.87875 | E47: 5.685 | F47: 5.536 | G47: 4.95625 | H47: 5.865 | I47: =AVERAGE(C22:C73) -> 6.443868333 | J47: 6.026352564 | K47: 5.924705128 | L47: 5.920317308 | M47: 5.278158537 | N47: 6.088291667 | O47: 0.9737939504 | P47: 0.9755071476 | Q47: 0.9595414248 | R47: 0.9350850153 | S47: 0.9390112036 | T47: 0.9633244137 | V47: 45 | W47: 0.9653557927 | X47: 0.9585409188 | Y47: 0.9682328436 | Z47: 0.9458296566 | AA47: 0.9686952413 | AB47: 0.9666448902 | AC47: 0.06803991322 | AD47: 0.08524937653 | AE47: 0.08183080915 | AF47: 0.07100654747 | AG47: 0.08338215861 | AH47: 0.06907960986
B48: 46 | C48: 6.271 | D48: 5.896 | E48: 5.742 | F48: 5.566 | G48: 5.037 | H48: 5.826 | I48: =AVERAGE(C23:C74) -> 6.436068333 | J48: 6.016967949 | K48: 5.917320513 | L48: 5.909278846 | M48: 5.279964286 | N48: 6.082830128 | O48: 0.9743526133 | P48: 0.9798955305 | Q48: 0.9703716382 | R48: 0.9419085044 | S48: 0.9539837255 | T48: 0.9577778562 | V48: 46 | W48: 0.9568802421 | X48: 0.9561299357 | Y48: 0.9613400567 | Z48: 0.9403864529 | AA48: 0.9567848356 | AB48: 0.9594249654 | AC48: 0.06547919152 | AD48: 0.071690511 | AE48: 0.07042258176 | AF48: 0.06779903422 | AG48: 0.08149716668 | AH48: 0.06784704345
B49: 47 | C49: 6.156666667 | D49: 5.778333333 | E49: 5.626666667 | F49: 5.47125 | G49: 4.975 | H49: 5.686666667 | I49: =AVERAGE(C24:C75) -> 6.419768333 | J49: 5.999217949 | K49: 5.899935897 | L49: 5.889951923 | M49: 5.278639535 | N49: 6.068330128 | O49: 0.9590169531 | P49: 0.9631810984 | Q49: 0.953682678 | R49: 0.9289125058 | S49: 0.9424776909 | T49: 0.9371056858 | V49: 47 | W49: 0.9546002098 | X49: 0.9576965414 | Y49: 0.9634078567 | Z49: 0.939273119 | AA49: 0.9536861405 | AB49: 0.9541353475 | AC49: 0.07415995107 | AD49: 0.07817237739 | AE49: 0.08134192846 | AF49: 0.07845982129 | AG49: 0.08431514129 | AH49: 0.07905872254
B50: 48 | C50: 6.14 | D50: 5.747 | E50: 5.556 | F50: 5.436 | G50: 5.037 | H50: 5.586 | I50: =AVERAGE(C25:C76) -> 6.401368333 | J50: 5.980011218 | K50: 5.880272436 | L50: 5.871298077 | M50: 5.255093023 | N50: 6.051551282 | O50: 0.9591699275 | P50: 0.9610349865 | Q50: 0.9448541816 | R50: 0.9258599936 | S50: 0.9584987321 | T50: 0.9230691007 | V50: 48 | W50: 0.9645222031 | X50: 0.9702202043 | Y50: 0.976100947 | Z50: 0.9477843813 | AA50: 0.9620951902 | AB50: 0.9599555966 | AC50: 0.08163421841 | AD50: 0.08570998426 | AE50: 0.09225064808 | AF50: 0.08458009092 | AG50: 0.09135567197 | AH50: 0.0871424967
B51: 49 | C51: 6.294 | D51: 5.883 | E51: 5.704 | F51: 5.538 | G51: 5.173 | H51: 5.664 | I51: =AVERAGE(C26:C77) -> 6.385668333 | J51: 5.962261218 | K51: 5.862272436 | L51: 5.854682692 | M51: 5.254840909 | N51: 6.036022436 | O51: 0.9856446767 | P51: 0.9867061816 | Q51: 0.9730015216 | R51: 0.9459095037 | S51: 0.9844256162 | T51: 0.9383662934 | V51: 49 | W51: 0.9636810066 | X51: 0.967982295 | Y51: 0.9749102749 | Z51: 0.9445724201 | AA51: 0.9621159734 | AB51: 0.9548519111 | AC51: 0.09003648769 | AD51: 0.09502822096 | AE51: 0.09987049441 | AF51: 0.09041152209 | AG51: 0.1004352826 | AH51: 0.09748981363
B52: 50 | C52: 6.536 | D52: 6.099 | E52: 5.952 | F52: 5.788 | G52: 5.462 | H52: 5.908 | I52: =AVERAGE(C27:C78) -> 6.365948333 | J52: 5.940915064 | K52: 5.839387821 | L52: 5.834278846 | M52: 5.255044444 | N52: 6.016022436 | O52: 1.0267127 | P52: 1.026609526 | Q52: 1.019284929 | R52: 0.9920677692 | S52: 1.039382266 | T52: 0.9820442099 | V52: 50 | W52: 0.9723743084 | X52: 0.9785103232 | Y52: 0.9876389786 | Z52: 0.9542726022 | AA52: 0.9806335553 | AB52: 0.9649343691 | AC52: 0.0856799961 | AD52: 0.09014586307 | AE52: 0.09168071675 | AF52: 0.08689835092 | AG52: 0.09524117023 | AH52: 0.09312346308
B53: 51 | C53: 6.643 | D53: 6.211 | E53: 6.125 | F53: 5.958 | G53: 5.592 | H53: 6.094 | I53: =AVERAGE(C28:C79) -> 6.338888333 | J53: 5.912145833 | K53: 5.808733974 | L53: 5.804259615 | M53: 5.253608696 | N53: 5.986714744 | O53: 1.047975552 | P53: 1.050549187 | Q53: 1.054446636 | R53: 1.02648751 | S53: 1.064411212 | T53: 1.017920556 | V53: 51 | W53: 0.9744331121 | X53: 0.9828212515 | Y53: 0.9937865916 | Z53: 0.95868095 | AA53: 0.9823445948 | AB53: 0.9699931366 | AC53: 0.07452377483 | AD53: 0.07734090197 | AE53: 0.07894446288 | AF53: 0.07779369244 | AG53: 0.08645483804 | AH53: 0.08096428768
B54: 52 | C54: 6.49625 | D54: 6.1525 | E54: 6.046666667 | F54: 5.9175 | G54: 5.57375 | H54: 6.1725 | I54: =AVERAGE(C29:C80) -> 6.323628333 | J54: 5.894665064 | K54: 5.790685897 | L54: 5.785298077 | M54: 5.236413043 | N54: 5.969099359 | O54: 1.027297883 | P54: 1.043740388 | Q54: 1.044205604 | R54: 1.022851359 | S54: 1.06442138 | T54: 1.0340756 | V54: 52 | W54: 0.9898090915 | X54: 0.9990434289 | Y54: 1.011118311 | Z54: 0.9774050615 | AA54: 0.9989477504 | AB54: 0.9881974294 | AC54: 0.06731432503 | AD54: 0.06900279393 | AE54: 0.07133641018 | AF54: 0.07012081447 | AG54: 0.08113380894 | AH54: 0.07294321513
A55: 2006 | B55: 1 | C55: 6.5525 | D55: 6.135 | E55: 6.0575 | F55: 5.9775 | G55: 5.6 | H55: 6.1725 | I55: =AVERAGE(C30:C81) -> 6.308028333 | J55: 5.875290064 | K55: 5.775044872 | L55: 5.762774038 | M55: 5.239069149 | N55: 5.951839744 | O55: 1.038755639 | P55: 1.044203764 | Q55: 1.048909599 | R55: 1.037260868 | S55: 1.068892172 | T55: 1.037074294
B56: 2 | C56: 6.237 | D56: 5.804 | E56: 5.654 | F56: 5.584 | G56: 5.219 | H56: 5.834 | I56: =AVERAGE(C31:C82) -> 6.289568333 | J56: 5.853001603 | K56: 5.755121795 | L56: 5.738658654 | M56: 5.241734375 | N56: 5.931916667 | O56: 0.9916419807 | P56: 0.9916279533 | Q56: 0.982429252 | R56: 0.9730496858 | S56: 0.9956628144 | T56: 0.9834932498
B57: 3 | C57: 6.1325 | D57: 5.6925 | E57: 5.535 | F57: 5.4625 | G57: 5.095 | H57: 5.675 | I57: =AVERAGE(C32:C83) -> 6.271648333 | J57: 5.831213141 | K57: 5.734044872 | L57: 5.7158125 | M57: 5.240372449 | N57: 5.912762821 | O57: 0.9778131161 | P57: 0.9762119584 | Q57: 0.9652871793 | R57: 0.9556821537 | S57: 0.972259138 | T57: 0.9597882026
B58: 4 | C58: 6.22 | D58: 5.829 | E58: 5.658 | F58: 5.55 | G58: 5.19 | H58: 5.75 | I58: =AVERAGE(C33:C84) -> 6.254528333 | J58: 5.810713141 | K58: 5.712852564 | L58: 5.693735577 | M58: 5.238025 | N58: 5.895262821 | O58: 0.9944794665 | P58: 1.003147094 | Q58: 0.9903983932 | R58: 0.9747554879 | S58: 0.990831468 | T58: 0.9753593987
B59: 5 | C59: 6.328 | D59: 5.919 | E59: 5.844 | F59: 5.704 | G59: 5.334 | H59: 5.904 | I59: =AVERAGE(C34:C85) -> 6.238668333 | J59: 5.789155449 | K59: 5.692160256 | L59: 5.671677885 | M59: 5.213865 | N59: 5.874865385 | O59: 1.014319028 | P59: 1.022428928 | Q59: 1.02667524 | R59: 1.005698863 | S59: 1.023041448 | T59: 1.004959197
B60: 6 | C60: 6.289 | D60: 5.828 | E60: 5.738 | F60: 5.618 | G60: 5.272 | H60: 5.818 | I60: =AVERAGE(C35:C86) -> 6.223748333 | J60: 5.769309295 | K60: 5.673121795 | L60: 5.648985577 | M60: 5.19079 | N60: 5.859673077 | O60: 1.010484304 | P60: 1.010172917 | Q60: 1.011436068 | R60: 0.9945148423 | S60: 1.015645017 | T60: 0.9928881567
B61: 7 | C61: 6.392 | D61: 5.974 | E61: 5.842 | F61: 5.694 | G61: 5.358 | H61: 5.894 | I61: =AVERAGE(C36:C87) -> 6.214848333 | J61: 5.755290064 | K61: 5.659429487 | L61: 5.631600962 | M61: 5.183303922 | N61: 5.849326923 | O61: 1.028504584 | P61: 1.038001549 | Q61: 1.032259526 | R61: 1.01108016 | S61: 1.033703615 | T61: 1.007637302
B62: 8 | C62: 6.27125 | D62: 5.87375 | E62: 5.7775 | F62: 5.5775 | G62: 5.24125 | H62: 5.7775 | I62: =AVERAGE(C37:C88) -> 6.207188333 | J62: 5.743270833 | K62: 5.648891026 | L62: 5.616254808 | M62: 5.176451923 | N62: 5.840134615 | O62: 1.010320561 | P62: 1.022718616 | Q62: 1.022767119 | R62: 0.9930995282 | S62: 1.012517855 | T62: 0.9892751418
B63: 9 | C63: 6.293 | D63: 5.909 | E63: 5.862 | F63: 5.652 | G63: 5.288 | H63: 5.9 | I63: =AVERAGE(C38:C89) -> 6.201694444 | J63: 5.734732372 | K63: 5.640814103 | L63: 5.603533654 | M63: 5.163471154 | N63: 5.830394231 | O63: 1.014722679 | P63: 1.030388101 | Q63: 1.039211698 | R63: 1.008649247 | S63: 1.024117274 | T63: 1.011938433
B64: 10 | C64: 6.255 | D64: 5.861 | E64: 5.794 | F64: 5.634 | G64: 5.235 | H64: 5.904 | I64: =AVERAGE(C39:C90) -> 6.196902244 | J64: 5.732665064 | K64: 5.637304487 | L64: 5.590745192 | M64: 5.152024038 | N64: 5.820153846 | O64: 1.00937529 | P64: 1.02238661 | Q64: 1.027796177 | R64: 1.007736859 | S64: 1.016105507 | T64: 1.014406175
B65: 11 | C65: 6.109 | D65: 5.758 | E65: 5.71 | F65: 5.57 | G65: 5.255 | H65: 5.82 | I65: =AVERAGE(C40:C91) -> 6.19405609 | J65: 5.734703526 | K65: 5.639612179 | L65: 5.5824375 | M65: 5.145043269 | N65: 5.813576923 | O65: 0.9862681112 | P65: 1.004062368 | Q65: 1.012480968 | R65: 0.9977720306 | S65: 1.021371391 | T65: 1.001104841
B66: 12 | C66: 6.047 | D66: 5.697 | E66: 5.638 | F66: 5.528 | G66: 5.15 | H66: 5.748 | I66: =AVERAGE(C41:C92) -> 6.19355609 | J66: 5.735838141 | K66: 5.64088141 | L66: 5.578668269 | M66: 5.141639423 | N66: 5.809230769 | O66: 0.9763373274 | P66: 0.9932288638 | Q66: 0.9994891915 | R66: 0.9909174974 | S66: 1.001626053 | T66: 0.9894597458
B67: 13 | C67: 6.078 | D67: 5.753 | E67: 5.7 | F67: 5.61 | G67: 5.203 | H67: 5.81 | I67: =AVERAGE(C42:C93) -> 6.194363782 | J67: 5.739972756 | K67: 5.644535256 | L67: 5.576879808 | M67: 5.140389423 | N67: 5.805884615 | O67: 0.9812145708 | P67: 1.002269565 | Q67: 1.009826273 | R67: 1.005938839 | S67: 1.012180123 | T67: 1.00070883
B68: 14 | C68: 5.901 | D68: 5.574 | E68: 5.506 | F68: 5.422 | G68: 5.024 | H68: 5.616 | I68: =AVERAGE(C43:C94) -> 6.194863782 | J68: 5.744145833 | K68: 5.649612179 | L68: 5.575418269 | M68: 5.143158654 | N68: 5.803461538 | O68: 0.9525633182 | P68: 0.9703792629 | Q68: 0.9745801703 | R68: 0.9724830924 | S68: 0.97683162 | T68: 0.9676983233
B69: 15 | C69: 5.92 | D69: 5.5975 | E69: 5.495 | F69: 5.445 | G69: 5.0125 | H69: 5.605 | I69: =AVERAGE(C44:C95) -> 6.19655609 | J69: 5.750275641 | K69: 5.655573718 | L69: 5.575725962 | M69: 5.150235577 | N69: 5.801778846 | O69: 0.9553693881 | P69: 0.9734315969 | Q69: 0.9716078817 | R69: 0.9765544501 | S69: 0.9732564511 | T69: 0.966083015
B70: 16 | C70: 6.074 | D70: 5.773 | E70: 5.616 | F70: 5.606 | G70: 5.126 | H70: 5.726 | I70: =AVERAGE(C45:C96) -> 6.203652244 | J70: 5.760448718 | K70: 5.66638141 | L70: 5.581533654 | M70: 5.162581731 | N70: 5.807009615 | O70: 0.979100659 | P70: 1.002178872 | Q70: 0.9911087153 | R70: 1.004383445 | S70: 0.9929140626 | T70: 0.9860496846
B71: 17 | C71: 6.143 | D71: 5.863 | E71: 5.7 | F71: 5.684 | G71: 5.28 | H71: 5.784 | I71: =AVERAGE(C46:C97) -> 6.217998397 | J71: 5.777487179 | K71: 5.684573718 | L71: 5.593341346 | M71: 5.181850962 | N71: 5.817278846 | O71: 0.9879384984 | P71: 1.01480104 | Q71: 1.00271371 | R71: 1.016208318 | S71: 1.018940923 | T71: 0.9942793105
B72: 18 | C72: 6.284 | D72: 5.973 | E72: 5.894 | F72: 5.756 | G72: 5.418 | H72: 6.026 | I72: =AVERAGE(C47:C98) -> 6.232652244 | J72: 5.792198718 | K72: 5.702035256 | L72: 5.609610577 | M72: 5.202831731 | N72: 5.828086538 | O72: 1.008238508 | P72: 1.03121462 | Q72: 1.033666004 | R72: 1.026096183 | S72: 1.041355992 | T72: 1.033958566
B73: 19 | C73: 6.317 | D73: 5.988 | E73: 5.914 | F73: 5.774 | G73: 5.423 | H73: 6.074 | I73: =AVERAGE(C48:C99) -> 6.248786859 | J73: 5.808112179 | K73: 5.720208333 | L73: 5.627110577 | M73: 5.225307692 | N73: 5.843259615 | O73: 1.010916221 | P73: 1.030971823 | Q73: 1.033878428 | R73: 1.026103881 | S73: 1.03783362 | T73: 1.039488299
B74: 20 | C74: 6.21 | D74: 5.849 | E74: 5.834 | F74: 5.694 | G74: 5.354 | H74: 5.994 | I74: =AVERAGE(C49:C100) -> 6.26280609 | J74: 5.822419872 | K74: 5.735746795 | L74: 5.642995192 | M74: 5.244942308 | N74: 5.858567308 | O74: 0.991568302 | P74: 1.004565134 | Q74: 1.017129976 | R74: 1.009038606 | S74: 1.020792925 | T74: 1.023117033
B75: 21 | C75: 6.061 | D75: 5.694 | E75: 5.63 | F75: 5.543 | G75: 5.223 | H75: 5.84 | I75: =AVERAGE(C50:C101) -> 6.282036859 | J75: 5.841810897 | K75: 5.755939103 | L75: 5.663115385 | M75: 5.268043269 | N75: 5.878967949 | O75: 0.96481446 | P75: 0.9746977607 | Q75: 0.9781201468 | R75: 0.9787898751 | S75: 0.9914497154 | T75: 0.9933716344
B76: 22 | C76: 6.15625 | D76: 5.80375 | E76: 5.69 | F76: 5.6875 | G76: 5.2225 | H76: 5.9 | I76: =AVERAGE(C51:C102) -> 6.305017628 | J76: 5.865080128 | K76: 5.78013141 | L76: 5.685653846 | M76: 5.292283654 | N76: 5.903044872 | O76: 0.9764048831 | P76: 0.989543173 | Q76: 0.9844066849 | R76: 1.000324704 | S76: 0.9868140753 | T76: 0.9994841862
B77: 23 | C77: 6.215 | D77: 5.829 | E77: 5.724 | F77: 5.736 | G77: 5.244 | H77: 5.9125 | I77: =AVERAGE(C52:C103) -> 6.320786859 | J77: 5.88211859 | K77: 5.797939103 | L77: 5.701384615 | M77: 5.308995192 | N77: 5.920852564 | O77: 0.9832636567 | P77: 0.99096948 | Q77: 0.9872473475 | R77: 1.0060714 | S77: 0.9877575342 | T77: 0.9985892971
B78: 24 | C78: 6.235 | D78: 5.868 | E78: 5.748 | F78: 5.808 | G78: 5.264 | H78: 5.958 | I78: =AVERAGE(C53:C104) -> 6.331152244 | J78: 5.894849359 | K78: 5.811439103 | L78: 5.712846154 | M78: 5.320302885 | N78: 5.934621795 | O78: 0.9848128366 | P78: 0.995445285 | Q78: 0.9890837534 | R78: 1.016656119 | S78: 0.9894173535 | T78: 1.003939291
B79: 25 | C79: 6.17 | D79: 5.782 | E79: 5.65 | F79: 5.69 | G79: 5.189 | H79: 5.84 | I79: =AVERAGE(C54:C105) -> 6.335613782 | J79: 5.901714744 | K79: 5.819612179 | L79: 5.719038462 | M79: 5.330673077 | N79: 5.942814103 | O79: 0.9738598678 | P79: 0.9797152609 | Q79: 0.9708550717 | R79: 0.9949224924 | S79: 0.9734230415 | T79: 0.9826994248
B80: 26 | C80: 6.165 | D80: 5.748 | E80: 5.664 | F80: 5.698 | G80: 5.129 | H80: 5.808 | I80: =AVERAGE(C55:C106) -> 6.34825 | J80: 5.915128205 | K80: 5.832657051 | L80: 5.730480769 | M80: 5.342235577 | N80: 5.954016026 | O80: 0.971133777 | P80: 0.9717456327 | Q80: 0.9710840103 | R80: 0.9943319295 | S80: 0.9600849544 | T80: 0.9754760442
B81: 27 | C81: 6.415 | D81: 5.9225 | E81: 5.88 | F81: 5.915 | G81: 5.36125 | H81: 6.07 | I81: =AVERAGE(C56:C107) -> 6.358137821 | J81: 5.927371795 | K81: 5.842897436 | L81: 5.738926282 | M81: 5.352644231 | N81: 5.963519231 | O81: 1.008943213 | P81: 0.9991780852 | Q81: 1.006350028 | R81: 1.030680603 | S81: 1.00160776 | T81: 1.017855358
B82: 28 | C82: 6.429 | D82: 5.921 | E82: 5.846 | F82: 5.896 | G82: 5.367 | H82: 6.056 | I82: =AVERAGE(C57:C108) -> 6.372666667 | J82: 5.945064103 | K82: 5.860820513 | L82: 5.755926282 | M82: 5.368144231 | N82: 5.982019231 | O82: 1.008839837 | P82: 0.9959522552 | Q82: 0.9974712563 | R82: 1.024335565 | S82: 0.999786848 | T82: 1.01236719
B83: 29 | C83: 6.293 | D83: 5.709 | E83: 5.562 | F83: 5.692 | G83: 5.175 | H83: 5.852 | I83: =AVERAGE(C58:C109) -> 6.396777244 | J83: 5.969703526 | K83: 5.888080128 | L83: 5.781935897 | M83: 5.3939375 | N83: 6.010625 | O83: 0.9837766363 | P83: 0.956328899 | Q83: 0.9446202971 | R83: 0.9844453659 | S83: 0.9594104492 | T83: 0.9736092336
B84: 30 | C84: 6.239 | D84: 5.652 | E84: 5.54 | F84: 5.644 | G84: 5.123 | H84: 5.842 | I84: =AVERAGE(C59:C110) -> 6.41868109 | J84: 5.991953526 | K84: 5.913041667 | L84: 5.806282051 | M84: 5.417418269 | N84: 6.037855769 | O84: 0.9720065404 | P84: 0.9432649929 | Q84: 0.9369120518 | R84: 0.9720506083 | S84: 0.945653399 | T84: 0.9675620325
B85: 31 | C85: 6.257 | D85: 5.637 | E85: 5.564 | F85: 5.62 | G85: 5.064 | H85: 5.793333333 | I85: =AVERAGE(C60:C111) -> 6.440123397 | J85: 6.014741987 | K85: 5.934464744 | L85: 5.828705128 | M85: 5.438322115 | N85: 6.063163462 | O85: 0.9715652347 | P85: 0.9371973082 | Q85: 0.9375740257 | R85: 0.964193569 | S85: 0.9311695579 | T85: 0.9554968079
B86: 32 | C86: 6.052 | D86: 5.435 | E86: 5.4 | F86: 5.4 | G86: 4.905 | H86: 5.76 | I86: =AVERAGE(C61:C112) -> 6.46668109 | J86: 6.043838141 | K86: 5.962695513 | L86: 5.856358974 | M86: 5.4644375 | N86: 6.094086538 | O86: 0.9358742013 | P86: 0.899262997 | Q86: 0.9056306814 | R86: 0.9220746241 | S86: 0.8976221249 | T86: 0.94517857
B87: 33 | C87: 5.983 | D87: 5.306 | E87: 5.308 | F87: 5.298 | G87: 4.809 | H87: 5.658 | I87: =AVERAGE(C62:C113) -> 6.494219551 | J87: 6.073145833 | K87: 5.99061859 | L87: 5.885012821 | M87: 5.491841346 | N87: 6.126009615 | O87: 0.9212808333 | P87: 0.8736822967 | Q87: 0.8860520697 | R87: 0.9002529241 | S87: 0.8756625869 | T87: 0.9236028598
B88: 34 | C88: 5.966 | D88: 5.286 | E88: 5.314 | F88: 5.264 | G88: 4.827 | H88: 5.624 | I88: =AVERAGE(C63:C114) -> 6.527392628 | J88: 6.108241987 | K88: 6.024224359 | L88: 5.920349359 | M88: 5.526024038 | N88: 6.164615385 | O88: 0.9139943527 | P88: 0.8653881118 | Q88: 0.8821052609 | R88: 0.8891367183 | S88: 0.8735032577 | T88: 0.9123034689
B89: 35 | C89: 5.927 | D89: 5.284 | E89: 5.264 | F89: 5.1725 | G89: 4.82 | H89: 5.5375 | I89: =AVERAGE(C64:C115) -> 6.556373397 | J89: 6.138741987 | K89: 6.052685897 | L89: 5.950733974 | M89: 5.555947115 | N89: 6.197923077 | O89: 0.9040058643 | P89: 0.8607626792 | Q89: 0.8696965429 | R89: 0.8692205066 | S89: 0.8675388552 | T89: 0.8934444541
B90: 36 | C90: 5.9525 | D90: 5.36375 | E90: 5.34 | F90: 5.1625 | G90: 4.82875 | H90: 5.495 | I90: =AVERAGE(C65:C116) -> 6.581969551 | J90: 6.166049679 | K90: 6.078570513 | L90: 5.978387821 | M90: 5.583793269 | N90: 6.229576923 | O90: 0.9043645604 | P90: 0.8698843309 | Q90: 0.8784960195 | R90: 0.8635271172 | S90: 0.8647795087 | T90: 0.8820823738
B91: 37 | C91: 5.968 | D91: 5.402 | E91: 5.382 | F91: 5.17 | G91: 4.787 | H91: 5.44 | I91: =AVERAGE(C66:C117) -> 6.609296474 | J91: 6.194511218 | K91: 6.106262821 | L91: 6.008810897 | M91: 5.611927885 | N91: 6.263038462 | O91: 0.902970539 | P91: 0.8720623484 | Q91: 0.8813901658 | R91: 0.8604031793 | S91: 0.8530045465 | T91: 0.8685879918
B92: 38 | C92: 6.1 | D92: 5.559 | E92: 5.496 | F92: 5.296 | G92: 4.868 | H92: 5.506 | I92: =AVERAGE(C67:C118) -> 6.63968109 | J92: 6.226165064 | K92: 6.137416667 | L92: 6.042733974 | M92: 5.644177885 | N92: 6.299961538 | O92: 0.9187188236 | P92: =IF(D92<1,"",D92/J92) -> 0.8928449443 | Q92: =IF(E92<1,"",E92/K92) -> 0.8954907738 | R92: =IF(F92<1,"",F92/L92) -> 0.8764244831 | S92: =IF(G92<1,"",G92/M92) -> 0.8624816757 | T92: =IF(H92<1,"",H92/N92) -> 0.8739735896
B93: 39 | C93: 6.049 | D93: 5.533 | E93: 5.48 | F93: 5.262 | G93: 4.844 | H93: 5.472 | I93: =AVERAGE(C68:C119) -> 6.670450321 | J93: 6.257761218 | K93: 6.167070513 | L93: 6.075080128 | M93: 5.674947115 | N93: 6.335384615 | O93: 0.9068353274 | P93: 0.8841820273 | Q93: 0.8885904561 | R93: 0.866161415 | S93: 0.8535762363 | T93: 0.8637202525
B94: 40 | C94: 6.069 | D94: 5.482 | E94: 5.456 | F94: 5.296 | G94: 4.998 | H94: 5.546 | I94: =AVERAGE(C69:C120) -> 6.705767628 | J94: 6.293934295 | K94: 6.200657051 | L94: 6.111532051 | M94: 5.7094375 | N94: 6.375028846 | O94: 0.9050417993 | P94: 0.8709973354 | Q94: 0.879906751 | R94: 0.8665584923 | S94: 0.875392716 | T94: 0.8699568479
B95: 41 | C95: 6.238 | D95: 5.7 | E95: 5.6275 | F95: 5.49 | G95: 5.258 | H95: 5.74 | I95: =AVERAGE(C70:C121) -> 6.735479167 | J95: 6.324616987 | K95: 6.229983974 | L95: 6.142858974 | M95: 5.739735577 | N95: 6.410125 | O95: 0.9261404936 | P95: 0.9012403457 | Q95: 0.9032928533 | R95: 0.8937206638 | S95: 0.9160700749 | T95: 0.8954583569
B96: 42 | C96: 6.537 | D96: 6.039 | E96: 5.93 | F96: 5.846 | G96: 5.556 | H96: 6.096 | I96: =AVERAGE(C71:C122) -> 6.758498397 | J96: 6.348309295 | K96: 6.253214744 | L96: 6.167435897 | M96: 5.764870192 | N96: 6.439125 | O96: 0.9672266849 | P96: 0.9512769022 | Q96: 0.9483122271 | R96: 0.9478817611 | S96: 0.9637684483 | T96: 0.9467124803
B97: 43 | C97: 6.793 | D97: 6.407 | E97: 6.312 | F97: 6.036 | G97: 5.8 | H97: 6.256 | I97: =AVERAGE(C72:C123) -> 6.779690705 | J97: 6.370001603 | K97: 6.273945513 | L97: 6.190012821 | M97: 5.786639423 | N97: 6.466125 | O97: 1.001963112 | P97: 1.005808224 | Q97: 1.006065479 | R97: 0.9751191435 | S97: 1.002308866 | T97: 0.9675037213
B98: 44 | C98: 6.963 | D98: 6.535 | E98: 6.492 | F98: 6.324 | G98: 6.001 | H98: 6.424 | I98: =AVERAGE(C73:C124) -> 6.800883013 | J98: 6.392040064 | K98: 6.294253205 | L98: 6.214320513 | M98: 5.809081731 | N98: 6.492548077 | O98: 1.023837638 | P98: 1.022365307 | Q98: 1.031417038 | R98: 1.017649474 | S98: 1.033037626 | T98: 0.9894420378
B99: 45 | C99: 7.114 | D99: 6.70625 | E99: 6.63 | F99: 6.446 | G99: 6.125 | H99: 6.654 | I99: =AVERAGE(C74:C125) -> 6.821959936 | J99: 6.413905449 | K99: 6.314522436 | L99: 6.239397436 | M99: 5.832158654 | N99: 6.519548077 | O99: 1.042808821 | P99: 1.045579804 | Q99: 1.049960637 | R99: 1.033112583 | S99: 1.050211485 | T99: 1.02062289
B100: 46 | C100: 7 | D100: 6.64 | E100: 6.55 | F100: 6.392 | G100: 6.058 | H100: 6.622 | I100: =AVERAGE(C75:C126) -> 6.852613782 | J100: 6.445770833 | K100: 6.342560897 | L100: 6.273858974 | M100: 5.863139423 | N100: 6.555355769 | O100: 1.021508029 | P100: 1.030132807 | Q100: 1.032705891 | R100: 1.018830679 | S100: 1.033234853 | T100: 1.010166379
B101: 47 | C101: 7.156666667 | D101: 6.786666667 | E101: 6.676666667 | F101: 6.5175 | G101: 6.17625 | H101: 6.7475 | I101: =AVERAGE(C76:C127) -> 6.88930609 | J101: 6.483616987 | K101: 6.378830128 | L101: 6.31449359 | M101: 5.900543269 | N101: 6.597394231 | O101: 1.038808056 | P101: 1.046740836 | Q101: 1.046691405 | R101: 1.032149278 | S101: 1.046725652 | T101: 1.022752281
B102: 48 | C102: 7.335 | D102: 6.957 | E102: 6.814 | F102: 6.608 | G102: 6.2975 | H102: 6.838 | I102: =AVERAGE(C77:C128) -> 6.925532051 | J102: 6.520011218 | K102: 6.414887821 | L102: 6.352546474 | M102: 5.938836538 | N102: 6.639221154 | O102: =IF(C102<1,"",C102/I102) -> 1.059124403 | P102: 1.067022704 | Q102: 1.062216549 | R102: 1.040212776 | S102: 1.060392883 | T102: 1.029940085
B103: 49 | C103: 7.114 | D103: 6.769 | E103: 6.63 | F103: 6.356 | G103: 6.042 | H103: 6.59 | I103: =AVERAGE(C78:C129) -> 6.963358974 | J103: 6.55856891 | K103: 6.453464744 | L103: 6.392565705 | M103: 5.979682692 | N103: 6.683980769 | O103: 1.021633385 | P103: 1.032084909 | Q103: 1.027355113 | R103: 0.9942799641 | S103: 1.010421507 | T103: 0.9859394016
B104: 50 | C104: 7.075 | D104: 6.761 | E104: 6.654 | F104: 6.384 | G104: 6.05 | H104: 6.624 | I104: =AVERAGE(C79:C130) -> 7.002205128 | J104: 6.59781891 | K104: 6.493041667 | L104: 6.432719551 | M104: 6.020586538 | N104: 6.729326923 | O104: 1.010395992 | P104: 1.024732581 | Q104: 1.024789358 | R104: 0.9924262902 | S104: 1.004885481 | T104: 0.9843480746
B105: 51 | C105: 6.875 | D105: 6.568 | E105: 6.55 | F105: 6.28 | G105: 6.13125 | H105: 6.52 | I105: =AVERAGE(C80:C131) -> 7.043608974 | J105: 6.639472756 | K105: 6.533964744 | L105: 6.474411859 | M105: 6.062682692 | N105: 6.776211538 | O105: 0.9760621331 | P105: 0.9892351759 | Q105: 1.002454139 | R105: 0.969972275 | S105: 1.011309731 | T105: 0.9621895602
B106: 52 | C106: 7.153333333 | D106: 6.85 | E106: 6.725 | F106: 6.5125 | G106: 6.175 | H106: 6.755 | I106: =AVERAGE(C81:C132) -> 7.083166667 | J106: 6.679395833 | K106: 6.572926282 | L106: 6.513450321 | M106: 6.103259615 | N106: 6.817711538 | O106: 1.009906115 | P106: 1.025541856 | Q106: 1.02313638 | R106: 0.9998540988 | S106: 1.011754438 | T106: 0.9908016732
A107: 2007 | B107: 1 | C107: 7.066666667 | D107: 6.771666667 | E107: 6.59 | F107: 6.416666667 | G107: 6.14125 | H107: 6.666666667 | I107: =AVERAGE(C82:C133) -> 7.124464744 | J107: 6.72256891 | K107: 6.613310897 | L107: 6.556623397 | M107: 6.1475625 | N107: 6.867134615 | O107: 0.9918873798 | P107: 1.007303422 | Q107: 0.9964751548 | R107: 0.9786541452 | S107: 0.9989731703 | T107: 0.9708076279
B108: 2 | C108: 6.9925 | D108: 6.724 | E108: 6.586 | F108: 6.468 | G108: 6.025 | H108: 6.796 | I108: =AVERAGE(C83:C134) -> 7.169541667 | J108: 6.769357372 | K108: 6.661003205 | L108: 6.607161859 | M108: 6.198293269 | N108: 6.923865385 | O108: 0.9753064178 | P108: 0.9932996045 | Q108: 0.9887399536 | R108: 0.9789377252 | S108: 0.9720417764 | T108: 0.9815326588
B109: 3 | C109: 7.38625 | D109: 6.97375 | E109: 6.9525 | F109: 6.815 | G109: 6.43625 | H109: 7.1625 | I109: =AVERAGE(C84:C135) -> 7.206926282 | J109: 6.808491987 | K109: 6.703387821 | L109: 6.649911859 | M109: 6.242177885 | N109: 6.975288462 | O109: 1.024882136 | P109: 1.024272337 | Q109: 1.037162131 | R109: 1.024825613 | S109: 1.031090449 | T109: 1.026839254
B110: 4 | C110: 7.359 | D110: 6.986 | E110: 6.956 | F110: 6.816 | G110: 6.411 | H110: 7.166 | I110: =AVERAGE(C85:C136) -> 7.241772436 | J110: 6.844299679 | K110: 6.737195513 | L110: 6.687258013 | M110: 6.279274038 | N110: 7.020211538 | O110: 1.01618769 | P110: 1.020703407 | Q110: 1.032477087 | R110: 1.019251835 | S110: 1.020977897 | T110: 1.020766961
B111: 5 | C111: 7.443 | D111: 7.104 | E111: 6.958 | F111: 6.87 | G111: 6.421 | H111: 7.22 | I111: =AVERAGE(C86:C137) -> 7.283676282 | J111: 6.887761218 | K111: 6.776926282 | L111: 6.728334936 | M111: 6.320716346 | N111: 7.068532051 | O111: 1.02187408 | P111: 1.03139464 | Q111: 1.026719151 | R111: 1.021054996 | S111: 1.015865868 | T111: 1.021428487
B112: 6 | C112: 7.67 | D112: 7.341 | E112: 7.206 | F112: 7.056 | G112: 6.63 | H112: 7.426 | I112: =AVERAGE(C87:C138) -> 7.334003205 | J112: 6.938184295 | K112: 6.825849359 | L112: 6.777104167 | M112: 6.369081731 | N112: 7.124724359 | O112: 1.04581356 | P112: 1.058057798 | Q112: 1.055692797 | R112: 1.041152656 | S112: 1.040966387 | T112: 1.042285936
B113: 7 | C113: 7.824 | D113: 7.498 | E113: 7.294 | F113: 7.184 | G113: 6.783 | H113: 7.554 | I113: =AVERAGE(C88:C139) -> 7.383791667 | J113: 6.986453526 | K113: 6.87261859 | L113: 6.825450321 | M113: 6.4170625 | N113: 7.179224359 | O113: 1.059618195 | P113: 1.073219763 | Q113: 1.06131308 | R113: 1.052531286 | S113: 1.057025703 | T113: 1.052202804
B114: 8 | C114: 7.99625 | D114: 7.69875 | E114: 7.525 | F114: 7.415 | G114: 7.01875 | H114: 7.785 | I114: =AVERAGE(C89:C140) -> 7.433214744 | J114: 7.031203526 | K114: 6.91711859 | L114: 6.87618109 | M114: 6.464697115 | N114: 7.233685897 | O114: 1.075745862 | P114: 1.094940571 | Q114: 1.087880727 | R114: 1.078360198 | S114: 1.085704384 | T114: 1.076214825
B115: 9 | C115: 7.8 | D115: 7.495 | E115: 7.342 | F115: 7.232 | G115: 6.844 | H115: 7.632 | I115: =AVERAGE(C90:C141) -> 7.489089744 | J115: 7.078953526 | K115: 6.966464744 | L115: 6.934863782 | M115: 6.518389423 | N115: 7.295926282 | O115: 1.041515093 | P115: 1.058772313 | Q115: 1.053906145 | R115: 1.042846727 | S115: 1.049952612 | T115: 1.046063201
B116: 10 | C116: 7.586 | D116: 7.281 | E116: 7.14 | F116: 7.072 | G116: 6.683 | H116: 7.55 | I116: =AVERAGE(C91:C142) -> 7.548921474 | J116: 7.132703526 | K116: 7.019301282 | L116: 6.998517628 | M116: 6.578125 | N116: 7.363762821 | O116: 1.004911765 | P116: 1.020791061 | Q116: 1.017195261 | R116: 1.010499705 | S116: 1.015942993 | T116: 1.025291034
B117: 11 | C117: 7.53 | D117: 7.238 | E117: 7.15 | F117: 7.152 | G117: 6.718 | H117: 7.56 | I117: =AVERAGE(C92:C143) -> 7.616940705 | J117: 7.197453526 | K117: 7.083878205 | L117: 7.068017628 | M117: 6.646240385 | N117: 7.438916667 | O117: 0.9885858761 | P117: 1.005633447 | Q117: 1.009334124 | R117: 1.011882026 | S117: 1.010797024 | T117: 1.016277012
B118: 12 | C118: 7.627 | D118: 7.343 | E118: 7.258 | F118: 7.292 | G118: 6.827 | H118: 7.668 | I118: =AVERAGE(C93:C144) -> 7.692517628 | J118: 7.269107372 | K118: 7.155955128 | L118: 7.141863782 | M118: 6.720317308 | N118: 7.520647436 | O118: 0.9914829408 | P118: 1.010165296 | Q118: 1.014260133 | R118: 1.021021994 | S118: 1.015874651 | T118: 1.019593069
B119: 13 | C119: 7.678 | D119: 7.396 | E119: 7.242 | F119: 7.292 | G119: 6.803 | H119: 7.652 | I119: =AVERAGE(C94:C145) -> 7.771647436 | J119: 7.345761218 | K119: 7.231839744 | L119: 7.218863782 | M119: 6.797528846 | N119: 7.605532051 | O119: 0.9879501178 | P119: 1.006839153 | Q119: 1.001404934 | R119: 1.010131264 | S119: 1.000804874 | T119: 1.006109756
B120: 14 | C120: 7.7375 | D120: 7.455 | E120: 7.2525 | F120: 7.3175 | G120: 6.8175 | H120: 7.6775 | I120: =AVERAGE(C95:C146) -> 7.844589744 | J120: 7.416203526 | K120: 7.301762821 | L120: 7.289017628 | M120: 6.867221154 | N120: 7.682801282 | O120: 0.9863485858 | P120: 1.005231312 | Q120: 0.9932532976 | R120: 1.003907573 | S120: 0.9927596399 | T120: 0.9993099806
B121: 15 | C121: 7.465 | D121: 7.193 | E121: 7.02 | F121: 7.074 | G121: 6.588 | H121: 7.43 | I121: =AVERAGE(C96:C147) -> 7.913282051 | J121: 7.484689103 | K121: 7.369310897 | L121: 7.356248397 | M121: 6.933182692 | N121: 7.757147436 | O121: 0.9433506795 | P121: 0.9610285613 | Q121: 0.9525992454 | R121: 0.9616314754 | S121: 0.950212953 | T121: 0.9578263223
B122: 16 | C122: 7.271 | D122: 7.005 | E122: 6.824 | F122: 6.884 | G122: 6.433 | H122: 7.234 | I122: =AVERAGE(C97:C148) -> 7.979858974 | J122: 7.550823718 | K122: 7.435157051 | L122: 7.420902244 | M122: 6.998086538 | N122: 7.828916667 | O122: 0.9111689847 | P122: 0.9277133544 | Q122: 0.9178017294 | R122: 0.9276500045 | S122: 0.9192512789 | T122: 0.9240103463
B123: 17 | C123: 7.245 | D123: 6.991 | E123: 6.778 | F123: 6.858 | G123: 6.412 | H123: 7.188 | I123: =AVERAGE(C98:C149) -> 8.043512821 | J123: 7.612246795 | K123: 7.495464744 | L123: 7.482084936 | M123: 7.059259615 | N123: 7.899041667 | O123: 0.9007258597 | P123: 0.9183885111 | Q123: 0.9042801523 | R123: 0.9165894345 | S123: 0.9083105523 | T123: 0.9099838061
B124: 18 | C124: 7.386 | D124: 7.119 | E124: 6.95 | F124: 7.02 | G124: 6.585 | H124: 7.4 | I124: =AVERAGE(C99:C150) -> 8.107820513 | J124: 7.677285256 | K124: 7.558310897 | L124: 7.541469551 | M124: 7.119644231 | N124: 7.968041667 | O124: 0.9109723123 | P124: 0.9272809023 | Q124: 0.9195176137 | R124: 0.9308530588 | S124: 0.9249057659 | T124: 0.928710003
B125: 19 | C125: 7.413 | D125: 7.125 | E125: 6.968 | F125: 7.078 | G125: 6.623 | H125: 7.478 | I125: =AVERAGE(C100:C151) -> 8.176378205 | J125: 7.744703526 | K125: 7.624926282 | L125: 7.603161859 | M125: 7.181913462 | N125: 8.039580128 | O125: 0.906636143 | P125: 0.9199835702 | Q125: 0.9138449006 | R125: 0.9309284915 | S125: 0.9221776391 | T125: 0.9301480775
B126: 20 | C126: 7.804 | D126: 7.506 | E126: 7.292 | F126: 7.486 | G126: 6.965 | H126: 7.856 | I126: =AVERAGE(C101:C152) -> 8.251916667 | J126: 7.819895833 | K126: 7.699397436 | L126: 7.671161859 | M126: 7.251682692 | N126: 8.117580128 | O126: 0.9457196813 | P126: 0.9598593332 | Q126: 0.9470871014 | R126: 0.9758626056 | S126: 0.9604667352 | T126: 0.9677760953
B127: 21 | C127: 7.969 | D127: 7.662 | E127: 7.516 | F127: 7.656 | G127: 7.168 | H127: 8.026 | I127: =AVERAGE(C102:C153) -> 8.328070513 | J127: 7.894511218 | K127: 7.772858974 | L127: 7.740152244 | M127: 7.323870192 | N127: 8.196570513 | O127: 0.9568843092 | P127: 0.9705477373 | Q127: 0.9669543761 | R127: 0.989127831 | S127: 0.9787175102 | T127: 0.9791900146
B128: 22 | C128: 8.04 | D128: 7.69625 | E128: 7.565 | F128: 7.66625 | G128: 7.21375 | H128: 8.075 | I128: =AVERAGE(C103:C154) -> 8.403512821 | J128: 7.969645833 | K128: 7.84624359 | L128: 7.81080609 | M128: 7.395783654 | N128: 8.275455128 | O128: 0.9567427541 | P128: 0.9656953597 | Q128: 0.9641556387 | R128: 0.9814928078 | S128: 0.9753868336 | T128: 0.9757771476
B129: 23 | C129: 8.182 | D129: 7.834 | E129: 7.73 | F129: 7.817 | G129: 7.368 | H129: 8.24 | I129: =AVERAGE(C104:C155) -> 8.484320513 | J129: 8.049184295 | K129: 7.923935897 | L129: 7.887421474 | M129: 7.474591346 | N129: 8.359878205 | O129: 0.9643671509 | P129: 0.9732663228 | Q129: 0.9755253071 | R129: 0.9910716735 | S129: 0.9857395085 | T129: 0.9856602929
B130: 24 | C130: 8.255 | D130: 7.909 | E130: 7.806 | F130: 7.896 | G130: 7.391 | H130: 8.316 | I130: =AVERAGE(C105:C156) -> 8.573032051 | J130: 8.135472756 | K130: 8.010282051 | L130: 7.972844551 | M130: 7.562331731 | N130: 8.45299359 | O130: 0.9629032005 | P130: 0.9721623115 | Q130: 0.9744975208 | R130: 0.9903617146 | S130: 0.9773440604 | T130: 0.9837934824
B131: 25 | C131: 8.323 | D131: 7.948 | E131: 7.778 | F131: 7.858 | G131: 7.378 | H131: 8.278 | I131: =AVERAGE(C106:C157) -> 8.66999359 | J131: 8.230261218 | K131: 8.101628205 | L131: 8.063036859 | M131: 7.65175 | N131: 8.550878205 | O131: 0.9599776417 | P131: 0.9657044642 | Q131: 0.9600539303 | R131: 0.974570765 | S131: 0.9642238704 | T131: 0.9680876983
B132: 26 | C132: 8.222 | D132: 7.824 | E132: 7.69 | F132: 7.728 | G132: 7.239 | H132: 7.966 | I132: =AVERAGE(C107:C158) -> 8.772092949 | J132: 8.323241987 | K132: 8.199160256 | L132: 8.158309295 | M132: 7.750051282 | N132: 8.654435897 | O132: 0.93729057 | P132: 0.940018326 | Q132: 0.9379009264 | R132: 0.9472550893 | S132: 0.9340583354 | T132: 0.9204528284
B133: 27 | C133: 8.5625 | D133: 8.1675 | E133: 7.98 | F133: 8.16 | G133: 7.665 | H133: 8.64 | I133: =AVERAGE(C108:C159) -> 8.878791667 | J133: 8.428282051 | K133: 8.30613141 | L133: 8.259383013 | M133: 7.853032051 | N133: 8.765846154 | O133: 0.9643767217 | P133: 0.9690586943 | Q133: 0.9607360642 | R133: 0.9879672595 | S133: 0.9760561207 | T133: 0.9856435817
B134: 28 | C134: 8.773 | D134: 8.354 | E134: 8.326 | F134: 8.524 | G134: 8.005 | H134: 9.006 | I134: =AVERAGE(C109:C160) -> 8.989397436 | J134: 8.535032051 | K134: 8.415092949 | L134: 8.362921474 | M134: 7.960070513 | N134: 8.877884615 | O134: 0.9759274815 | P134: 0.9787895288 | Q134: 0.9894127196 | R134: 1.019261035 | S134: 1.005644358 | T134: 1.014430846
B135: 29 | C135: 8.237 | D135: 7.744 | E135: 7.766 | F135: 7.915 | G135: 7.457 | H135: 8.526 | I135: =AVERAGE(C110:C161) -> 9.093411859 | J135: 8.63755609 | K135: 8.513602564 | L135: 8.459459936 | M135: 8.058027244 | N135: 8.986009615 | O135: 0.9058206235 | P135: 0.8965498944 | Q135: 0.912187284 | R135: 0.9356389249 | S135: 0.9254126072 | T135: 0.9488082436
B136: 30 | C136: 8.051 | D136: 7.514 | E136: 7.298 | F136: 7.586 | G136: 7.052 | H136: 8.178 | I136: =AVERAGE(C111:C162) -> 9.194815705 | J136: 8.735979167 | K136: 8.607833333 | L136: 8.547344551 | M136: 8.148354167 | N136: 9.085048077 | O136: 0.8756021065 | P136: 0.8601210988 | Q136: 0.8478324007 | R136: 0.8875271091 | S136: 0.8654508451 | T136: 0.9001603438
B137: 31 | C137: 8.436 | D137: 7.897 | E137: 7.63 | F137: 7.756 | G137: 7.219 | H137: 8.306 | I137: =AVERAGE(C112:C163) -> 9.305142628 | J137: 8.843883013 | K137: 8.715217949 | L137: 8.645959936 | M137: 8.251123397 | N137: 9.193548077 | O137: 0.9065954534 | P137: 0.8929335665 | Q137: 0.8754801136 | R137: 0.8970663822 | S137: 0.8749111669 | T137: 0.9034596796
B138: 32 | C138: 8.669 | D138: 8.057 | E138: 7.944 | F138: 7.936 | G138: 7.42 | H138: 8.682 | I138: =AVERAGE(C113:C164) -> 9.418373397 | J138: 8.954190705 | K138: 8.826987179 | L138: 8.749267628 | M138: 8.360161859 | N138: 9.306086538 | O138: 0.920434945 | P138: 0.8998021446 | Q138: 0.8999673205 | R138: 0.9070473481 | S138: 0.8875426248 | T138: 0.9329378106
B139: 33 | C139: 8.572 | D139: 7.816 | E139: 7.74 | F139: 7.812 | G139: 7.304 | H139: 8.492 | I139: =AVERAGE(C114:C165) -> 9.533753205 | J139: 9.06605609 | K139: 8.938544872 | L139: 8.853998397 | M139: 8.469455128 | N139: 9.420048077 | O139: 0.8991212396 | P139: 0.8621168811 | Q139: 0.8659127533 | R139: 0.8823132385 | S139: 0.8623931398 | T139: 0.9014815987
B140: 34 | C140: 8.536 | D140: 7.613 | E140: 7.628 | F140: 7.902 | G140: 7.304 | H140: 8.456 | I140: =AVERAGE(C115:C166) -> 9.658171474 | J140: 9.185810897 | K140: 9.056141026 | L140: 8.967633013 | M140: 8.585229167 | N140: 9.542451923 | O140: 0.8838111875 | P140: 0.8287782195 | Q140: 0.8423013708 | R140: 0.8811689761 | S140: 0.8507635449 | T140: 0.886145413
B141: 35 | C141: 8.8325 | D141: 7.767 | E141: 7.83 | F141: 8.224 | G141: 7.612 | H141: 8.774 | I141: =AVERAGE(C116:C167) -> 9.804094551 | J141: 9.324599359 | K141: 9.193910256 | L141: 9.098633013 | M141: 8.719844551 | N141: 9.681528846 | O141: 0.9008991043 | P141: 0.8329580394 | Q141: 0.8516506885 | R141: 0.9038720419 | S141: 0.8729513416 | T141: 0.9062618249
B142: 36 | C142: 9.06375 | D142: 8.15875 | E142: 8.0875 | F142: 8.4725 | G142: 7.935 | H142: 9.0225 | I142: =AVERAGE(C117:C168) -> 9.93880609 | J142: 9.45636859 | K142: 9.323333333 | L142: 9.224517628 | M142: 8.844459936 | N142: 9.816913462 | O142: 0.911955613 | P142: 0.8627783406 | Q142: 0.8674472649 | R142: 0.9184762111 | S142: 0.8971717954 | T142: 0.9190770638
B143: 37 | C143: 9.505 | D143: 8.769 | E143: 8.74 | F143: 8.784 | G143: 8.329 | H143: 9.348 | I143: =AVERAGE(C118:C169) -> 10.05780609 | J143: 9.570272436 | K143: 9.435910256 | L143: 9.333402244 | M143: 8.95155609 | N143: 9.935451923 | O143: 0.94503711 | P143: 0.9162748562 | Q143: 0.9262487415 | R143: 0.9411359085 | S143: 0.9304527522 | T143: 0.9408731553
B144: 38 | C144: 10.03 | D144: 9.285 | E144: 9.244 | F144: 9.136 | G144: 8.72 | H144: 9.756 | I144: =AVERAGE(C119:C170) -> 10.15567628 | J144: 9.661584936 | K144: 9.524025641 | L144: 9.418652244 | M144: 9.031758013 | N144: 10.02972115 | O144: 0.9876250209 | P144: 0.9610224473 | Q144: 0.9705979749 | R144: 0.9699901603 | S144: 0.9654820233 | T144: 0.9727089966
B145: 39 | C145: 10.16375 | D145: 9.519 | E145: 9.426 | F145: 9.266 | G145: 8.859 | H145: 9.886 | I145: =AVERAGE(C120:C171) -> 10.25986859 | J145: 9.759738782 | K145: 9.618987179 | L145: 9.512267628 | M145: 9.120142628 | N145: 10.13064423 | O145: 0.9906315964 | P145: 0.975333481 | Q145: 0.9799368503 | R145: 0.9741105236 | S145: 0.9713663877 | T145: 0.9758510688
B146: 40 | C146: 9.862 | D146: 9.145 | E146: 9.092 | F146: 8.944 | G146: 8.622 | H146: 9.564 | I146: =AVERAGE(C121:C172) -> 10.35416667 | J146: 9.848777244 | K146: 9.705016026 | L146: 9.600700321 | M146: 9.205459936 | N146: 10.22311538 | O146: 0.9524668008 | P146: 0.928541663 | Q146: 0.9368351351 | R146: 0.9315987065 | S146: 0.9366180571 | T146: 0.9355269544
B147: 41 | C147: 9.81 | D147: 9.26125 | E147: 9.14 | F147: 8.986 | G147: 8.688 | H147: 9.606 | I147: =AVERAGE(C122:C173) -> 10.47110897 | J147: 9.960527244 | K147: 9.810285256 | L147: 9.711277244 | M147: 9.311902244 | N147: 10.33511538 | O147: 0.9368635189 | P147: 0.9297951578 | Q147: 0.9316752532 | R147: 0.925315978 | S147: 0.9329994853 | T147: 0.929452613
B148: 42 | C148: 9.999 | D148: 9.478 | E148: 9.354 | F148: 9.208 | G148: 8.931 | H148: 9.828 | I148: =AVERAGE(C123:C174) -> 10.59728205 | J148: 10.08064263 | K148: 9.924208333 | L148: 9.831738782 | M148: 9.430354167 | N148: 10.45576923 | O148: 0.9435438211 | P148: 0.9402178363 | Q148: 0.9425436958 | R148: 0.9365586499 | S148: 0.9470482065 | T148: 0.9399595365
B149: 43 | C149: 10.103 | D149: 9.601 | E149: 9.448 | F149: 9.2175 | G149: 8.981 | H149: 9.9025 | I149: =AVERAGE(C124:C175) -> 10.7239359 | J149: 10.20139263 | K149: 10.03716987 | L149: 9.952584936 | M149: 9.548450321 | N149: 10.57642308 | O149: 0.9420981342 | P149: 0.9411460131 | Q149: 0.9413011955 | R149: 0.9261413049 | S149: 0.9405714748 | T149: 0.9362806242
B150: 44 | C150: 10.307 | D150: 9.917 | E150: 9.76 | F150: 9.412 | G150: 9.141 | H150: 10.012 | I150: =AVERAGE(C125:C176) -> 10.83374359 | J150: 10.30733494 | K150: 10.13532372 | L150: 10.05989263 | M150: 9.654277244 | N150: 10.68296154 | O150: 0.951379356 | P150: 0.9621303724 | Q150: 0.9629687489 | R150: 0.9355964669 | S150: 0.9468342134 | T150: 0.9371933021
B151: 45 | C151: 10.679 | D151: 10.212 | E151: 10.094 | F151: 9.654 | G151: 9.363 | H151: 10.374 | I151: =AVERAGE(C126:C177) -> 10.94605128 | J151: 10.41604647 | K151: 10.23659295 | L151: 10.17154647 | M151: 9.763450321 | N151: 10.79288462 | O151: 0.9756029572 | P151: 0.9804103721 | Q151: 0.9860702727 | R151: 0.9491182117 | S151: 0.9589847536 | T151: 0.9611888174
B152: 46 | C152: 10.928 | D152: 10.55 | E152: 10.4225 | F152: 9.928 | G152: 9.686 | H152: 10.678 | I152: =AVERAGE(C127:C178) -> 11.05930128 | J152: 10.52558494 | K152: 10.34016987 | L152: 10.2831234 | M152: 9.871411859 | N152: 10.90407692 | O152: 0.9881275246 | P152: 1.002319592 | Q152: 1.007962164 | R152: 0.9654654152 | S152: 0.9812172907 | T152: 0.9792667527
B153: 47 | C153: 11.11666667 | D153: 10.66666667 | E153: 10.49666667 | F153: 10.105 | G153: 9.93 | H153: 10.855 | I153: =AVERAGE(C128:C179) -> 11.16569071 | J153: 10.62785417 | K153: 10.44034295 | L153: 10.38752724 | M153: 9.972724359 | N153: 11.00809615 | O153: 0.9956094039 | P153: 1.00365196 | Q153: 1.005394815 | R153: 0.9728012994 | S153: 0.9957158789 | T153: 0.986092404
B154: 48 | C154: 11.258 | D154: 10.864 | E154: 10.63 | F154: 10.282 | G154: 10.037 | H154: 10.94 | I154: =AVERAGE(C129:C180) -> 11.27501763 | J154: 10.73323397 | K154: 10.5369391 | L154: 10.49390705 | M154: 10.07451763 | N154: 11.11334615 | O154: 0.9984906784 | P154: 1.012183283 | Q154: 1.008831872 | R154: 0.9798066583 | S154: 0.9962759876 | T154: 0.9844019838
B155: 49 | C155: 11.316 | D155: 10.905 | E155: 10.67 | F155: 10.34 | G155: 10.14 | H155: 10.98 | I155: =AVERAGE(C130:C181) -> 11.39705609 | J155: 10.85034936 | K155: 10.64332372 | L155: 10.61034936 | M155: 10.18620994 | N155: 11.22838462 | O155: 0.9928879801 | P155: 1.005036763 | Q155: 1.002506386 | R155: 0.9745202208 | S155: 0.9954634809 | T155: 0.9778788647
B156: 50 | C156: 11.688 | D156: 11.248 | E156: 11.144 | F156: 10.826 | G156: 10.6125 | H156: 11.466 | I156: =AVERAGE(C131:C182) -> 11.53786378 | J156: 10.98463782 | K156: 10.76686218 | L156: 10.74388782 | M156: 10.3157484 | N156: 11.36057692 | O156: 1.01301248 | P156: =IF(D156<1,"",D156/J156) -> 1.0239755 | Q156: =IF(E156<1,"",E156/K156) -> 1.035027644 | R156: =IF(F156<1,"",F156/L156) -> 1.007642688 | S156: =IF(G156<1,"",G156/M156) -> 1.028766852 | T156: =IF(H156<1,"",H156/N156) -> 1.009279729
B157: 51 | C157: 11.917 | D157: 11.497 | E157: 11.3 | F157: 10.97 | G157: 10.781 | H157: 11.61 | I157: =AVERAGE(C132:C183) -> 11.68445994 | J157: 11.12371474 | K157: 10.89724679 | L157: 10.88250321 | M157: 10.4507484 | N157: 11.49784615 | O157: 1.019901653 | P157: 1.033557608 | Q157: 1.036959171 | R157: 1.008040135 | S157: 1.031600761 | T157: 1.009754335
B158: 52 | C158: 12.4625 | D158: 11.685 | E158: 11.79666667 | F158: 11.46666667 | G158: 11.28666667 | H158: 12.14 | I158: =AVERAGE(C133:C184) -> 11.83813301 | J158: 11.27042628 | K158: 11.03147756 | L158: 11.03042628 | M158: 10.59030609 | N158: 11.64465385 | O158: 1.052742015 | P158: 1.036784209 | Q158: 1.069364153 | R158: 1.039548824 | S158: 1.065754528 | T158: 1.042538504
A159: 2008 | B159: 1 | C159: 12.615 | D159: 12.23375 | E159: 12.1525 | F159: 11.6725 | G159: 11.49625 | H159: 12.46 | I159: =AVERAGE(C134:C185) -> 11.99673878 | J159: 11.42249359 | K159: 11.17585256 | L159: 11.18441667 | M159: 10.73547436 | N159: 11.78859615 | O159: 1.051535774 | P159: 1.071022707 | Q159: 1.087389077 | R159: 1.043639588 | S159: 1.070865582 | T159: 1.056953673
B160: 2 | C160: 12.744 | D160: 12.275 | E160: 12.252 | F160: 11.852 | G160: 11.591 | H160: 12.622 | I160: =AVERAGE(C135:C186) -> 12.14371955 | J160: 11.56458974 | K160: 11.3043141 | L160: 11.32410897 | M160: 10.86855128 | N160: 11.91651923 | O160: 1.04943135 | P160: 1.061429785 | Q160: 1.083834003 | R160: 1.046616562 | S160: 1.066471483 | T160: 1.059201916
B161: 3 | C161: 12.795 | D161: 12.305 | E161: 12.075 | F161: 11.835 | G161: 11.53 | H161: 12.785 | I161: =AVERAGE(C136:C187) -> 12.28493109 | J161: 11.70230128 | K161: 11.4298141 | L161: 11.46032051 | M161: 10.99970513 | N161: 12.03767308 | O161: 1.041519884 | P161: 1.051502581 | Q161: 1.056447628 | R161: 1.032693631 | S161: 1.048209917 | T161: 1.062082341
B162: 4 | C162: 12.632 | D162: 12.104 | E162: 11.856 | F162: 11.386 | G162: 11.108 | H162: 12.316 | I162: =AVERAGE(C137:C188) -> 12.40927724 | J162: 11.82357051 | K162: 11.54427564 | L162: 11.58458974 | M162: 11.11910897 | N162: 12.14767308 | O162: 1.017948084 | P162: 1.023717834 | Q162: 1.027002505 | R162: 0.9828574211 | S162: 0.9990009115 | T162: 1.013856722
B163: 5 | C163: 13.18 | D163: 12.715 | E163: 12.542 | F163: 11.998 | G163: 11.765 | H163: 12.862 | I163: =AVERAGE(C138:C189) -> 12.51877724 | J163: 11.92635897 | K163: 11.64450641 | L163: 11.70370513 | M163: 11.23424359 | N163: 12.25178846 | O163: 1.052818478 | P163: 1.066125884 | Q163: 1.077074421 | R163: 1.025145445 | S163: 1.047244517 | T163: 1.049805915
B164: 6 | C164: 13.558 | D164: 13.077 | E164: 13.018 | F164: 12.428 | G164: 12.3 | H164: 13.278 | I164: =AVERAGE(C139:C190) -> 12.59729647 | J164: 11.99649359 | K164: 11.71142949 | L164: 11.79078205 | M164: 11.31857051 | N164: 12.31971154 | O164: 1.076262675 | P164: 1.090068519 | Q164: 1.111563709 | R164: 1.054043739 | S164: 1.086709668 | T164: 1.077784976
B165: 7 | C165: 13.82375 | D165: 13.315 | E165: 13.095 | F165: 12.63 | G165: 12.46625 | H165: 13.48 | I165: =AVERAGE(C140:C191) -> 12.68477724 | J165: 12.07801282 | K165: 11.79066026 | L165: 11.88689744 | M165: 11.41039744 | N165: 12.39794231 | O165: 1.089790521 | P165: 1.102416449 | Q165: 1.110624826 | R165: 1.062514425 | S165: 1.09253425 | T165: 1.0872772
B166: 8 | C166: 14.466 | D166: 13.926 | E166: 13.64 | F166: 13.324 | G166: 13.039 | H166: 14.15 | I166: =AVERAGE(C141:C192) -> 12.78664263 | J166: 12.1756859 | K166: 11.88504487 | L166: 11.99351282 | M166: 11.51610897 | N166: 12.48909615 | O166: =IF(C166<1,"",C166/I166) -> 1.131336851 | P166: 1.143754867 | Q166: 1.147660791 | R166: 1.110933902 | S166: 1.132240067 | T166: 1.132988314
B167: 9 | C167: 15.388 | D167: 14.712 | E167: 14.506 | F167: 14.044 | G167: 13.844 | H167: 14.864 | I167: =AVERAGE(C142:C193) -> 12.88991186 | J167: 12.27444551 | K167: 11.98047756 | L167: 12.09694551 | M167: 11.61898718 | N167: 12.57714423 | O167: 1.193801802 | P167: 1.198587748 | Q167: 1.210803152 | R167: 1.160954225 | S167: 1.191498001 | T167: 1.181826313
B168: 10 | C168: 14.591 | D168: 14.133 | E168: 13.87 | F168: 13.618 | G168: 13.163 | H168: 14.59 | I168: =AVERAGE(C143:C194) -> 12.96307051 | J168: 12.34558494 | K168: 12.05133333 | L168: 12.17555128 | M168: 11.68141026 | N168: 12.64036538 | O168: 1.12558209 | P168: 1.144781723 | Q168: 1.150909996 | R168: 1.118470916 | S168: 1.126833123 | T168: 1.154238786
B169: 11 | C169: 13.718 | D169: 13.161 | E169: 13.004 | F169: 12.814 | G169: 12.287 | H169: 13.724 | I169: =AVERAGE(C144:C195) -> 13.02150801 | J169: 12.39843109 | K169: 12.10079487 | L169: 12.24185897 | M169: 11.72996795 | N169: 12.68890385 | O169: 1.053487813 | P169: 1.061505275 | Q169: 1.074640149 | R169: 1.04673645 | S169: 1.047487943 | T169: 1.081574907
B170: 12 | C170: 12.71625 | D170: 12.09125 | E170: 11.84 | F170: 11.725 | G170: 10.9975 | H170: 12.57 | I170: =AVERAGE(C145:C196) -> 13.06379647 | J170: 12.4343734 | K170: 12.13291026 | L170: 12.29532051 | M170: 11.76377564 | N170: 12.72159615 | O170: 0.9733962118 | P170: 0.9724052522 | Q170: 0.975858203 | R170: 0.9536148316 | S170: 0.93486142 | T170: 0.9880835587
B171: 13 | C171: 13.096 | D171: 12.5 | E171: 12.18 | F171: 12.16 | G171: 11.399 | H171: 12.9 | I171: =AVERAGE(C146:C197) -> 13.10545513 | J171: 12.46708494 | K171: 12.16471795 | L171: 12.3419359 | M171: 11.79769872 | N171: 12.75513462 | O171: 0.9992785349 | P171: 1.002640157 | Q171: 1.00125626 | R171: 0.9852587229 | S171: 0.9662053823 | T171: 1.011357417
B172: 14 | C172: 12.641 | D172: 12.085 | E172: 11.726 | F172: 11.916 | G172: 11.254 | H172: 12.486 | I172: =AVERAGE(C147:C198) -> 13.11820513 | J172: 12.47396955 | K172: 12.17029487 | L172: 12.35747436 | M172: 11.80521795 | N172: 12.76413462 | O172: 0.9636226813 | P172: 0.9688175003 | Q172: 0.9634934998 | R172: 0.9642747097 | S172: 0.953307262 | T172: 0.9782096771
B173: 15 | C173: 13.546 | D173: 13.004 | E173: 12.494 | F173: 12.824 | G173: 12.123 | H173: 13.254 | I173: =AVERAGE(C148:C199) -> 13.12182051 | J173: 12.46271955 | K173: 12.16269872 | L173: 12.35997436 | M173: 11.79900641 | N173: 12.76048077 | O173: 1.032326268 | P173: 1.043431969 | Q173: 1.027239126 | R173: 1.037542605 | S173: 1.027459396 | T173: 1.038675598
B174: 16 | C174: 13.832 | D174: 13.251 | E174: 12.748 | F174: 13.148 | G174: 12.5925 | H174: 13.508 | I174: =AVERAGE(C149:C200) -> 13.1106859 | J174: 12.43896955 | K174: 12.13950641 | L174: 12.34805128 | M174: 11.77925641 | N174: 12.74240385 | O174: 1.055017267 | P174: 1.065281167 | Q174: 1.050125068 | R174: 1.064783398 | S174: 1.069040316 | T174: 1.060082553
B175: 17 | C175: 13.831 | D175: 13.27 | E175: 12.652 | F175: 13.142 | G175: 12.553 | H175: 13.462 | I175: =AVERAGE(C150:C201) -> 13.09708974 | J175: 12.41685417 | K175: 12.11854487 | L175: 12.33690705 | M175: 11.75992949 | N175: 12.72154808 | O175: 1.056036133 | P175: 1.068708694 | Q175: 1.044019735 | R175: 1.065258897 | S175: 1.067438373 | T175: 1.058204545
B176: 18 | C176: 13.096 | D176: 12.628 | E176: 12.054 | F176: 12.6 | G176: 12.088 | H176: 12.94 | I176: =AVERAGE(C151:C202) -> 13.0856859 | J176: 12.39375801 | K176: 12.09900641 | L176: 12.33044551 | M176: 11.74442949 | N176: 12.70604808 | O176: 1.000788197 | P176: 1.018899997 | Q176: 0.9962801565 | R176: 1.021860888 | S176: 1.029253913 | T176: 1.018412643
B177: 19 | C177: 13.253 | D177: 12.778 | E177: 12.234 | F177: 12.884 | G177: 12.3 | H177: 13.194 | I177: =AVERAGE(C152:C203) -> 13.06849359 | J177: 12.36191186 | K177: 12.07050641 | L177: 12.31779167 | M177: 11.7233141 | N177: 12.68493269 | O177: 1.014118415 | P177: 1.033658883 | Q177: 1.013544882 | R177: 1.045966708 | S177: 1.049191371 | T177: 1.040131652
B178: 20 | C178: 13.693 | D178: 13.202 | E178: 12.678 | F178: 13.288 | G178: 12.579 | H178: 13.638 | I178: =AVERAGE(C153:C204) -> 13.0414359 | J178: 12.32705609 | K178: 12.03680449 | L178: 12.29448397 | M178: 11.69198718 | N178: 12.65297115 | O178: 1.049961071 | P178: 1.070977523 | Q178: 1.053269579 | R178: 1.0808099 | S178: 1.075865018 | T178: 1.077849608
B179: 21 | C179: 13.50125 | D179: 12.98 | E179: 12.725 | F179: 13.085 | G179: 12.43625 | H179: 13.435 | I179: =AVERAGE(C154:C205) -> 13.00686538 | J179: 12.28983173 | K179: 12.00009936 | L179: 12.2628109 | M179: 11.65219872 | N179: 12.61264423 | O179: 1.038009513 | P179: 1.056157666 | Q179: 1.060407887 | R179: 1.06704736 | S179: 1.06728784 | T179: 1.065200901
B180: 22 | C180: 13.725 | D180: 13.176 | E180: 12.588 | F180: 13.198 | G180: 12.507 | H180: 13.548 | I180: =AVERAGE(C155:C206) -> 12.96860256 | J180: 12.24834455 | K180: 11.96099679 | L180: 12.22772436 | M180: 11.60917949 | N180: 12.57043269 | O180: 1.058325285 | P180: 1.07573721 | Q180: 1.052420648 | R180: 1.079350467 | S180: 1.07733712 | T180: 1.077767196
B181: 23 | C181: 14.528 | D181: 13.924 | E181: 13.262 | F181: 13.872 | G181: 13.176 | H181: 14.222 | I181: =AVERAGE(C156:C207) -> 12.91983333 | J181: 12.19615224 | K181: 11.91011218 | L181: 12.18360897 | M181: 11.55639103 | N181: 12.51593269 | O181: 1.12447271 | P181: 1.141671547 | Q181: 1.113507564 | R181: 1.138578891 | S181: 1.140148336 | T181: 1.13631164
B182: 24 | C182: 15.577 | D182: 14.892 | E182: 14.23 | F182: 14.84 | G182: 14.127 | H182: 15.19 | I182: =AVERAGE(C157:C208) -> 12.87035256 | J182: 12.14380609 | K182: 11.85822756 | L182: 12.13503205 | M182: 11.49936218 | N182: 12.45697115 | O182: 1.210300955 | P182: 1.226304166 | Q182: 1.200010703 | R182: 1.222905711 | S182: 1.228502919 | T182: 1.219397542
B183: 25 | C183: 15.946 | D183: 15.18 | E183: 14.558 | F183: 15.066 | G183: 14.398 | H183: 15.416 | I183: =AVERAGE(C158:C209) -> 12.82291026 | J183: 12.09382532 | K183: 11.80988141 | L183: 12.08937821 | M183: 11.44647756 | N183: 12.40093269 | O183: 1.243555455 | P183: 1.255185981 | Q183: 1.232696544 | R183: 1.24621794 | S183: 1.257854211 | T183: 1.243132302
B184: 26 | C184: 16.213 | D184: 15.453 | E184: 14.67 | F184: 15.42 | G184: 14.496 | H184: 15.6 | I184: =AVERAGE(C159:C210) -> 12.77465705 | J184: 12.05020353 | K184: 11.76141987 | L184: 12.04457051 | M184: 11.39416987 | N184: 12.34413782 | O184: 1.269153445 | P184: 1.282384979 | Q184: 1.247298384 | R184: 1.280244902 | S184: 1.272229584 | T184: 1.263757763
B185: 27 | C185: 16.81 | D185: 16.075 | E185: 15.4875 | F185: 16.1675 | G185: 15.21375 | H185: 16.125 | I185: =AVERAGE(C160:C211) -> 12.73420833 | J185: 12.00945833 | K185: 11.72047436 | L185: 12.00785577 | M185: 11.3483125 | N185: 12.29554808 | O185: 1.320066357 | P185: 1.338528313 | Q185: 1.321405561 | R185: 1.346410243 | S185: 1.340617823 | T185: 1.311450283
B186: 28 | C186: 16.416 | D186: 15.743 | E186: 15.006 | F186: 15.788 | G186: 14.925 | H186: 15.658 | I186: =AVERAGE(C161:C212) -> 12.69247756 | J186: 11.96711218 | K186: 11.67747436 | L186: 11.96625962 | M186: 11.30077404 | N186: 12.24335577 | O186: 1.293364508 | P186: 1.315522054 | Q186: 1.285038146 | R186: 1.319376355 | S186: 1.320705993 | T186: 1.278897738
B187: 29 | C187: 15.58 | D187: 14.905 | E187: 14.292 | F187: 14.998 | G187: 14.277 | H187: 14.826 | I187: =AVERAGE(C162:C213) -> 12.65154006 | J187: 11.92336218 | K187: 11.63858013 | L187: 11.92476923 | M187: 11.25421154 | N187: 12.18878846 | O187: 1.231470629 | P187: 1.250066867 | Q187: 1.227984844 | R187: 1.257718259 | S187: 1.268591758 | T187: 1.216363714
B188: 30 | C188: 14.517 | D188: 13.82 | E188: 13.25 | F188: 14.048 | G188: 13.261 | H188: 13.898 | I188: =AVERAGE(C163:C214) -> 12.61605929 | J188: 11.88563141 | K188: 11.60565705 | L188: 11.89528846 | M188: 11.21903846 | N188: 12.14528846 | O188: 1.150676266 | P188: 1.162748492 | Q188: 1.141684606 | R188: 1.180971781 | S188: 1.182008605 | T188: 1.144312055
B189: 31 | C189: 14.13 | D189: 13.242 | E189: 12.842 | F189: 13.95 | G189: 13.206 | H189: 13.72 | I189: =AVERAGE(C164:C215) -> 12.56209776 | J189: 11.82922756 | K189: 11.55234936 | L189: 11.84828846 | M189: 11.16498077 | N189: 12.08409615 | O189: 1.124812135 | P189: 1.119430658 | Q189: 1.111635357 | R189: 1.177385244 | S189: 1.182805441 | T189: 1.1353766
B190: 32 | C190: 12.752 | D190: 11.704 | E190: 11.424 | F190: 12.464 | G190: 11.805 | H190: 12.214 | I190: =AVERAGE(C165:C216) -> 12.50242468 | J190: 11.76986218 | K190: 11.4938109 | L190: 11.79782692 | M190: 11.10421154 | N190: 12.01825 | O190: 1.019962153 | P190: 0.9944041673 | Q190: 0.9939262184 | R190: 1.056465744 | S190: 1.063110151 | T190: 1.016287729
B191: 33 | C191: 13.121 | D191: 12.055 | E191: 11.86 | F191: 12.81 | G191: 12.079 | H191: 12.56 | I191: =AVERAGE(C166:C217) -> 12.43134295 | J191: 11.69976603 | K191: 11.42722436 | L191: 11.73696154 | M191: 11.03582212 | N191: 11.942 | O191: 1.055477277 | P191: 1.030362485 | Q191: 1.037872333 | R191: 1.091423871 | S191: 1.094526522 | T191: 1.051750126
B192: 34 | C192: 13.833 | D192: 12.692 | E192: 12.536 | F192: 13.446 | G192: 12.801 | H192: 13.196 | I192: =AVERAGE(C167:C218) -> 12.33347756 | J192: 11.60455449 | K192: 11.33741667 | L192: 11.64861538 | M192: 10.94314904 | N192: 11.83873077 | O192: 1.121581478 | P192: 1.09370851 | Q192: 1.105719263 | R192: 1.15430028 | S192: 1.169772974 | T192: 1.114646516
B193: 35 | C193: 14.2025 | D193: 12.9025 | E193: 12.7925 | F193: 13.6025 | G193: 12.96166667 | H193: 13.3525 | I193: =AVERAGE(C168:C219) -> 12.21445833 | J193: 11.49066987 | K193: 11.22749359 | L193: 11.54467308 | M193: 10.83257212 | N193: 11.71892308 | O193: 1.162761345 | P193: 1.122867522 | Q193: 1.139390541 | R193: 1.178249043 | S193: 1.196545615 | T193: 1.139396505
B194: 36 | C194: 12.868 | D194: 11.858 | E194: 11.772 | F194: 12.56 | G194: 11.181 | H194: 12.31 | I194: =AVERAGE(C169:C220) -> 12.11224679 | J194: 11.38905449 | K194: 11.13095513 | L194: 11.45144231 | M194: 10.73682212 | N194: 11.60488462 | O194: 1.06239579 | P194: 1.041175105 | Q194: 1.057591183 | R194: 1.096805072 | S194: 1.041369586 | T194: 1.060760224
B195: 37 | C195: 12.54375 | D195: 11.517 | E195: 11.312 | F195: 12.232 | G195: 10.854 | H195: 11.872 | I195: =AVERAGE(C170:C221) -> 12.03053526 | J195: 11.3101891 | K195: 11.05549359 | L195: 11.37925 | M195: 10.66297596 | N195: 11.51192308 | O195: 1.042659344 | P195: 1.018285362 | Q195: 1.023201715 | R195: 1.074939034 | S195: 1.017914702 | T195: 1.031278607
B196: 38 | C196: 12.229 | D196: 11.154 | E196: 10.914 | F196: 11.916 | G196: 10.478 | H196: 11.456 | I196: =AVERAGE(C171:C222) -> 11.97870353 | J196: 11.26268429 | K196: 11.01303205 | L196: 11.33755769 | M196: 10.62473558 | N196: 11.45205769 | O196: 1.020895122 | P196: 0.990350054 | Q196: 0.9910077397 | R196: 1.05102001 | S196: 0.9861892491 | T196: 1.000344244
B197: 39 | C197: 12.33 | D197: 11.22 | E197: 11.08 | F197: 11.69 | G197: 10.623 | H197: 11.63 | I197: =AVERAGE(C172:C223) -> 11.91574199 | J197: 11.20385737 | K197: 10.96010897 | L197: 11.28425 | M197: 10.57565865 | N197: 11.38355769 | O197: 1.034765608 | P197: 1.00144081 | Q197: 1.010938853 | R197: 1.035957197 | S197: 1.004476444 | T197: 1.021648971
B198: 40 | C198: 10.525 | D198: 9.503 | E198: 9.382 | F198: 9.752 | G198: 9.013 | H198: 10.032 | I198: =AVERAGE(C173:C224) -> 11.87014583 | J198: 11.16141506 | K198: 10.92514744 | L198: 11.24419231 | M198: 10.53740865 | N198: 11.33225 | O198: 0.8866782386 | P198: 0.8514153398 | Q198: 0.858752713 | R198: 0.8672921748 | S198: 0.8553336305 | T198: 0.8852610911
B199: 41 | C199: 9.998 | D199: 8.67625 | E199: 8.745 | F199: 9.116 | G199: 8.365 | H199: 9.416 | I199: =AVERAGE(C174:C225) -> 11.81406891 | J199: 11.10814103 | K199: 10.88233013 | L199: 11.19329808 | M199: 10.48898558 | N199: 11.27308654 | O199: 0.8462791335 | P199: 0.7810712864 | Q199: 0.8035962792 | R199: 0.8144159065 | S199: 0.7975032417 | T199: 0.8352637024
B200: 42 | C200: 9.42 | D200: 8.243 | E200: 8.148 | F200: 8.588 | G200: 7.904 | H200: 8.888 | I200: =AVERAGE(C175:C226) -> 11.75558814 | J200: 11.05387179 | K200: 10.83840705 | L200: 11.13999038 | M200: 10.42105288 | N200: 11.21293269 | O200: 0.8013210302 | P200: 0.7457115618 | Q200: 0.7517709901 | R200: 0.7709162848 | S200: 0.758464628 | T200: 0.7926561448
... 322 more rows
